{"text_format":"3","workbook":"xlsx","n_sheets":27,"sheets":["СВОД","НАЧАЛО","1 шк ","2 шк","3 шк","4 шк","5 шк","6 шк ","7 шк","тат гим","9 шк","Аксаринская ООШ","Верхнешипкинская ООШ","Светлоозерская ООШ","Поручиковская ООШ","Тюгеевская ООШ","Чубуклинская ООШ","Савалеевская СОШ","Сарсаз-Багряжская ООШ","Верхненалимская ООШ","Бухарайская ООШ","Александрослободская ООШ","Бегишевская СОШ","Кадыровская СОШ","Нижнебишевская СОШ","КОНЕЦ","Лист1"],"not_rendered":{"defined_names":27,"comments":18},"read":"whole","date_system":"1900"}

{"sheet":"СВОД","index":0,"n_rows":67,"n_cols":11,"rows_kept":67,"merged":[[0,0,0,9],[1,1,1,9],[2,1,2,9],[3,0,4,0],[3,1,3,5],[3,6,3,9],[4,1,4,5],[4,6,4,9],[5,1,5,5],[5,6,5,9],[6,1,6,9],[7,0,9,0],[7,1,8,1],[7,2,8,2],[7,3,8,3],[7,4,8,4],[7,5,8,5],[7,6,8,6],[7,7,8,7],[7,8,8,8],[7,9,8,9],[11,1,11,9],[12,0,13,0],[12,1,12,7],[12,8,12,9],[13,1,13,7],[13,8,13,9],[14,1,14,7],[14,8,14,9],[15,1,15,7],[15,8,15,9],[16,1,16,7],[16,8,16,9],[17,1,17,7],[17,8,17,9],[18,1,18,7],[18,8,18,9],[19,1,19,7],[19,8,19,9],[20,1,20,7],[20,8,20,9],[21,1,21,7],[21,8,21,9],[22,1,22,7],[22,8,22,9],[23,1,23,7],[23,8,23,9],[24,1,24,7],[24,8,24,9],[25,1,25,7],[25,8,25,9],[26,1,26,7],[26,8,26,9],[27,1,27,9],[28,0,29,0],[28,1,28,5],[28,6,28,9],[29,1,29,5],[29,6,29,9],[30,1,30,5],[30,6,30,9],[31,1,31,9],[32,0,33,0],[32,1,32,3],[32,4,32,6],[32,7,32,9],[33,1,33,3],[33,4,33,6],[33,7,33,9],[34,1,34,3],[34,4,34,6],[34,7,34,9],[35,1,35,9],[36,1,36,9],[37,1,37,9],[38,1,38,9],[39,0,44,0],[39,1,43,1],[39,2,43,2],[39,3,43,3],[39,4,43,4],[39,5,43,5],[39,6,43,7],[39,8,43,9],[44,6,44,7],[44,8,44,9],[45,6,45,7],[45,8,45,9],[46,1,46,9],[47,0,48,0],[47,1,47,5],[47,6,47,9],[48,1,48,5],[48,6,48,9],[49,1,49,5],[49,6,49,9],[50,1,50,5],[50,6,50,9],[51,1,51,5],[51,6,51,9],[52,1,52,5],[52,6,52,9],[53,1,53,9],[54,0,56,0],[54,1,55,1],[54,2,54,3],[54,4,55,5],[54,6,55,7],[54,8,55,9],[56,4,56,5],[56,6,56,7],[56,8,56,9],[57,4,57,5],[57,6,57,7],[57,8,57,9],[60,1,60,3]]}
["Наименование субъекта Российской Федерации"]
["№ строки"," Мониторинг общеобразовательных организаций, реализующих общеобразовательные программы начального общего, основного общего и (или) среднего общего образования учебного предмета «Физическая культура» в 2019/2020 учебном году"]
[1,"1. Общие сведения"]
[2,"Общая численность \nобщеобразовательных организаций в субъекте РФ                                                     (юридических лиц)",{"$nulls":4},"Общая численность \nобучающихся в общеобразовательных организациях субъекта РФ"]
[null,1,{"$nulls":4},2]
[3,{"$f":"SUM(НАЧАЛО:КОНЕЦ!B6)","v":23},{"$nulls":4},{"$f":"SUM(НАЧАЛО:КОНЕЦ!G6)","v":5284}]
[4,"2. Спортивные объекты общеобразовательных организаций"]
[5,"Всего:","Спортивный зал\n24х12 м и более","Спортивный зал\n18х9 м и менее","Спортивный зал отсутствует","Зал для адаптивной физической культуры","Тренажёрный зал","Плавательный\nбассейн","Универсальная спортивная площадка","Площадка для подвижных игр"]
[]
[null,1,2,3,4,5,6,7,8,9]
[6,{"$f":"C11+D11+E11+F11+G11+H11+I11+J11","v":53},{"$f":"SUM(НАЧАЛО:КОНЕЦ!C11)","v":6},{"$f":"SUM(НАЧАЛО:КОНЕЦ!D11)","v":17},{"$f":"SUM(НАЧАЛО:КОНЕЦ!E11)","v":1},{"$f":"SUM(НАЧАЛО:КОНЕЦ!F11)","v":0},{"$f":"SUM(НАЧАЛО:КОНЕЦ!G11)","v":2},{"$f":"SUM(НАЧАЛО:КОНЕЦ!H11)","v":0},{"$f":"SUM(НАЧАЛО:КОНЕЦ!I11)","v":13},{"$f":"SUM(НАЧАЛО:КОНЕЦ!J11)","v":14}]
[7,"3.  Спортивное оборудование и инвентарь для организации общеобразовательной деятельности"]
[8,"Содержание раздела",{"$nulls":6},"ВСЕГО"]
[null,1,{"$nulls":6},2]
[9,"Общеобразовательные организации, имеющие спортивное оборудование и инвентарь для занятий футболом",{"$nulls":6},{"$f":"SUM(НАЧАЛО:КОНЕЦ!I15)","v":14},{"$f":"SUM(НАЧАЛО:КОНЕЦ!J15)","v":0}]
[10,"Общеобразовательные организации, имеющие спортивное оборудование и инвентарь для занятий баскетболом",{"$nulls":6},{"$f":"SUM(НАЧАЛО:КОНЕЦ!I16)","v":22},{"$f":"SUM(НАЧАЛО:КОНЕЦ!J16)","v":0}]
[11,"Общеобразовательные организации, имеющие спортивное оборудование и инвентарь для занятий волейболом",{"$nulls":6},{"$f":"SUM(НАЧАЛО:КОНЕЦ!I17)","v":20},{"$f":"SUM(НАЧАЛО:КОНЕЦ!J17)","v":0}]
[12,"Общеобразовательные организации, имеющие спортивное оборудование и инвентарь для занятий гандболом",{"$nulls":6},{"$f":"SUM(НАЧАЛО:КОНЕЦ!I18)","v":2},{"$f":"SUM(НАЧАЛО:КОНЕЦ!J18)","v":0}]
[13,"Общеобразовательные организации, имеющие спортивное оборудование и инвентарь для занятий \nфитнесом, общефизической подготовкой",{"$nulls":6},{"$f":"SUM(НАЧАЛО:КОНЕЦ!I19)","v":5},{"$f":"SUM(НАЧАЛО:КОНЕЦ!J19)","v":0}]
[14,"Общеобразовательные организации, имеющие спортивное оборудование и инвентарь для занятий спортивной\nгимнастикой",{"$nulls":6},{"$f":"SUM(НАЧАЛО:КОНЕЦ!I20)","v":9},{"$f":"SUM(НАЧАЛО:КОНЕЦ!J20)","v":0}]
[15,"Общеобразовательные организации, имеющие спортивное оборудование и инвентарь для занятий лёгкой атлетикой",{"$nulls":6},{"$f":"SUM(НАЧАЛО:КОНЕЦ!I21)","v":13},{"$f":"SUM(НАЧАЛО:КОНЕЦ!J21)","v":0}]
[16,"Общеобразовательные организации, имеющие спортивное оборудование и инвентарь для занятий лыжной подготовкой",{"$nulls":6},{"$f":"SUM(НАЧАЛО:КОНЕЦ!I22)","v":20},{"$f":"SUM(НАЧАЛО:КОНЕЦ!J22)","v":0}]
[17,"Общеобразовательные организации, имеющие спортивное оборудование и инвентарь для занятий плаванием",{"$nulls":6},{"$f":"SUM(НАЧАЛО:КОНЕЦ!I23)","v":0},{"$f":"SUM(НАЧАЛО:КОНЕЦ!J23)","v":0}]
[18,"Общеобразовательные организации, имеющие спортивное оборудование и инвентарь для занятий подвижными играми\nи организации спортивных мероприятий",{"$nulls":6},{"$f":"SUM(НАЧАЛО:КОНЕЦ!I24)","v":17},{"$f":"SUM(НАЧАЛО:КОНЕЦ!J24)","v":0}]
[19,"Общеобразовательные организации, имеющие спортивное оборудование и инвентарь для занятий спортивными\nединоборствами (самбо, дзюдо, иное)",{"$nulls":6},{"$f":"SUM(НАЧАЛО:КОНЕЦ!I25)","v":4},{"$f":"SUM(НАЧАЛО:КОНЕЦ!J25)","v":0}]
[20,"Имеется дополнительное вариативное оборудование и инвентарь",{"$nulls":6},{"$f":"SUM(НАЧАЛО:КОНЕЦ!I26)","v":4},{"$f":"SUM(НАЧАЛО:КОНЕЦ!J26)","v":0}]
[21,"Кабинет учителя физической культуры",{"$nulls":6},{"$f":"SUM(НАЧАЛО:КОНЕЦ!I27)","v":18},{"$f":"SUM(НАЧАЛО:КОНЕЦ!J27)","v":0}]
[22,"4. Организация урочной деятельности по учебному предмету «Физическая культура»"]
[23,"Общеобразовательные организации, в которых отведено на изучение учебного предмета «Физическая культура» в недельных учебных планах  \n3 часа",{"$nulls":4},"Общеобразовательные организации, в которых отведено на изучение учебного предмета «Физическая культура»\nв недельных учебных планах \n2 часа"]
[null,1,{"$nulls":4},2]
[24,{"$f":"SUM(НАЧАЛО:КОНЕЦ!B31)","v":23},{"$nulls":4},{"$f":"SUM(НАЧАЛО:КОНЕЦ!G31)","v":0}]
[25,"5. Организация внеурочной деятельности спортивно-оздоровительного /физкультурно-спортивного направления"]
[26,"Общеобразовательные организации, в которых\nобъём часов, отводимых на внеурочную деятельность, отсутствует",null,null,"Общеобразовательные организации, в которых объём часов, отводимых\nна внеурочную деятельность,\nпредусматривает не более 2-х часов в неделю",null,null,"Общеобразовательные организации, в которых объем часов, отводимых на внеурочную деятельность, предусматривает\nболее 2-х часов в неделю"]
[null,1,null,null,2,null,null,3]
[27,{"$f":"SUM(НАЧАЛО:КОНЕЦ!B35)","v":3},null,null,{"$f":"SUM(НАЧАЛО:КОНЕЦ!E35)","v":11},null,null,{"$f":"SUM(НАЧАЛО:КОНЕЦ!H35)","v":8}]
[28,"6. Общеобразовательные организации, использующие\nв рабочей программе часы на изучение раздела «Плавание»"]
[29,"Общеобразовательные организации, использующие в рабочей программе часы на изучение раздела «Плавание»"]
[30,{"$f":"SUM(НАЧАЛО:КОНЕЦ!B38)","v":65},null,null,{"$f":"SUM(НАЧАЛО:КОНЕЦ!E38)","v":0},null,null,{"$f":"SUM(НАЧАЛО:КОНЕЦ!H38)","v":0}]
[31,"7. Сведения об обучающихся в общеобразовательных организациях"]
[32,"Всего обучающихся:","Обучающиеся, отнесенные\nк основной группе здоровья","Обучающиеся, отнесённые к подготовительной группе здоровья","Обучающиеся, отнесённые к специальной группе здоровья «А»","Обучающиеся, отнесённые к специальной группе здоровья «Б»","Обучающиеся с ограниченными возможностями\nздоровья",null,"Обучающихся,\nимеющие группу\nинвалидности"]
[]
[]
[]
[]
[null,1,2,3,4,5,6,null,7]
[33,{"$f":"C46+D46+E46+F46+G46+I46","v":5284},{"$f":"SUM(НАЧАЛО:КОНЕЦ!C46)","v":4755},{"$f":"SUM(НАЧАЛО:КОНЕЦ!D46)","v":377},{"$f":"SUM(НАЧАЛО:КОНЕЦ!E46)","v":53},{"$f":"SUM(НАЧАЛО:КОНЕЦ!F46)","v":17},{"$f":"SUM(НАЧАЛО:КОНЕЦ!G46)","v":6},{"$f":"SUM(НАЧАЛО:КОНЕЦ!H46)","v":0},{"$f":"SUM(НАЧАЛО:КОНЕЦ!I46)","v":76},{"$f":"SUM(НАЧАЛО:КОНЕЦ!J46)","v":0},{"$f":"B46=G6","v":true}]
[34,"8. Обучающиеся, принявшие участие во Всероссийской олимпиаде школьников по учебному предмету\n«Физическая культура» "]
[35,"Этап Всероссийской олимпиады",{"$nulls":4},"Количество участников"]
[null,1,{"$nulls":4},2]
[36,"школьный",{"$nulls":4},{"$f":"SUM(НАЧАЛО:КОНЕЦ!G50)","v":1050},{"$f":"SUM(НАЧАЛО:КОНЕЦ!H50)","v":0},{"$f":"SUM(НАЧАЛО:КОНЕЦ!I50)","v":0},{"$f":"SUM(НАЧАЛО:КОНЕЦ!J50)","v":0}]
[37,"муниципальный",{"$nulls":4},{"$f":"SUM(НАЧАЛО:КОНЕЦ!G51)","v":173},{"$f":"SUM(НАЧАЛО:КОНЕЦ!H51)","v":0},{"$f":"SUM(НАЧАЛО:КОНЕЦ!I51)","v":0},{"$f":"SUM(НАЧАЛО:КОНЕЦ!J51)","v":0}]
[38,"региональный",{"$nulls":4},{"$f":"SUM(НАЧАЛО:КОНЕЦ!G52)","v":5},{"$f":"SUM(НАЧАЛО:КОНЕЦ!H52)","v":0},{"$f":"SUM(НАЧАЛО:КОНЕЦ!I52)","v":0},{"$f":"SUM(НАЧАЛО:КОНЕЦ!J52)","v":0}]
[39,"всероссийский",{"$nulls":4},{"$f":"SUM(НАЧАЛО:КОНЕЦ!G53)","v":2},{"$f":"SUM(НАЧАЛО:КОНЕЦ!H53)","v":0},{"$f":"SUM(НАЧАЛО:КОНЕЦ!I53)","v":0},{"$f":"SUM(НАЧАЛО:КОНЕЦ!J53)","v":0}]
[40,"9. Кадровый состав"]
[41,"Общее количество \nучителей физической культуры","Имеют профессиональное образование в области физической культуры и спорта",null,"Имеют высшую квалификационную категорию",null,"Имеют первую квалификационную категорию",null,"Прошедшие обучение по дополнительным профессиональным образовательным программам повышения квалификации, программам профессиональной переподготовки в 2019\\2020 учебном году"]
[null,null,"Высшее образование","Среднее профессиональное образование"]
[null,1,2,3,4,null,5,null,6]
[42,{"$f":"C58+D58","v":38},{"$f":"SUM(НАЧАЛО:КОНЕЦ!C58)","v":31},{"$f":"SUM(НАЧАЛО:КОНЕЦ!D58)","v":7},{"$f":"SUM(НАЧАЛО:КОНЕЦ!E58)","v":9},{"$f":"SUM(НАЧАЛО:КОНЕЦ!F58)","v":0},{"$f":"SUM(НАЧАЛО:КОНЕЦ!G58)","v":21},{"$f":"SUM(НАЧАЛО:КОНЕЦ!H58)","v":0},{"$f":"SUM(НАЧАЛО:КОНЕЦ!I58)","v":10},{"$f":"SUM(НАЧАЛО:КОНЕЦ!J58)","v":0}]
[]
["Контактное лицо: ___________________________________________ тел.: ________________________ e-mail: ___________________________",null,"методист","Гатина Л.Д.",null,"8(8555)8 3-02-69",null,"daniyalovna76@mail.ru"]
[null,"                                (должность, Фамилия, Имя, Отчество)"]
["_____________________________"]
["(руководитель уполномоченного органа исполнительной"]
["субъекта Российской Федерации)         ____________________        _____________________________    \"____\" _______________ 2020 г.",{"$nulls":3},"Л.Р. Печина",14,"декабря 2020 года  "]
[]
["                                                                      (подпись)                                                (расшифровка подписи)"]
[null,"                                                                                           М.П."]

{"sheet":"НАЧАЛО","index":1,"n_rows":8,"n_cols":5,"rows_kept":8,"merged":[[0,0,1,4],[2,0,3,0],[2,1,3,1],[2,2,3,2],[2,3,3,3],[2,4,3,4]]}
["Раздел 1. Сведения об общеобразовательных организациях"]
[]
[null,"№ строки","Общее количество общеобразовательных организаций (юр. лиц)","Количество общеобразовательных организаций, имеющих лицензию на право ведения образовательной деятельности по подвиду дополнительного образования \"дополнительное образование детей и взрослых\"","Количество общеобразовательных организаций (юр. лиц), реализующих программы дополнительного образования физкультурно-спортивной направленности"]
[]
[1,2,3,4,5]
["Всего","01",{"$f":"SUM(C7:C8)","v":0},{"$f":"SUM(D7:D8)","v":0},{"$f":"SUM(E7:E8)","v":0}]
["Из них в городских поселениях","02"]
["Из них в сельской местности","03"]

{"sheet":"1 шк ","index":2,"n_rows":58,"n_cols":11,"rows_kept":58,"merged":[[0,0,1,0],[0,1,1,9],[2,1,2,9],[3,0,4,0],[3,1,3,5],[3,6,3,9],[4,1,4,5],[4,6,4,9],[5,1,5,5],[5,6,5,9],[6,1,6,9],[7,0,9,0],[7,1,8,1],[7,2,8,2],[7,3,8,3],[7,4,8,4],[7,5,8,5],[7,6,8,6],[7,7,8,7],[7,8,8,8],[7,9,8,9],[11,1,11,9],[12,0,13,0],[12,1,12,7],[12,8,12,9],[13,1,13,7],[13,8,13,9],[14,1,14,7],[14,8,14,9],[15,1,15,7],[15,8,15,9],[16,1,16,7],[16,8,16,9],[17,1,17,7],[17,8,17,9],[18,1,18,7],[18,8,18,9],[19,1,19,7],[19,8,19,9],[20,1,20,7],[20,8,20,9],[21,1,21,7],[21,8,21,9],[22,1,22,7],[22,8,22,9],[23,1,23,7],[23,8,23,9],[24,1,24,7],[24,8,24,9],[25,1,25,7],[25,8,25,9],[26,1,26,7],[26,8,26,9],[27,1,27,9],[28,0,29,0],[28,1,28,5],[28,6,28,9],[29,1,29,5],[29,6,29,9],[30,1,30,5],[30,6,30,9],[31,1,31,9],[32,0,33,0],[32,1,32,3],[32,4,32,6],[32,7,32,9],[33,1,33,3],[33,4,33,6],[33,7,33,9],[34,1,34,3],[34,4,34,6],[34,7,34,9],[35,1,35,9],[36,1,36,9],[37,1,37,9],[38,1,38,9],[39,0,44,0],[39,1,43,1],[39,2,43,2],[39,3,43,3],[39,4,43,4],[39,5,43,5],[39,6,43,7],[39,8,43,9],[44,6,44,7],[44,8,44,9],[45,6,45,7],[45,8,45,9],[46,1,46,9],[47,0,48,0],[47,1,47,5],[47,6,47,9],[48,1,48,5],[48,6,48,9],[49,1,49,5],[49,6,49,9],[50,1,50,5],[50,6,50,9],[51,1,51,5],[51,6,51,9],[52,1,52,5],[52,6,52,9],[53,1,53,9],[54,0,56,0],[54,1,55,1],[54,2,54,3],[54,4,55,5],[54,6,55,7],[54,8,55,9],[56,4,56,5],[56,6,56,7],[56,8,56,9],[57,4,57,5],[57,6,57,7],[57,8,57,9]]}
["№ строки"," Мониторинг общеобразовательных организаций, реализующих общеобразовательные программы начального общего, основного общего и (или) среднего общего образования учебного предмета «Физическая культура» в 2019/2020 учебном году"]
[]
[1,"1. Общие сведения"]
[2,"Муниципальное бюджетное общеобразовательное учреждение \"Заинская средняя общеобразовательная школа №1\"",{"$nulls":4},"Общая численность \nобучающихся в общеобразовательной организации "]
[null,1,{"$nulls":4},2]
[3,{"$f":"COUNTA(B4)","v":1},{"$nulls":4},351]
[4,"2. Спортивные объекты общеобразовательной организации"]
[5,"Всего:","Спортивный зал\n24х12 м и более","Спортивный зал\n18х9 м и менее","Спортивный зал отсутствует","Зал для адаптивной физической культуры","Тренажёрный зал","Плавательный\nбассейн","Универсальная спортивная площадка","Площадка для подвижных игр"]
[]
[null,1,2,3,4,5,6,7,8,9]
[6,{"$f":"C11+D11+E11+F11+G11+H11+I11+J11","v":4},null,1,{"$nulls":4},1,2]
[7,"3.  Спортивное оборудование и инвентарь для организации общеобразовательной деятельности"]
[8,"Содержание раздела",{"$nulls":6},"ВСЕГО"]
[null,1,{"$nulls":6},2]
[9,"Общеобразовательная организация, имеющая спортивное оборудование и инвентарь для занятий футболом",{"$nulls":6},1]
[10,"Общеобразовательная организация, имеющая спортивное оборудование и инвентарь для занятий баскетболом",{"$nulls":6},1]
[11,"Общеобразовательная организация, имеющая спортивное оборудование и инвентарь для занятий волейболом",{"$nulls":6},1]
[12,"Общеобразовательная организация, имеющая спортивное оборудование и инвентарь для занятий гандболом",{"$nulls":6},1]
[13,"Общеобразовательная организация, имеющая спортивное оборудование и инвентарь для занятий\nфитнесом, общефизической подготовкой",{"$nulls":6},0]
[14,"Общеобразовательная организация, имеющая спортивное оборудование и инвентарь для занятий спортивной\nгимнастикой",{"$nulls":6},0]
[15,"Общеобразовательная организация, имеющая спортивное оборудование и инвентарь для занятий лёгкой атлетикой",{"$nulls":6},1]
[16,"Общеобразовательная организация, имеющая спортивное оборудование и инвентарь для занятий лыжной подготовкой",{"$nulls":6},1]
[17,"Общеобразовательная организация, имеющая спортивное оборудование и инвентарь для занятий плаванием",{"$nulls":6},0]
[18,"Общеобразовательная организация, имеющая спортивное оборудование и инвентарь для занятий подвижными играми\nи организации спортивных мероприятий",{"$nulls":6},1]
[19,"Общеобразовательная организация, имеющая спортивное оборудование и инвентарь для занятий спортивными\nединоборствами (самбо, дзюдо, иное)",{"$nulls":6},0]
[20,"Имеется дополнительное вариативное оборудование и инвентарь",{"$nulls":6},1]
[21,"Кабинет учителя физической культуры",{"$nulls":6},1]
[22,"4. Организация урочной деятельности по учебному предмету «Физическая культура»"]
[23,"Общеобразовательная организация, в которой отведено на изучение учебного предмета «Физическая культура» в недельных учебных планах \n3 часа",{"$nulls":4},"Общеобразовательная организация, в которой отведено на изучение учебного предмета «Физическая культура»\nв недельных учебных планах  \n2 часа"]
[null,1,{"$nulls":4},2]
[24,1]
[25,"5. Организация внеурочной деятельности спортивно-оздоровительного /физкультурно-спортивного направления"]
[26,"Общеобразовательная организация, в которой\nобъём часов, отводимых на внеурочную деятельность, отсутствует",null,null,"Общеобразовательная организация, в которой объём часов, отводимых\nна внеурочную деятельность,\nпредусматривает не более 2-х часов в неделю",null,null,"Общеобразовательная организация, в которой объём часов, отводимых на внеурочную деятельность, предусматривает\nболее 2-х часов в неделю"]
[null,1,null,null,2,null,null,3]
[27,0,{"$nulls":5},1]
[28,"6. Общеобразовательная организация, использующая\nв рабочей программе часы на изучение раздела «Плавание»"]
[29,"Общеобразовательная организация, использующая в рабочей программе учебные \nчасы на изучение раздела «Плавание»"]
[30]
[31,"7. Сведения об обучающихся в общеобразовательной организации"]
[32,"Всего обучающихся:","Обучающиеся, отнесенные\nк основной группе здоровья","Обучающиеся, отнесённые к подготовительной группе здоровья","Обучающиеся, отнесённые к специальной группе здоровья «А»","Обучающиеся, отнесённые к специальной группе здоровья «Б»","Обучающиеся с ограниченными возможностями\nздоровья",null,"Обучающихся,\nимеющие группу\nинвалидности"]
[]
[]
[]
[]
[null,1,2,3,4,5,6,null,7]
[33,{"$f":"C46+D46+E46+F46+G46+I46","v":351},309,31,8,{"$nulls":3},3,null,{"$f":"B46=G6","v":true}]
[34,"8. Обучающиеся, принявшие участие во Всероссийской олимпиаде школьников по учебному предмету\n«Физическая культура» "]
[35,"Этап Всероссийской олимпиады",{"$nulls":4},"Количество участников"]
[null,1,{"$nulls":4},2]
[36,"школьный",{"$nulls":4},46]
[37,"муниципальный",{"$nulls":4},6]
[38,"региональный",{"$nulls":4},0]
[39,"всероссийский",{"$nulls":4},0]
[40,"9. Кадровый состав"]
[41,"Общее количество \nучителей физической культуры","Имеют профессиональное образование в области физической культуры и спорта",null,"Имеют высшую квалификационную категорию",null,"Имеют первую квалификационную категорию",null,"Прошедшие обучение по дополнительным профессиональным образовательным программам повышения квалификации, программам профессиональной переподготовки в 2019\\2020 учебном году"]
[null,null,"Высшее образование","Среднее профессиональное образование"]
[null,1,2,3,4,null,5,null,6]
[42,{"$f":"C58+D58","v":2},1,1,1]

{"sheet":"2 шк","index":3,"n_rows":58,"n_cols":11,"rows_kept":58,"merged":[[0,0,1,0],[0,1,1,9],[2,1,2,9],[3,0,4,0],[3,1,3,5],[3,6,3,9],[4,1,4,5],[4,6,4,9],[5,1,5,5],[5,6,5,9],[6,1,6,9],[7,0,9,0],[7,1,8,1],[7,2,8,2],[7,3,8,3],[7,4,8,4],[7,5,8,5],[7,6,8,6],[7,7,8,7],[7,8,8,8],[7,9,8,9],[11,1,11,9],[12,0,13,0],[12,1,12,7],[12,8,12,9],[13,1,13,7],[13,8,13,9],[14,1,14,7],[14,8,14,9],[15,1,15,7],[15,8,15,9],[16,1,16,7],[16,8,16,9],[17,1,17,7],[17,8,17,9],[18,1,18,7],[18,8,18,9],[19,1,19,7],[19,8,19,9],[20,1,20,7],[20,8,20,9],[21,1,21,7],[21,8,21,9],[22,1,22,7],[22,8,22,9],[23,1,23,7],[23,8,23,9],[24,1,24,7],[24,8,24,9],[25,1,25,7],[25,8,25,9],[26,1,26,7],[26,8,26,9],[27,1,27,9],[28,0,29,0],[28,1,28,5],[28,6,28,9],[29,1,29,5],[29,6,29,9],[30,1,30,5],[30,6,30,9],[31,1,31,9],[32,0,33,0],[32,1,32,3],[32,4,32,6],[32,7,32,9],[33,1,33,3],[33,4,33,6],[33,7,33,9],[34,1,34,3],[34,4,34,6],[34,7,34,9],[35,1,35,9],[36,1,36,9],[37,1,37,9],[38,1,38,9],[39,0,44,0],[39,1,43,1],[39,2,43,2],[39,3,43,3],[39,4,43,4],[39,5,43,5],[39,6,43,7],[39,8,43,9],[44,6,44,7],[44,8,44,9],[45,6,45,7],[45,8,45,9],[46,1,46,9],[47,0,48,0],[47,1,47,5],[47,6,47,9],[48,1,48,5],[48,6,48,9],[49,1,49,5],[49,6,49,9],[50,1,50,5],[50,6,50,9],[51,1,51,5],[51,6,51,9],[52,1,52,5],[52,6,52,9],[53,1,53,9],[54,0,56,0],[54,1,55,1],[54,2,54,3],[54,4,55,5],[54,6,55,7],[54,8,55,9],[56,4,56,5],[56,6,56,7],[56,8,56,9],[57,4,57,5],[57,6,57,7],[57,8,57,9]]}
["№ строки"," Мониторинг общеобразовательных организаций, реализующих общеобразовательные программы начального общего, основного общего и (или) среднего общего образования учебного предмета «Физическая культура» в 2019/2020 учебном году"]
[]
[1,"1. Общие сведения"]
[2,"Муниципальное бюджетное общеобразовательное учреждение «Заинская средняя общеобразовательная школа №2» Заинского муниципального района Республики Татарстан",{"$nulls":4},"Общая численность \nобучающихся в общеобразовательной организации "]
[null,1,{"$nulls":4},2]
[3,{"$f":"COUNTA(B4)","v":1},{"$nulls":4},523]
[4,"2. Спортивные объекты общеобразовательной организации"]
[5,"Всего:","Спортивный зал\n24х12 м и более","Спортивный зал\n18х9 м и менее","Спортивный зал отсутствует","Зал для адаптивной физической культуры","Тренажёрный зал","Плавательный\nбассейн","Универсальная спортивная площадка","Площадка для подвижных игр"]
[]
[null,1,2,3,4,5,6,7,8,9]
[6,{"$f":"C11+D11+E11+F11+G11+H11+I11+J11","v":3},1,{"$nulls":5},1,1]
[7,"3.  Спортивное оборудование и инвентарь для организации общеобразовательной деятельности"]
[8,"Содержание раздела",{"$nulls":6},"ВСЕГО"]
[null,1,{"$nulls":6},2]
[9,"Общеобразовательная организация, имеющая спортивное оборудование и инвентарь для занятий футболом",{"$nulls":6},0]
[10,"Общеобразовательная организация, имеющая спортивное оборудование и инвентарь для занятий баскетболом",{"$nulls":6},1]
[11,"Общеобразовательная организация, имеющая спортивное оборудование и инвентарь для занятий волейболом",{"$nulls":6},0]
[12,"Общеобразовательная организация, имеющая спортивное оборудование и инвентарь для занятий гандболом",{"$nulls":6},0]
[13,"Общеобразовательная организация, имеющая спортивное оборудование и инвентарь для занятий\nфитнесом, общефизической подготовкой",{"$nulls":6},0]
[14,"Общеобразовательная организация, имеющая спортивное оборудование и инвентарь для занятий спортивной\nгимнастикой",{"$nulls":6},0]
[15,"Общеобразовательная организация, имеющая спортивное оборудование и инвентарь для занятий лёгкой атлетикой",{"$nulls":6},0]
[16,"Общеобразовательная организация, имеющая спортивное оборудование и инвентарь для занятий лыжной подготовкой",{"$nulls":6},1]
[17,"Общеобразовательная организация, имеющая спортивное оборудование и инвентарь для занятий плаванием",{"$nulls":6},0]
[18,"Общеобразовательная организация, имеющая спортивное оборудование и инвентарь для занятий подвижными играми\nи организации спортивных мероприятий",{"$nulls":6},1]
[19,"Общеобразовательная организация, имеющая спортивное оборудование и инвентарь для занятий спортивными\nединоборствами (самбо, дзюдо, иное)",{"$nulls":6},0]
[20,"Имеется дополнительное вариативное оборудование и инвентарь",{"$nulls":6},0]
[21,"Кабинет учителя физической культуры",{"$nulls":6},1]
[22,"4. Организация урочной деятельности по учебному предмету «Физическая культура»"]
[23,"Общеобразовательная организация, в которой отведено на изучение учебного предмета «Физическая культура» в недельных учебных планах \n3 часа",{"$nulls":4},"Общеобразовательная организация, в которой отведено на изучение учебного предмета «Физическая культура»\nв недельных учебных планах  \n2 часа"]
[null,1,{"$nulls":4},2]
[24,1,{"$nulls":4},0]
[25,"5. Организация внеурочной деятельности спортивно-оздоровительного /физкультурно-спортивного направления"]
[26,"Общеобразовательная организация, в которой\nобъём часов, отводимых на внеурочную деятельность, отсутствует",null,null,"Общеобразовательная организация, в которой объём часов, отводимых\nна внеурочную деятельность,\nпредусматривает не более 2-х часов в неделю",null,null,"Общеобразовательная организация, в которой объём часов, отводимых на внеурочную деятельность, предусматривает\nболее 2-х часов в неделю"]
[null,1,null,null,2,null,null,3]
[27,1,null,null,0,null,null,0]
[28,"6. Общеобразовательная организация, использующая\nв рабочей программе часы на изучение раздела «Плавание»"]
[29,"Общеобразовательная организация, использующая в рабочей программе учебные \nчасы на изучение раздела «Плавание»"]
[30,3]
[31,"7. Сведения об обучающихся в общеобразовательной организации"]
[32,"Всего обучающихся:","Обучающиеся, отнесенные\nк основной группе здоровья","Обучающиеся, отнесённые к подготовительной группе здоровья","Обучающиеся, отнесённые к специальной группе здоровья «А»","Обучающиеся, отнесённые к специальной группе здоровья «Б»","Обучающиеся с ограниченными возможностями\nздоровья",null,"Обучающихся,\nимеющие группу\nинвалидности"]
[]
[]
[]
[]
[null,1,2,3,4,5,6,null,7]
[33,{"$f":"C46+D46+E46+F46+G46+I46","v":523},458,57,7,0,0,null,1,null,{"$f":"B46=G6","v":true}]
[34,"8. Обучающиеся, принявшие участие во Всероссийской олимпиаде школьников по учебному предмету\n«Физическая культура» "]
[35,"Этап Всероссийской олимпиады",{"$nulls":4},"Количество участников"]
[null,1,{"$nulls":4},2]
[36,"школьный",{"$nulls":4},75]
[37,"муниципальный",{"$nulls":4},8]
[38,"региональный",{"$nulls":4},0]
[39,"всероссийский",{"$nulls":4},0]
[40,"9. Кадровый состав"]
[41,"Общее количество \nучителей физической культуры","Имеют профессиональное образование в области физической культуры и спорта",null,"Имеют высшую квалификационную категорию",null,"Имеют первую квалификационную категорию",null,"Прошедшие обучение по дополнительным профессиональным образовательным программам повышения квалификации, программам профессиональной переподготовки в 2019\\2020 учебном году"]
[null,null,"Высшее образование","Среднее профессиональное образование"]
[null,1,2,3,4,null,5,null,6]
[42,{"$f":"C58+D58","v":3},3,0,0,null,2,null,1]

{"sheet":"3 шк","index":4,"n_rows":58,"n_cols":11,"rows_kept":58,"merged":[[0,0,1,0],[0,1,1,9],[2,1,2,9],[3,0,4,0],[3,1,3,5],[3,6,3,9],[4,1,4,5],[4,6,4,9],[5,1,5,5],[5,6,5,9],[6,1,6,9],[7,0,9,0],[7,1,8,1],[7,2,8,2],[7,3,8,3],[7,4,8,4],[7,5,8,5],[7,6,8,6],[7,7,8,7],[7,8,8,8],[7,9,8,9],[11,1,11,9],[12,0,13,0],[12,1,12,7],[12,8,12,9],[13,1,13,7],[13,8,13,9],[14,1,14,7],[14,8,14,9],[15,1,15,7],[15,8,15,9],[16,1,16,7],[16,8,16,9],[17,1,17,7],[17,8,17,9],[18,1,18,7],[18,8,18,9],[19,1,19,7],[19,8,19,9],[20,1,20,7],[20,8,20,9],[21,1,21,7],[21,8,21,9],[22,1,22,7],[22,8,22,9],[23,1,23,7],[23,8,23,9],[24,1,24,7],[24,8,24,9],[25,1,25,7],[25,8,25,9],[26,1,26,7],[26,8,26,9],[27,1,27,9],[28,0,29,0],[28,1,28,5],[28,6,28,9],[29,1,29,5],[29,6,29,9],[30,1,30,5],[30,6,30,9],[31,1,31,9],[32,0,33,0],[32,1,32,3],[32,4,32,6],[32,7,32,9],[33,1,33,3],[33,4,33,6],[33,7,33,9],[34,1,34,3],[34,4,34,6],[34,7,34,9],[35,1,35,9],[36,1,36,9],[37,1,37,9],[38,1,38,9],[39,0,44,0],[39,1,43,1],[39,2,43,2],[39,3,43,3],[39,4,43,4],[39,5,43,5],[39,6,43,7],[39,8,43,9],[44,6,44,7],[44,8,44,9],[45,6,45,7],[45,8,45,9],[46,1,46,9],[47,0,48,0],[47,1,47,5],[47,6,47,9],[48,1,48,5],[48,6,48,9],[49,1,49,5],[49,6,49,9],[50,1,50,5],[50,6,50,9],[51,1,51,5],[51,6,51,9],[52,1,52,5],[52,6,52,9],[53,1,53,9],[54,0,56,0],[54,1,55,1],[54,2,54,3],[54,4,55,5],[54,6,55,7],[54,8,55,9],[56,4,56,5],[56,6,56,7],[56,8,56,9],[57,4,57,5],[57,6,57,7],[57,8,57,9]]}
["№ строки"," Мониторинг общеобразовательных организаций, реализующих общеобразовательные программы начального общего, основного общего и (или) среднего общего образования учебного предмета «Физическая культура» в 2019/2020 учебном году"]
[]
[1,"1. Общие сведения"]
[2,"Муниципальное бюджетное общеобразовательное учреждение \"Заинская среднеобщеобразовательная школа №4\" Заинского муниципального района Республикик Татарстан",{"$nulls":4},"Общая численность \nобучающихся в общеобразовательной организации "]
[null,1,{"$nulls":4},2]
[3,{"$f":"COUNTA(B4)","v":1},{"$nulls":4},449]
[4,"2. Спортивные объекты общеобразовательной организации"]
[5,"Всего:","Спортивный зал\n24х12 м и более","Спортивный зал\n18х9 м и менее","Спортивный зал отсутствует","Зал для адаптивной физической культуры","Тренажёрный зал","Плавательный\nбассейн","Универсальная спортивная площадка","Площадка для подвижных игр"]
[]
[null,1,2,3,4,5,6,7,8,9]
[6,{"$f":"C11+D11+E11+F11+G11+H11+I11+J11","v":2},null,1,{"$nulls":4},1]
[7,"3.  Спортивное оборудование и инвентарь для организации общеобразовательной деятельности"]
[8,"Содержание раздела",{"$nulls":6},"ВСЕГО"]
[null,1,{"$nulls":6},2]
[9,"Общеобразовательная организация, имеющая спортивное оборудование и инвентарь для занятий футболом"]
[10,"Общеобразовательная организация, имеющая спортивное оборудование и инвентарь для занятий баскетболом",{"$nulls":6},1]
[11,"Общеобразовательная организация, имеющая спортивное оборудование и инвентарь для занятий волейболом"]
[12,"Общеобразовательная организация, имеющая спортивное оборудование и инвентарь для занятий гандболом"]
[13,"Общеобразовательная организация, имеющая спортивное оборудование и инвентарь для занятий\nфитнесом, общефизической подготовкой"]
[14,"Общеобразовательная организация, имеющая спортивное оборудование и инвентарь для занятий спортивной\nгимнастикой",{"$nulls":6},1]
[15,"Общеобразовательная организация, имеющая спортивное оборудование и инвентарь для занятий лёгкой атлетикой"]
[16,"Общеобразовательная организация, имеющая спортивное оборудование и инвентарь для занятий лыжной подготовкой",{"$nulls":6},1]
[17,"Общеобразовательная организация, имеющая спортивное оборудование и инвентарь для занятий плаванием"]
[18,"Общеобразовательная организация, имеющая спортивное оборудование и инвентарь для занятий подвижными играми\nи организации спортивных мероприятий",{"$nulls":6},1]
[19,"Общеобразовательная организация, имеющая спортивное оборудование и инвентарь для занятий спортивными\nединоборствами (самбо, дзюдо, иное)"]
[20,"Имеется дополнительное вариативное оборудование и инвентарь"]
[21,"Кабинет учителя физической культуры"]
[22,"4. Организация урочной деятельности по учебному предмету «Физическая культура»"]
[23,"Общеобразовательная организация, в которой отведено на изучение учебного предмета «Физическая культура» в недельных учебных планах \n3 часа",{"$nulls":4},"Общеобразовательная организация, в которой отведено на изучение учебного предмета «Физическая культура»\nв недельных учебных планах  \n2 часа"]
[null,1,{"$nulls":4},2]
[24,1]
[25,"5. Организация внеурочной деятельности спортивно-оздоровительного /физкультурно-спортивного направления"]
[26,"Общеобразовательная организация, в которой\nобъём часов, отводимых на внеурочную деятельность, отсутствует",null,null,"Общеобразовательная организация, в которой объём часов, отводимых\nна внеурочную деятельность,\nпредусматривает не более 2-х часов в неделю",null,null,"Общеобразовательная организация, в которой объём часов, отводимых на внеурочную деятельность, предусматривает\nболее 2-х часов в неделю"]
[null,1,null,null,2,null,null,3]
[27,{"$nulls":6},1]
[28,"6. Общеобразовательная организация, использующая\nв рабочей программе часы на изучение раздела «Плавание»"]
[29,"Общеобразовательная организация, использующая в рабочей программе учебные \nчасы на изучение раздела «Плавание»"]
[30,3]
[31,"7. Сведения об обучающихся в общеобразовательной организации"]
[32,"Всего обучающихся:","Обучающиеся, отнесенные\nк основной группе здоровья","Обучающиеся, отнесённые к подготовительной группе здоровья","Обучающиеся, отнесённые к специальной группе здоровья «А»","Обучающиеся, отнесённые к специальной группе здоровья «Б»","Обучающиеся с ограниченными возможностями\nздоровья",null,"Обучающихся,\nимеющие группу\nинвалидности"]
[]
[]
[]
[]
[null,1,2,3,4,5,6,null,7]
[33,{"$f":"C46+D46+E46+F46+G46+I46","v":449},361,70,3,10,0,null,5,null,{"$f":"B46=G6","v":true}]
[34,"8. Обучающиеся, принявшие участие во Всероссийской олимпиаде школьников по учебному предмету\n«Физическая культура» "]
[35,"Этап Всероссийской олимпиады",{"$nulls":4},"Количество участников"]
[null,1,{"$nulls":4},2]
[36,"школьный",{"$nulls":4},120]
[37,"муниципальный",{"$nulls":4},20]
[38,"региональный",{"$nulls":4},1]
[39,"всероссийский",{"$nulls":4},0]
[40,"9. Кадровый состав"]
[41,"Общее количество \nучителей физической культуры","Имеют профессиональное образование в области физической культуры и спорта",null,"Имеют высшую квалификационную категорию",null,"Имеют первую квалификационную категорию",null,"Прошедшие обучение по дополнительным профессиональным образовательным программам повышения квалификации, программам профессиональной переподготовки в 2019\\2020 учебном году"]
[null,null,"Высшее образование","Среднее профессиональное образование"]
[null,1,2,3,4,null,5,null,6]
[42,{"$f":"C58+D58","v":2},1,1,1,{"$nulls":3},1]

{"sheet":"4 шк","index":5,"n_rows":58,"n_cols":11,"rows_kept":58,"merged":[[0,0,1,0],[0,1,1,9],[2,1,2,9],[3,0,4,0],[3,1,3,5],[3,6,3,9],[4,1,4,5],[4,6,4,9],[5,1,5,5],[5,6,5,9],[6,1,6,9],[7,0,9,0],[7,1,8,1],[7,2,8,2],[7,3,8,3],[7,4,8,4],[7,5,8,5],[7,6,8,6],[7,7,8,7],[7,8,8,8],[7,9,8,9],[11,1,11,9],[12,0,13,0],[12,1,12,7],[12,8,12,9],[13,1,13,7],[13,8,13,9],[14,1,14,7],[14,8,14,9],[15,1,15,7],[15,8,15,9],[16,1,16,7],[16,8,16,9],[17,1,17,7],[17,8,17,9],[18,1,18,7],[18,8,18,9],[19,1,19,7],[19,8,19,9],[20,1,20,7],[20,8,20,9],[21,1,21,7],[21,8,21,9],[22,1,22,7],[22,8,22,9],[23,1,23,7],[23,8,23,9],[24,1,24,7],[24,8,24,9],[25,1,25,7],[25,8,25,9],[26,1,26,7],[26,8,26,9],[27,1,27,9],[28,0,29,0],[28,1,28,5],[28,6,28,9],[29,1,29,5],[29,6,29,9],[30,1,30,5],[30,6,30,9],[31,1,31,9],[32,0,33,0],[32,1,32,3],[32,4,32,6],[32,7,32,9],[33,1,33,3],[33,4,33,6],[33,7,33,9],[34,1,34,3],[34,4,34,6],[34,7,34,9],[35,1,35,9],[36,1,36,9],[37,1,37,9],[38,1,38,9],[39,0,44,0],[39,1,43,1],[39,2,43,2],[39,3,43,3],[39,4,43,4],[39,5,43,5],[39,6,43,7],[39,8,43,9],[44,6,44,7],[44,8,44,9],[45,6,45,7],[45,8,45,9],[46,1,46,9],[47,0,48,0],[47,1,47,5],[47,6,47,9],[48,1,48,5],[48,6,48,9],[49,1,49,5],[49,6,49,9],[50,1,50,5],[50,6,50,9],[51,1,51,5],[51,6,51,9],[52,1,52,5],[52,6,52,9],[53,1,53,9],[54,0,56,0],[54,1,55,1],[54,2,54,3],[54,4,55,5],[54,6,55,7],[54,8,55,9],[56,4,56,5],[56,6,56,7],[56,8,56,9],[57,4,57,5],[57,6,57,7],[57,8,57,9]]}
["№ строки"," Мониторинг общеобразовательных организаций, реализующих общеобразовательные программы начального общего, основного общего и (или) среднего общего образования учебного предмета «Физическая культура» в 2019/2020 учебном году"]
[]
[1,"1. Общие сведения"]
[2,"Муниципальное бюджетное общеобразовательное учреждение \"Заинская среднеобщеобразовательная школа №4\" Заинского муниципальгорайона Республикик Татарстан",{"$nulls":4},"Общая численность \nобучающихся в общеобразовательной организации "]
[null,1,{"$nulls":4},2]
[3,{"$f":"COUNTA(B4)","v":1},{"$nulls":4},643]
[4,"2. Спортивные объекты общеобразовательной организации"]
[5,"Всего:","Спортивный зал\n24х12 м и более","Спортивный зал\n18х9 м и менее","Спортивный зал отсутствует","Зал для адаптивной физической культуры","Тренажёрный зал","Плавательный\nбассейн","Универсальная спортивная площадка","Площадка для подвижных игр"]
[]
[null,1,2,3,4,5,6,7,8,9]
[6,{"$f":"C11+D11+E11+F11+G11+H11+I11+J11","v":4},2,0,0,0,0,0,1,1]
[7,"3.  Спортивное оборудование и инвентарь для организации общеобразовательной деятельности"]
[8,"Содержание раздела",{"$nulls":6},"ВСЕГО"]
[null,1,{"$nulls":6},2]
[9,"Общеобразовательная организация, имеющая спортивное оборудование и инвентарь для занятий футболом",{"$nulls":6},1]
[10,"Общеобразовательная организация, имеющая спортивное оборудование и инвентарь для занятий баскетболом",{"$nulls":6},1]
[11,"Общеобразовательная организация, имеющая спортивное оборудование и инвентарь для занятий волейболом",{"$nulls":6},1]
[12,"Общеобразовательная организация, имеющая спортивное оборудование и инвентарь для занятий гандболом",{"$nulls":6},0]
[13,"Общеобразовательная организация, имеющая спортивное оборудование и инвентарь для занятий\nфитнесом, общефизической подготовкой",{"$nulls":6},1]
[14,"Общеобразовательная организация, имеющая спортивное оборудование и инвентарь для занятий спортивной\nгимнастикой",{"$nulls":6},0]
[15,"Общеобразовательная организация, имеющая спортивное оборудование и инвентарь для занятий лёгкой атлетикой",{"$nulls":6},1]
[16,"Общеобразовательная организация, имеющая спортивное оборудование и инвентарь для занятий лыжной подготовкой",{"$nulls":6},1]
[17,"Общеобразовательная организация, имеющая спортивное оборудование и инвентарь для занятий плаванием",{"$nulls":6},0]
[18,"Общеобразовательная организация, имеющая спортивное оборудование и инвентарь для занятий подвижными играми\nи организации спортивных мероприятий",{"$nulls":6},1]
[19,"Общеобразовательная организация, имеющая спортивное оборудование и инвентарь для занятий спортивными\nединоборствами (самбо, дзюдо, иное)",{"$nulls":6},0]
[20,"Имеется дополнительное вариативное оборудование и инвентарь",{"$nulls":6},1]
[21,"Кабинет учителя физической культуры",{"$nulls":6},1]
[22,"4. Организация урочной деятельности по учебному предмету «Физическая культура»"]
[23,"Общеобразовательная организация, в которой отведено на изучение учебного предмета «Физическая культура» в недельных учебных планах \n3 часа",{"$nulls":4},"Общеобразовательная организация, в которой отведено на изучение учебного предмета «Физическая культура»\nв недельных учебных планах  \n2 часа"]
[null,1,{"$nulls":4},2]
[24,1]
[25,"5. Организация внеурочной деятельности спортивно-оздоровительного /физкультурно-спортивного направления"]
[26,"Общеобразовательная организация, в которой\nобъём часов, отводимых на внеурочную деятельность, отсутствует",null,null,"Общеобразовательная организация, в которой объём часов, отводимых\nна внеурочную деятельность,\nпредусматривает не более 2-х часов в неделю",null,null,"Общеобразовательная организация, в которой объём часов, отводимых на внеурочную деятельность, предусматривает\nболее 2-х часов в неделю"]
[null,1,null,null,2,null,null,3]
[27,0,null,null,0,null,null,1]
[28,"6. Общеобразовательная организация, использующая\nв рабочей программе часы на изучение раздела «Плавание»"]
[29,"Общеобразовательная организация, использующая в рабочей программе учебные \nчасы на изучение раздела «Плавание»"]
[30,13]
[31,"7. Сведения об обучающихся в общеобразовательной организации"]
[32,"Всего обучающихся:","Обучающиеся, отнесенные\nк основной группе здоровья","Обучающиеся, отнесённые к подготовительной группе здоровья","Обучающиеся, отнесённые к специальной группе здоровья «А»","Обучающиеся, отнесённые к специальной группе здоровья «Б»","Обучающиеся с ограниченными возможностями\nздоровья",null,"Обучающихся,\nимеющие группу\nинвалидности"]
[]
[]
[]
[]
[null,1,2,3,4,5,6,null,7]
[33,{"$f":"C46+D46+E46+F46+G46+I46","v":643},621,17,4,0,0,null,1,null,{"$f":"B46=G6","v":true}]
[34,"8. Обучающиеся, принявшие участие во Всероссийской олимпиаде школьников по учебному предмету\n«Физическая культура» "]
[35,"Этап Всероссийской олимпиады",{"$nulls":4},"Количество участников"]
[null,1,{"$nulls":4},2]
[36,"школьный",{"$nulls":4},134]
[37,"муниципальный",{"$nulls":4},29]
[38,"региональный",{"$nulls":4},2]
[39,"всероссийский",{"$nulls":4},1]
[40,"9. Кадровый состав"]
[41,"Общее количество \nучителей физической культуры","Имеют профессиональное образование в области физической культуры и спорта",null,"Имеют высшую квалификационную категорию",null,"Имеют первую квалификационную категорию",null,"Прошедшие обучение по дополнительным профессиональным образовательным программам повышения квалификации, программам профессиональной переподготовки в 2019\\2020 учебном году"]
[null,null,"Высшее образование","Среднее профессиональное образование"]
[null,1,2,3,4,null,5,null,6]
[42,{"$f":"C58+D58","v":3},2,1,1,null,1,null,0]

{"sheet":"5 шк","index":6,"n_rows":58,"n_cols":11,"rows_kept":58,"merged":[[0,0,1,0],[0,1,1,9],[2,1,2,9],[3,0,4,0],[3,1,3,5],[3,6,3,9],[4,1,4,5],[4,6,4,9],[5,1,5,5],[5,6,5,9],[6,1,6,9],[7,0,9,0],[7,1,8,1],[7,2,8,2],[7,3,8,3],[7,4,8,4],[7,5,8,5],[7,6,8,6],[7,7,8,7],[7,8,8,8],[7,9,8,9],[11,1,11,9],[12,0,13,0],[12,1,12,7],[12,8,12,9],[13,1,13,7],[13,8,13,9],[14,1,14,7],[14,8,14,9],[15,1,15,7],[15,8,15,9],[16,1,16,7],[16,8,16,9],[17,1,17,7],[17,8,17,9],[18,1,18,7],[18,8,18,9],[19,1,19,7],[19,8,19,9],[20,1,20,7],[20,8,20,9],[21,1,21,7],[21,8,21,9],[22,1,22,7],[22,8,22,9],[23,1,23,7],[23,8,23,9],[24,1,24,7],[24,8,24,9],[25,1,25,7],[25,8,25,9],[26,1,26,7],[26,8,26,9],[27,1,27,9],[28,0,29,0],[28,1,28,5],[28,6,28,9],[29,1,29,5],[29,6,29,9],[30,1,30,5],[30,6,30,9],[31,1,31,9],[32,0,33,0],[32,1,32,3],[32,4,32,6],[32,7,32,9],[33,1,33,3],[33,4,33,6],[33,7,33,9],[34,1,34,3],[34,4,34,6],[34,7,34,9],[35,1,35,9],[36,1,36,9],[37,1,37,9],[38,1,38,9],[39,0,44,0],[39,1,43,1],[39,2,43,2],[39,3,43,3],[39,4,43,4],[39,5,43,5],[39,6,43,7],[39,8,43,9],[44,6,44,7],[44,8,44,9],[45,6,45,7],[45,8,45,9],[46,1,46,9],[47,0,48,0],[47,1,47,5],[47,6,47,9],[48,1,48,5],[48,6,48,9],[49,1,49,5],[49,6,49,9],[50,1,50,5],[50,6,50,9],[51,1,51,5],[51,6,51,9],[52,1,52,5],[52,6,52,9],[53,1,53,9],[54,0,56,0],[54,1,55,1],[54,2,54,3],[54,4,55,5],[54,6,55,7],[54,8,55,9],[56,4,56,5],[56,6,56,7],[56,8,56,9],[57,4,57,5],[57,6,57,7],[57,8,57,9]]}
["№ строки"," Мониторинг общеобразовательных организаций, реализующих общеобразовательные программы начального общего, основного общего и (или) среднего общего образования учебного предмета «Физическая культура» в 2019/2020 учебном году"]
[]
[1,"1. Общие сведения"]
[2,"Муниципальное бюджетное общеобразовательное учреждение \" Заинская основная общеобразовательная школа №5\" Заинского муниципального района Республики Татарстан",{"$nulls":4},"Общая численность \nобучающихся в общеобразовательной организации "]
[null,1,{"$nulls":4},2]
[3,{"$f":"COUNTA(B4)","v":1},{"$nulls":4},162]
[4,"2. Спортивные объекты общеобразовательной организации"]
[5,"Всего:","Спортивный зал\n24х12 м и более","Спортивный зал\n18х9 м и менее","Спортивный зал отсутствует","Зал для адаптивной физической культуры","Тренажёрный зал","Плавательный\nбассейн","Универсальная спортивная площадка","Площадка для подвижных игр"]
[]
[null,1,2,3,4,5,6,7,8,9]
[6,{"$f":"C11+D11+E11+F11+G11+H11+I11+J11","v":2},0,1,0,0,0,0,1,0]
[7,"3.  Спортивное оборудование и инвентарь для организации общеобразовательной деятельности"]
[8,"Содержание раздела",{"$nulls":6},"ВСЕГО"]
[null,1,{"$nulls":6},2]
[9,"Общеобразовательная организация, имеющая спортивное оборудование и инвентарь для занятий футболом",{"$nulls":6},1]
[10,"Общеобразовательная организация, имеющая спортивное оборудование и инвентарь для занятий баскетболом",{"$nulls":6},1]
[11,"Общеобразовательная организация, имеющая спортивное оборудование и инвентарь для занятий волейболом",{"$nulls":6},1]
[12,"Общеобразовательная организация, имеющая спортивное оборудование и инвентарь для занятий гандболом",{"$nulls":6},0]
[13,"Общеобразовательная организация, имеющая спортивное оборудование и инвентарь для занятий\nфитнесом, общефизической подготовкой",{"$nulls":6},0]
[14,"Общеобразовательная организация, имеющая спортивное оборудование и инвентарь для занятий спортивной\nгимнастикой",{"$nulls":6},0]
[15,"Общеобразовательная организация, имеющая спортивное оборудование и инвентарь для занятий лёгкой атлетикой",{"$nulls":6},1]
[16,"Общеобразовательная организация, имеющая спортивное оборудование и инвентарь для занятий лыжной подготовкой",{"$nulls":6},1]
[17,"Общеобразовательная организация, имеющая спортивное оборудование и инвентарь для занятий плаванием",{"$nulls":6},0]
[18,"Общеобразовательная организация, имеющая спортивное оборудование и инвентарь для занятий подвижными играми\nи организации спортивных мероприятий",{"$nulls":6},1]
[19,"Общеобразовательная организация, имеющая спортивное оборудование и инвентарь для занятий спортивными\nединоборствами (самбо, дзюдо, иное)",{"$nulls":6},0]
[20,"Имеется дополнительное вариативное оборудование и инвентарь",{"$nulls":6},0]
[21,"Кабинет учителя физической культуры",{"$nulls":6},1]
[22,"4. Организация урочной деятельности по учебному предмету «Физическая культура»"]
[23,"Общеобразовательная организация, в которой отведено на изучение учебного предмета «Физическая культура» в недельных учебных планах \n3 часа",{"$nulls":4},"Общеобразовательная организация, в которой отведено на изучение учебного предмета «Физическая культура»\nв недельных учебных планах  \n2 часа"]
[null,1,{"$nulls":4},2]
[24,1,{"$nulls":4},0]
[25,"5. Организация внеурочной деятельности спортивно-оздоровительного /физкультурно-спортивного направления"]
[26,"Общеобразовательная организация, в которой\nобъём часов, отводимых на внеурочную деятельность, отсутствует",null,null,"Общеобразовательная организация, в которой объём часов, отводимых\nна внеурочную деятельность,\nпредусматривает не более 2-х часов в неделю",null,null,"Общеобразовательная организация, в которой объём часов, отводимых на внеурочную деятельность, предусматривает\nболее 2-х часов в неделю"]
[null,1,null,null,2,null,null,3]
[27,0,null,null,1,null,null,0]
[28,"6. Общеобразовательная организация, использующая\nв рабочей программе часы на изучение раздела «Плавание»"]
[29,"Общеобразовательная организация, использующая в рабочей программе учебные \nчасы на изучение раздела «Плавание»"]
[30,1]
[31,"7. Сведения об обучающихся в общеобразовательной организации"]
[32,"Всего обучающихся:","Обучающиеся, отнесенные\nк основной группе здоровья","Обучающиеся, отнесённые к подготовительной группе здоровья","Обучающиеся, отнесённые к специальной группе здоровья «А»","Обучающиеся, отнесённые к специальной группе здоровья «Б»","Обучающиеся с ограниченными возможностями\nздоровья",null,"Обучающихся,\nимеющие группу\nинвалидности"]
[]
[]
[]
[]
[null,1,2,3,4,5,6,null,7]
[33,{"$f":"C46+D46+E46+F46+G46+I46","v":162},158,{"$nulls":3},1,null,3,null,{"$f":"B46=G6","v":true}]
[34,"8. Обучающиеся, принявшие участие во Всероссийской олимпиаде школьников по учебному предмету\n«Физическая культура» "]
[35,"Этап Всероссийской олимпиады",{"$nulls":4},"Количество участников"]
[null,1,{"$nulls":4},2]
[36,"школьный",{"$nulls":4},45]
[37,"муниципальный",{"$nulls":4},6]
[38,"региональный",{"$nulls":4},0]
[39,"всероссийский",{"$nulls":4},0]
[40,"9. Кадровый состав"]
[41,"Общее количество \nучителей физической культуры","Имеют профессиональное образование в области физической культуры и спорта",null,"Имеют высшую квалификационную категорию",null,"Имеют первую квалификационную категорию",null,"Прошедшие обучение по дополнительным профессиональным образовательным программам повышения квалификации, программам профессиональной переподготовки в 2019\\2020 учебном году"]
[null,null,"Высшее образование","Среднее профессиональное образование"]
[null,1,2,3,4,null,5,null,6]
[42,{"$f":"C58+D58","v":1},1,{"$nulls":3},1]

{"sheet":"6 шк ","index":7,"n_rows":58,"n_cols":11,"rows_kept":58,"merged":[[0,0,1,0],[0,1,1,9],[2,1,2,9],[3,0,4,0],[3,1,3,5],[3,6,3,9],[4,1,4,5],[4,6,4,9],[5,1,5,5],[5,6,5,9],[6,1,6,9],[7,0,9,0],[7,1,8,1],[7,2,8,2],[7,3,8,3],[7,4,8,4],[7,5,8,5],[7,6,8,6],[7,7,8,7],[7,8,8,8],[7,9,8,9],[11,1,11,9],[12,0,13,0],[12,1,12,7],[12,8,12,9],[13,1,13,7],[13,8,13,9],[14,1,14,7],[14,8,14,9],[15,1,15,7],[15,8,15,9],[16,1,16,7],[16,8,16,9],[17,1,17,7],[17,8,17,9],[18,1,18,7],[18,8,18,9],[19,1,19,7],[19,8,19,9],[20,1,20,7],[20,8,20,9],[21,1,21,7],[21,8,21,9],[22,1,22,7],[22,8,22,9],[23,1,23,7],[23,8,23,9],[24,1,24,7],[24,8,24,9],[25,1,25,7],[25,8,25,9],[26,1,26,7],[26,8,26,9],[27,1,27,9],[28,0,29,0],[28,1,28,5],[28,6,28,9],[29,1,29,5],[29,6,29,9],[30,1,30,5],[30,6,30,9],[31,1,31,9],[32,0,33,0],[32,1,32,3],[32,4,32,6],[32,7,32,9],[33,1,33,3],[33,4,33,6],[33,7,33,9],[34,1,34,3],[34,4,34,6],[34,7,34,9],[35,1,35,9],[36,1,36,9],[37,1,37,9],[38,1,38,9],[39,0,44,0],[39,1,43,1],[39,2,43,2],[39,3,43,3],[39,4,43,4],[39,5,43,5],[39,6,43,7],[39,8,43,9],[44,6,44,7],[44,8,44,9],[45,6,45,7],[45,8,45,9],[46,1,46,9],[47,0,48,0],[47,1,47,5],[47,6,47,9],[48,1,48,5],[48,6,48,9],[49,1,49,5],[49,6,49,9],[50,1,50,5],[50,6,50,9],[51,1,51,5],[51,6,51,9],[52,1,52,5],[52,6,52,9],[53,1,53,9],[54,0,56,0],[54,1,55,1],[54,2,54,3],[54,4,55,5],[54,6,55,7],[54,8,55,9],[56,4,56,5],[56,6,56,7],[56,8,56,9],[57,4,57,5],[57,6,57,7],[57,8,57,9]]}
["№ строки"," Мониторинг общеобразовательных организаций, реализующих общеобразовательные программы начального общего, основного общего и (или) среднего общего образования учебного предмета «Физическая культура» в 2019/2020 учебном году"]
[]
[1,"1. Общие сведения"]
[2,"Муниципальное бюджетное общеобразовательное учреждение \"Заинская средняя общеобразовательная школа №6\" Заинского муниципального района Республики Татарстан",{"$nulls":4},"Общая численность \nобучающихся в общеобразовательной организации "]
[null,1,{"$nulls":4},2]
[3,{"$f":"COUNTA(B4)","v":1},{"$nulls":4},1182]
[4,"2. Спортивные объекты общеобразовательной организации"]
[5,"Всего:","Спортивный зал\n24х12 м и более","Спортивный зал\n18х9 м и менее","Спортивный зал отсутствует","Зал для адаптивной физической культуры","Тренажёрный зал","Плавательный\nбассейн","Универсальная спортивная площадка","Площадка для подвижных игр"]
[]
[null,1,2,3,4,5,6,7,8,9]
[6,{"$f":"C11+D11+E11+F11+G11+H11+I11+J11","v":4},1,0,0,0,1,0,1,1]
[7,"3.  Спортивное оборудование и инвентарь для организации общеобразовательной деятельности"]
[8,"Содержание раздела",{"$nulls":6},"ВСЕГО"]
[null,1,{"$nulls":6},2]
[9,"Общеобразовательная организация, имеющая спортивное оборудование и инвентарь для занятий футболом",{"$nulls":6},1]
[10,"Общеобразовательная организация, имеющая спортивное оборудование и инвентарь для занятий баскетболом",{"$nulls":6},1]
[11,"Общеобразовательная организация, имеющая спортивное оборудование и инвентарь для занятий волейболом",{"$nulls":6},1]
[12,"Общеобразовательная организация, имеющая спортивное оборудование и инвентарь для занятий гандболом",{"$nulls":6},0]
[13,"Общеобразовательная организация, имеющая спортивное оборудование и инвентарь для занятий\nфитнесом, общефизической подготовкой",{"$nulls":6},0]
[14,"Общеобразовательная организация, имеющая спортивное оборудование и инвентарь для занятий спортивной\nгимнастикой",{"$nulls":6},1]
[15,"Общеобразовательная организация, имеющая спортивное оборудование и инвентарь для занятий лёгкой атлетикой",{"$nulls":6},1]
[16,"Общеобразовательная организация, имеющая спортивное оборудование и инвентарь для занятий лыжной подготовкой",{"$nulls":6},1]
[17,"Общеобразовательная организация, имеющая спортивное оборудование и инвентарь для занятий плаванием",{"$nulls":6},0]
[18,"Общеобразовательная организация, имеющая спортивное оборудование и инвентарь для занятий подвижными играми\nи организации спортивных мероприятий",{"$nulls":6},1]
[19,"Общеобразовательная организация, имеющая спортивное оборудование и инвентарь для занятий спортивными\nединоборствами (самбо, дзюдо, иное)",{"$nulls":6},0]
[20,"Имеется дополнительное вариативное оборудование и инвентарь",{"$nulls":6},0]
[21,"Кабинет учителя физической культуры",{"$nulls":6},1]
[22,"4. Организация урочной деятельности по учебному предмету «Физическая культура»"]
[23,"Общеобразовательная организация, в которой отведено на изучение учебного предмета «Физическая культура» в недельных учебных планах \n3 часа",{"$nulls":4},"Общеобразовательная организация, в которой отведено на изучение учебного предмета «Физическая культура»\nв недельных учебных планах  \n2 часа"]
[null,1,{"$nulls":4},2]
[24,1,{"$nulls":4},0]
[25,"5. Организация внеурочной деятельности спортивно-оздоровительного /физкультурно-спортивного направления"]
[26,"Общеобразовательная организация, в которой\nобъём часов, отводимых на внеурочную деятельность, отсутствует",null,null,"Общеобразовательная организация, в которой объём часов, отводимых\nна внеурочную деятельность,\nпредусматривает не более 2-х часов в неделю",null,null,"Общеобразовательная организация, в которой объём часов, отводимых на внеурочную деятельность, предусматривает\nболее 2-х часов в неделю"]
[null,1,null,null,2,null,null,3]
[27,0,null,null,1,null,null,0]
[28,"6. Общеобразовательная организация, использующая\nв рабочей программе часы на изучение раздела «Плавание»"]
[29,"Общеобразовательная организация, использующая в рабочей программе учебные \nчасы на изучение раздела «Плавание»"]
[30,3]
[31,"7. Сведения об обучающихся в общеобразовательной организации"]
[32,"Всего обучающихся:","Обучающиеся, отнесенные\nк основной группе здоровья","Обучающиеся, отнесённые к подготовительной группе здоровья","Обучающиеся, отнесённые к специальной группе здоровья «А»","Обучающиеся, отнесённые к специальной группе здоровья «Б»","Обучающиеся с ограниченными возможностями\nздоровья",null,"Обучающихся,\nимеющие группу\nинвалидности"]
[]
[]
[]
[]
[null,1,2,3,4,5,6,null,7]
[33,{"$f":"C46+D46+E46+F46+G46+I46","v":1182},1104,50,13,0,2,null,13,null,{"$f":"B46=G6","v":true}]
[34,"8. Обучающиеся, принявшие участие во Всероссийской олимпиаде школьников по учебному предмету\n«Физическая культура» "]
[35,"Этап Всероссийской олимпиады",{"$nulls":4},"Количество участников"]
[null,1,{"$nulls":4},2]
[36,"школьный",{"$nulls":4},55]
[37,"муниципальный",{"$nulls":4},20]
[38,"региональный",{"$nulls":4},0]
[39,"всероссийский",{"$nulls":4},0]
[40,"9. Кадровый состав"]
[41,"Общее количество \nучителей физической культуры","Имеют профессиональное образование в области физической культуры и спорта",null,"Имеют высшую квалификационную категорию",null,"Имеют первую квалификационную категорию",null,"Прошедшие обучение по дополнительным профессиональным образовательным программам повышения квалификации, программам профессиональной переподготовки в 2019\\2020 учебном году"]
[null,null,"Высшее образование","Среднее профессиональное образование"]
[null,1,2,3,4,null,5,null,6]
[42,{"$f":"C58+D58","v":4},3,1,1,null,1,null,1]

{"sheet":"7 шк","index":8,"n_rows":58,"n_cols":11,"rows_kept":58,"merged":[[0,0,1,0],[0,1,1,9],[2,1,2,9],[3,0,4,0],[3,1,3,5],[3,6,3,9],[4,1,4,5],[4,6,4,9],[5,1,5,5],[5,6,5,9],[6,1,6,9],[7,0,9,0],[7,1,8,1],[7,2,8,2],[7,3,8,3],[7,4,8,4],[7,5,8,5],[7,6,8,6],[7,7,8,7],[7,8,8,8],[7,9,8,9],[11,1,11,9],[12,0,13,0],[12,1,12,7],[12,8,12,9],[13,1,13,7],[13,8,13,9],[14,1,14,7],[14,8,14,9],[15,1,15,7],[15,8,15,9],[16,1,16,7],[16,8,16,9],[17,1,17,7],[17,8,17,9],[18,1,18,7],[18,8,18,9],[19,1,19,7],[19,8,19,9],[20,1,20,7],[20,8,20,9],[21,1,21,7],[21,8,21,9],[22,1,22,7],[22,8,22,9],[23,1,23,7],[23,8,23,9],[24,1,24,7],[24,8,24,9],[25,1,25,7],[25,8,25,9],[26,1,26,7],[26,8,26,9],[27,1,27,9],[28,0,29,0],[28,1,28,5],[28,6,28,9],[29,1,29,5],[29,6,29,9],[30,1,30,5],[30,6,30,9],[31,1,31,9],[32,0,33,0],[32,1,32,3],[32,4,32,6],[32,7,32,9],[33,1,33,3],[33,4,33,6],[33,7,33,9],[34,1,34,3],[34,4,34,6],[34,7,34,9],[35,1,35,9],[36,1,36,9],[37,1,37,9],[38,1,38,9],[39,0,44,0],[39,1,43,1],[39,2,43,2],[39,3,43,3],[39,4,43,4],[39,5,43,5],[39,6,43,7],[39,8,43,9],[44,6,44,7],[44,8,44,9],[45,6,45,7],[45,8,45,9],[46,1,46,9],[47,0,48,0],[47,1,47,5],[47,6,47,9],[48,1,48,5],[48,6,48,9],[49,1,49,5],[49,6,49,9],[50,1,50,5],[50,6,50,9],[51,1,51,5],[51,6,51,9],[52,1,52,5],[52,6,52,9],[53,1,53,9],[54,0,56,0],[54,1,55,1],[54,2,54,3],[54,4,55,5],[54,6,55,7],[54,8,55,9],[56,4,56,5],[56,6,56,7],[56,8,56,9],[57,4,57,5],[57,6,57,7],[57,8,57,9]]}
["№ строки"," Мониторинг общеобразовательных организаций, реализующих общеобразовательные программы начального общего, основного общего и (или) среднего общего образования учебного предмета «Физическая культура» в 2019/2020 учебном году"]
[]
[1,"1. Общие сведения"]
[2,"Муниципальное бюджетное общеобразовательное учреждение \"Заинская среднеобщеобразовательная школа №7 с углубленным изучением отдельных предметов\" Заинского муниципального района Республики Татарстан",{"$nulls":4},"Общая численность \nобучающихся в общеобразовательной организации "]
[null,1,{"$nulls":4},2]
[3,{"$f":"COUNTA(B4)","v":1},{"$nulls":4},692]
[4,"2. Спортивные объекты общеобразовательной организации"]
[5,"Всего:","Спортивный зал\n24х12 м и более","Спортивный зал\n18х9 м и менее","Спортивный зал отсутствует","Зал для адаптивной физической культуры","Тренажёрный зал","Плавательный\nбассейн","Универсальная спортивная площадка","Площадка для подвижных игр"]
[]
[null,1,2,3,4,5,6,7,8,9]
[6,{"$f":"C11+D11+E11+F11+G11+H11+I11+J11","v":4},1,0,0,0,1,0,1,1]
[7,"3.  Спортивное оборудование и инвентарь для организации общеобразовательной деятельности"]
[8,"Содержание раздела",{"$nulls":6},"ВСЕГО"]
[null,1,{"$nulls":6},2]
[9,"Общеобразовательная организация, имеющая спортивное оборудование и инвентарь для занятий футболом",{"$nulls":6},1]
[10,"Общеобразовательная организация, имеющая спортивное оборудование и инвентарь для занятий баскетболом",{"$nulls":6},1]
[11,"Общеобразовательная организация, имеющая спортивное оборудование и инвентарь для занятий волейболом",{"$nulls":6},1]
[12,"Общеобразовательная организация, имеющая спортивное оборудование и инвентарь для занятий гандболом",{"$nulls":6},1]
[13,"Общеобразовательная организация, имеющая спортивное оборудование и инвентарь для занятий\nфитнесом, общефизической подготовкой",{"$nulls":6},0]
[14,"Общеобразовательная организация, имеющая спортивное оборудование и инвентарь для занятий спортивной\nгимнастикой",{"$nulls":6},1]
[15,"Общеобразовательная организация, имеющая спортивное оборудование и инвентарь для занятий лёгкой атлетикой",{"$nulls":6},1]
[16,"Общеобразовательная организация, имеющая спортивное оборудование и инвентарь для занятий лыжной подготовкой",{"$nulls":6},1]
[17,"Общеобразовательная организация, имеющая спортивное оборудование и инвентарь для занятий плаванием",{"$nulls":6},0]
[18,"Общеобразовательная организация, имеющая спортивное оборудование и инвентарь для занятий подвижными играми\nи организации спортивных мероприятий",{"$nulls":6},1]
[19,"Общеобразовательная организация, имеющая спортивное оборудование и инвентарь для занятий спортивными\nединоборствами (самбо, дзюдо, иное)",{"$nulls":6},0]
[20,"Имеется дополнительное вариативное оборудование и инвентарь",{"$nulls":6},0]
[21,"Кабинет учителя физической культуры",{"$nulls":6},1]
[22,"4. Организация урочной деятельности по учебному предмету «Физическая культура»"]
[23,"Общеобразовательная организация, в которой отведено на изучение учебного предмета «Физическая культура» в недельных учебных планах \n3 часа",{"$nulls":4},"Общеобразовательная организация, в которой отведено на изучение учебного предмета «Физическая культура»\nв недельных учебных планах  \n2 часа"]
[null,1,{"$nulls":4},2]
[24,1]
[25,"5. Организация внеурочной деятельности спортивно-оздоровительного /физкультурно-спортивного направления"]
[26,"Общеобразовательная организация, в которой\nобъём часов, отводимых на внеурочную деятельность, отсутствует",null,null,"Общеобразовательная организация, в которой объём часов, отводимых\nна внеурочную деятельность,\nпредусматривает не более 2-х часов в неделю",null,null,"Общеобразовательная организация, в которой объём часов, отводимых на внеурочную деятельность, предусматривает\nболее 2-х часов в неделю"]
[null,1,null,null,2,null,null,3]
[27,0,null,null,0,null,null,1]
[28,"6. Общеобразовательная организация, использующая\nв рабочей программе часы на изучение раздела «Плавание»"]
[29,"Общеобразовательная организация, использующая в рабочей программе учебные \nчасы на изучение раздела «Плавание»"]
[30,3]
[31,"7. Сведения об обучающихся в общеобразовательной организации"]
[32,"Всего обучающихся:","Обучающиеся, отнесенные\nк основной группе здоровья","Обучающиеся, отнесённые к подготовительной группе здоровья","Обучающиеся, отнесённые к специальной группе здоровья «А»","Обучающиеся, отнесённые к специальной группе здоровья «Б»","Обучающиеся с ограниченными возможностями\nздоровья",null,"Обучающихся,\nимеющие группу\nинвалидности"]
[]
[]
[]
[]
[null,1,2,3,4,5,6,null,7]
[33,{"$f":"C46+D46+E46+F46+G46+I46","v":692},638,35,12,6,0,null,1,null,{"$f":"B46=G6","v":true}]
[34,"8. Обучающиеся, принявшие участие во Всероссийской олимпиаде школьников по учебному предмету\n«Физическая культура» "]
[35,"Этап Всероссийской олимпиады",{"$nulls":4},"Количество участников"]
[null,1,{"$nulls":4},2]
[36,"школьный",{"$nulls":4},156]
[37,"муниципальный",{"$nulls":4},26]
[38,"региональный",{"$nulls":4},1]
[39,"всероссийский",{"$nulls":4},1]
[40,"9. Кадровый состав"]
[41,"Общее количество \nучителей физической культуры","Имеют профессиональное образование в области физической культуры и спорта",null,"Имеют высшую квалификационную категорию",null,"Имеют первую квалификационную категорию",null,"Прошедшие обучение по дополнительным профессиональным образовательным программам повышения квалификации, программам профессиональной переподготовки в 2019\\2020 учебном году"]
[null,null,"Высшее образование","Среднее профессиональное образование"]
[null,1,2,3,4,null,5,null,6]
[42,{"$f":"C58+D58","v":3},3,0,1,null,1,null,1]

{"sheet":"тат гим","index":9,"n_rows":58,"n_cols":11,"rows_kept":58,"merged":[[0,0,1,0],[0,1,1,9],[2,1,2,9],[3,0,4,0],[3,1,3,5],[3,6,3,9],[4,1,4,5],[4,6,4,9],[5,1,5,5],[5,6,5,9],[6,1,6,9],[7,0,9,0],[7,1,8,1],[7,2,8,2],[7,3,8,3],[7,4,8,4],[7,5,8,5],[7,6,8,6],[7,7,8,7],[7,8,8,8],[7,9,8,9],[11,1,11,9],[12,0,13,0],[12,1,12,7],[12,8,12,9],[13,1,13,7],[13,8,13,9],[14,1,14,7],[14,8,14,9],[15,1,15,7],[15,8,15,9],[16,1,16,7],[16,8,16,9],[17,1,17,7],[17,8,17,9],[18,1,18,7],[18,8,18,9],[19,1,19,7],[19,8,19,9],[20,1,20,7],[20,8,20,9],[21,1,21,7],[21,8,21,9],[22,1,22,7],[22,8,22,9],[23,1,23,7],[23,8,23,9],[24,1,24,7],[24,8,24,9],[25,1,25,7],[25,8,25,9],[26,1,26,7],[26,8,26,9],[27,1,27,9],[28,0,29,0],[28,1,28,5],[28,6,28,9],[29,1,29,5],[29,6,29,9],[30,1,30,5],[30,6,30,9],[31,1,31,9],[32,0,33,0],[32,1,32,3],[32,4,32,6],[32,7,32,9],[33,1,33,3],[33,4,33,6],[33,7,33,9],[34,1,34,3],[34,4,34,6],[34,7,34,9],[35,1,35,9],[36,1,36,9],[37,1,37,9],[38,1,38,9],[39,0,44,0],[39,1,43,1],[39,2,43,2],[39,3,43,3],[39,4,43,4],[39,5,43,5],[39,6,43,7],[39,8,43,9],[44,6,44,7],[44,8,44,9],[45,6,45,7],[45,8,45,9],[46,1,46,9],[47,0,48,0],[47,1,47,5],[47,6,47,9],[48,1,48,5],[48,6,48,9],[49,1,49,5],[49,6,49,9],[50,1,50,5],[50,6,50,9],[51,1,51,5],[51,6,51,9],[52,1,52,5],[52,6,52,9],[53,1,53,9],[54,0,56,0],[54,1,55,1],[54,2,54,3],[54,4,55,5],[54,6,55,7],[54,8,55,9],[56,4,56,5],[56,6,56,7],[56,8,56,9],[57,4,57,5],[57,6,57,7],[57,8,57,9]]}
["№ строки"," Мониторинг общеобразовательных организаций, реализующих общеобразовательные программы начального общего, основного общего и (или) среднего общего образования учебного предмета «Физическая культура» в 2019/2020 учебном году"]
[]
[1,"1. Общие сведения"]
[2,"Муниципальное бюджетное общеобразовательное учреждение \"Татарская гимназия им Р.Ш. Фардиева \"  Заинского муниципального района Республики Татарстан",{"$nulls":4},"Общая численность \nобучающихся в общеобразовательной организации "]
[null,1,{"$nulls":4},2]
[3,{"$f":"COUNTA(B4)","v":1},{"$nulls":4},361]
[4,"2. Спортивные объекты общеобразовательной организации"]
[5,"Всего:","Спортивный зал\n24х12 м и более","Спортивный зал\n18х9 м и менее","Спортивный зал отсутствует","Зал для адаптивной физической культуры","Тренажёрный зал","Плавательный\nбассейн","Универсальная спортивная площадка","Площадка для подвижных игр"]
[]
[null,1,2,3,4,5,6,7,8,9]
[6,{"$f":"C11+D11+E11+F11+G11+H11+I11+J11","v":1},null,1]
[7,"3.  Спортивное оборудование и инвентарь для организации общеобразовательной деятельности"]
[8,"Содержание раздела",{"$nulls":6},"ВСЕГО"]
[null,1,{"$nulls":6},2]
[9,"Общеобразовательная организация, имеющая спортивное оборудование и инвентарь для занятий футболом",{"$nulls":6},1]
[10,"Общеобразовательная организация, имеющая спортивное оборудование и инвентарь для занятий баскетболом",{"$nulls":6},1]
[11,"Общеобразовательная организация, имеющая спортивное оборудование и инвентарь для занятий волейболом",{"$nulls":6},1]
[12,"Общеобразовательная организация, имеющая спортивное оборудование и инвентарь для занятий гандболом",{"$nulls":6},0]
[13,"Общеобразовательная организация, имеющая спортивное оборудование и инвентарь для занятий\nфитнесом, общефизической подготовкой",{"$nulls":6},0]
[14,"Общеобразовательная организация, имеющая спортивное оборудование и инвентарь для занятий спортивной\nгимнастикой",{"$nulls":6},1]
[15,"Общеобразовательная организация, имеющая спортивное оборудование и инвентарь для занятий лёгкой атлетикой",{"$nulls":6},0]
[16,"Общеобразовательная организация, имеющая спортивное оборудование и инвентарь для занятий лыжной подготовкой",{"$nulls":6},1]
[17,"Общеобразовательная организация, имеющая спортивное оборудование и инвентарь для занятий плаванием",{"$nulls":6},0]
[18,"Общеобразовательная организация, имеющая спортивное оборудование и инвентарь для занятий подвижными играми\nи организации спортивных мероприятий",{"$nulls":6},1]
[19,"Общеобразовательная организация, имеющая спортивное оборудование и инвентарь для занятий спортивными\nединоборствами (самбо, дзюдо, иное)",{"$nulls":6},1]
[20,"Имеется дополнительное вариативное оборудование и инвентарь",{"$nulls":6},0]
[21,"Кабинет учителя физической культуры",{"$nulls":6},1]
[22,"4. Организация урочной деятельности по учебному предмету «Физическая культура»"]
[23,"Общеобразовательная организация, в которой отведено на изучение учебного предмета «Физическая культура» в недельных учебных планах \n3 часа",{"$nulls":4},"Общеобразовательная организация, в которой отведено на изучение учебного предмета «Физическая культура»\nв недельных учебных планах  \n2 часа"]
[null,1,{"$nulls":4},2]
[24,1,{"$nulls":4},0]
[25,"5. Организация внеурочной деятельности спортивно-оздоровительного /физкультурно-спортивного направления"]
[26,"Общеобразовательная организация, в которой\nобъём часов, отводимых на внеурочную деятельность, отсутствует",null,null,"Общеобразовательная организация, в которой объём часов, отводимых\nна внеурочную деятельность,\nпредусматривает не более 2-х часов в неделю",null,null,"Общеобразовательная организация, в которой объём часов, отводимых на внеурочную деятельность, предусматривает\nболее 2-х часов в неделю"]
[null,1,null,null,2,null,null,3]
[27,0,null,null,0,null,null,1]
[28,"6. Общеобразовательная организация, использующая\nв рабочей программе часы на изучение раздела «Плавание»"]
[29,"Общеобразовательная организация, использующая в рабочей программе учебные \nчасы на изучение раздела «Плавание»"]
[30,1]
[31,"7. Сведения об обучающихся в общеобразовательной организации"]
[32,"Всего обучающихся:","Обучающиеся, отнесенные\nк основной группе здоровья","Обучающиеся, отнесённые к подготовительной группе здоровья","Обучающиеся, отнесённые к специальной группе здоровья «А»","Обучающиеся, отнесённые к специальной группе здоровья «Б»","Обучающиеся с ограниченными возможностями\nздоровья",null,"Обучающихся,\nимеющие группу\nинвалидности"]
[]
[]
[]
[]
[null,1,2,3,4,5,6,null,7]
[33,{"$f":"C46+D46+E46+F46+G46+I46","v":361},316,35,5,0,1,null,4,null,{"$f":"B46=G6","v":true}]
[34,"8. Обучающиеся, принявшие участие во Всероссийской олимпиаде школьников по учебному предмету\n«Физическая культура» "]
[35,"Этап Всероссийской олимпиады",{"$nulls":4},"Количество участников"]
[null,1,{"$nulls":4},2]
[36,"школьный",{"$nulls":4},167]
[37,"муниципальный",{"$nulls":4},20]
[38,"региональный",{"$nulls":4},0]
[39,"всероссийский",{"$nulls":4},0]
[40,"9. Кадровый состав"]
[41,"Общее количество \nучителей физической культуры","Имеют профессиональное образование в области физической культуры и спорта",null,"Имеют высшую квалификационную категорию",null,"Имеют первую квалификационную категорию",null,"Прошедшие обучение по дополнительным профессиональным образовательным программам повышения квалификации, программам профессиональной переподготовки в 2019\\2020 учебном году"]
[null,null,"Высшее образование","Среднее профессиональное образование"]
[null,1,2,3,4,null,5,null,6]
[42,{"$f":"C58+D58","v":2},2,0,1,null,1,null,2]

{"sheet":"9 шк","index":10,"n_rows":58,"n_cols":11,"rows_kept":58,"merged":[[0,0,1,0],[0,1,1,9],[2,1,2,9],[3,0,4,0],[3,1,3,5],[3,6,3,9],[4,1,4,5],[4,6,4,9],[5,1,5,5],[5,6,5,9],[6,1,6,9],[7,0,9,0],[7,1,8,1],[7,2,8,2],[7,3,8,3],[7,4,8,4],[7,5,8,5],[7,6,8,6],[7,7,8,7],[7,8,8,8],[7,9,8,9],[11,1,11,9],[12,0,13,0],[12,1,12,7],[12,8,12,9],[13,1,13,7],[13,8,13,9],[14,1,14,7],[14,8,14,9],[15,1,15,7],[15,8,15,9],[16,1,16,7],[16,8,16,9],[17,1,17,7],[17,8,17,9],[18,1,18,7],[18,8,18,9],[19,1,19,7],[19,8,19,9],[20,1,20,7],[20,8,20,9],[21,1,21,7],[21,8,21,9],[22,1,22,7],[22,8,22,9],[23,1,23,7],[23,8,23,9],[24,1,24,7],[24,8,24,9],[25,1,25,7],[25,8,25,9],[26,1,26,7],[26,8,26,9],[27,1,27,9],[28,0,29,0],[28,1,28,5],[28,6,28,9],[29,1,29,5],[29,6,29,9],[30,1,30,5],[30,6,30,9],[31,1,31,9],[32,0,33,0],[32,1,32,3],[32,4,32,6],[32,7,32,9],[33,1,33,3],[33,4,33,6],[33,7,33,9],[34,1,34,3],[34,4,34,6],[34,7,34,9],[35,1,35,9],[36,1,36,9],[37,1,37,9],[38,1,38,9],[39,0,44,0],[39,1,43,1],[39,2,43,2],[39,3,43,3],[39,4,43,4],[39,5,43,5],[39,6,43,7],[39,8,43,9],[44,6,44,7],[44,8,44,9],[45,6,45,7],[45,8,45,9],[46,1,46,9],[47,0,48,0],[47,1,47,5],[47,6,47,9],[48,1,48,5],[48,6,48,9],[49,1,49,5],[49,6,49,9],[50,1,50,5],[50,6,50,9],[51,1,51,5],[51,6,51,9],[52,1,52,5],[52,6,52,9],[53,1,53,9],[54,0,56,0],[54,1,55,1],[54,2,54,3],[54,4,55,5],[54,6,55,7],[54,8,55,9],[56,4,56,5],[56,6,56,7],[56,8,56,9],[57,4,57,5],[57,6,57,7],[57,8,57,9]]}
["№ строки"," Мониторинг общеобразовательных организаций, реализующих общеобразовательные программы начального общего, основного общего и (или) среднего общего образования учебного предмета «Физическая культура» в 2019/2020 учебном году"]
[]
[1,"1. Общие сведения"]
[2,"Государственное бюджетное общеобразовательное учреждение \"Заинская школа №9 для детей с ограниченными возможностями здоровья\" Заинского муниципального района Республики Татарстан",{"$nulls":4},"Общая численность \nобучающихся в общеобразовательной организации "]
[null,1,{"$nulls":4},2]
[3,{"$f":"COUNTA(B4)","v":1},{"$nulls":4},142]
[4,"2. Спортивные объекты общеобразовательной организации"]
[5,"Всего:","Спортивный зал\n24х12 м и более","Спортивный зал\n18х9 м и менее","Спортивный зал отсутствует","Зал для адаптивной физической культуры","Тренажёрный зал","Плавательный\nбассейн","Универсальная спортивная площадка","Площадка для подвижных игр"]
[]
[null,1,2,3,4,5,6,7,8,9]
[6,{"$f":"C11+D11+E11+F11+G11+H11+I11+J11","v":2},0,0,1,0,0,0,0,1]
[7,"3.  Спортивное оборудование и инвентарь для организации общеобразовательной деятельности"]
[8,"Содержание раздела",{"$nulls":6},"ВСЕГО"]
[null,1,{"$nulls":6},2]
[9,"Общеобразовательная организация, имеющая спортивное оборудование и инвентарь для занятий футболом",{"$nulls":6},1]
[10,"Общеобразовательная организация, имеющая спортивное оборудование и инвентарь для занятий баскетболом",{"$nulls":6},1]
[11,"Общеобразовательная организация, имеющая спортивное оборудование и инвентарь для занятий волейболом",{"$nulls":6},1]
[12,"Общеобразовательная организация, имеющая спортивное оборудование и инвентарь для занятий гандболом",{"$nulls":6},0]
[13,"Общеобразовательная организация, имеющая спортивное оборудование и инвентарь для занятий\nфитнесом, общефизической подготовкой",{"$nulls":6},1]
[14,"Общеобразовательная организация, имеющая спортивное оборудование и инвентарь для занятий спортивной\nгимнастикой",{"$nulls":6},0]
[15,"Общеобразовательная организация, имеющая спортивное оборудование и инвентарь для занятий лёгкой атлетикой",{"$nulls":6},0]
[16,"Общеобразовательная организация, имеющая спортивное оборудование и инвентарь для занятий лыжной подготовкой",{"$nulls":6},1]
[17,"Общеобразовательная организация, имеющая спортивное оборудование и инвентарь для занятий плаванием",{"$nulls":6},0]
[18,"Общеобразовательная организация, имеющая спортивное оборудование и инвентарь для занятий подвижными играми\nи организации спортивных мероприятий",{"$nulls":6},1]
[19,"Общеобразовательная организация, имеющая спортивное оборудование и инвентарь для занятий спортивными\nединоборствами (самбо, дзюдо, иное)",{"$nulls":6},0]
[20,"Имеется дополнительное вариативное оборудование и инвентарь",{"$nulls":6},0]
[21,"Кабинет учителя физической культуры",{"$nulls":6},1]
[22,"4. Организация урочной деятельности по учебному предмету «Физическая культура»"]
[23,"Общеобразовательная организация, в которой отведено на изучение учебного предмета «Физическая культура» в недельных учебных планах \n3 часа",{"$nulls":4},"Общеобразовательная организация, в которой отведено на изучение учебного предмета «Физическая культура»\nв недельных учебных планах  \n2 часа"]
[null,1,{"$nulls":4},2]
[24,1,{"$nulls":4},0]
[25,"5. Организация внеурочной деятельности спортивно-оздоровительного /физкультурно-спортивного направления"]
[26,"Общеобразовательная организация, в которой\nобъём часов, отводимых на внеурочную деятельность, отсутствует",null,null,"Общеобразовательная организация, в которой объём часов, отводимых\nна внеурочную деятельность,\nпредусматривает не более 2-х часов в неделю",null,null,"Общеобразовательная организация, в которой объём часов, отводимых на внеурочную деятельность, предусматривает\nболее 2-х часов в неделю"]
[null,1,null,null,2,null,null,3]
[27,0,null,null,1,null,null,0]
[28,"6. Общеобразовательная организация, использующая\nв рабочей программе часы на изучение раздела «Плавание»"]
[29,"Общеобразовательная организация, использующая в рабочей программе учебные \nчасы на изучение раздела «Плавание»"]
[30,0]
[31,"7. Сведения об обучающихся в общеобразовательной организации"]
[32,"Всего обучающихся:","Обучающиеся, отнесенные\nк основной группе здоровья","Обучающиеся, отнесённые к подготовительной группе здоровья","Обучающиеся, отнесённые к специальной группе здоровья «А»","Обучающиеся, отнесённые к специальной группе здоровья «Б»","Обучающиеся с ограниченными возможностями\nздоровья",null,"Обучающихся,\nимеющие группу\nинвалидности"]
[]
[]
[]
[]
[null,1,2,3,4,5,6,null,7]
[33,{"$f":"C46+D46+E46+F46+G46+I46","v":142},86,15,0,0,0,null,41,null,{"$f":"B46=G6","v":true}]
[34,"8. Обучающиеся, принявшие участие во Всероссийской олимпиаде школьников по учебному предмету\n«Физическая культура» "]
[35,"Этап Всероссийской олимпиады",{"$nulls":4},"Количество участников"]
[null,1,{"$nulls":4},2]
[36,"школьный",{"$nulls":4},0]
[37,"муниципальный",{"$nulls":4},0]
[38,"региональный",{"$nulls":4},0]
[39,"всероссийский",{"$nulls":4},0]
[40,"9. Кадровый состав"]
[41,"Общее количество \nучителей физической культуры","Имеют профессиональное образование в области физической культуры и спорта",null,"Имеют высшую квалификационную категорию",null,"Имеют первую квалификационную категорию",null,"Прошедшие обучение по дополнительным профессиональным образовательным программам повышения квалификации, программам профессиональной переподготовки в 2019\\2020 учебном году"]
[null,null,"Высшее образование","Среднее профессиональное образование"]
[null,1,2,3,4,null,5,null,6]
[42,{"$f":"C58+D58","v":1},1,0,0,null,1,null,0]

{"sheet":"Аксаринская ООШ","index":11,"n_rows":58,"n_cols":11,"rows_kept":58,"merged":[[0,0,1,0],[0,1,1,9],[2,1,2,9],[3,0,4,0],[3,1,3,5],[3,6,3,9],[4,1,4,5],[4,6,4,9],[5,1,5,5],[5,6,5,9],[6,1,6,9],[7,0,9,0],[7,1,8,1],[7,2,8,2],[7,3,8,3],[7,4,8,4],[7,5,8,5],[7,6,8,6],[7,7,8,7],[7,8,8,8],[7,9,8,9],[11,1,11,9],[12,0,13,0],[12,1,12,7],[12,8,12,9],[13,1,13,7],[13,8,13,9],[14,1,14,7],[14,8,14,9],[15,1,15,7],[15,8,15,9],[16,1,16,7],[16,8,16,9],[17,1,17,7],[17,8,17,9],[18,1,18,7],[18,8,18,9],[19,1,19,7],[19,8,19,9],[20,1,20,7],[20,8,20,9],[21,1,21,7],[21,8,21,9],[22,1,22,7],[22,8,22,9],[23,1,23,7],[23,8,23,9],[24,1,24,7],[24,8,24,9],[25,1,25,7],[25,8,25,9],[26,1,26,7],[26,8,26,9],[27,1,27,9],[28,0,29,0],[28,1,28,5],[28,6,28,9],[29,1,29,5],[29,6,29,9],[30,1,30,5],[30,6,30,9],[31,1,31,9],[32,0,33,0],[32,1,32,3],[32,4,32,6],[32,7,32,9],[33,1,33,3],[33,4,33,6],[33,7,33,9],[34,1,34,3],[34,4,34,6],[34,7,34,9],[35,1,35,9],[36,1,36,9],[37,1,37,9],[38,1,38,9],[39,0,44,0],[39,1,43,1],[39,2,43,2],[39,3,43,3],[39,4,43,4],[39,5,43,5],[39,6,43,7],[39,8,43,9],[44,6,44,7],[44,8,44,9],[45,6,45,7],[45,8,45,9],[46,1,46,9],[47,0,48,0],[47,1,47,5],[47,6,47,9],[48,1,48,5],[48,6,48,9],[49,1,49,5],[49,6,49,9],[50,1,50,5],[50,6,50,9],[51,1,51,5],[51,6,51,9],[52,1,52,5],[52,6,52,9],[53,1,53,9],[54,0,56,0],[54,1,55,1],[54,2,54,3],[54,4,55,5],[54,6,55,7],[54,8,55,9],[56,4,56,5],[56,6,56,7],[56,8,56,9],[57,4,57,5],[57,6,57,7],[57,8,57,9]]}
["№ строки"," Мониторинг общеобразовательных организаций, реализующих общеобразовательные программы начального общего, основного общего и (или) среднего общего образования учебного предмета «Физическая культура» в 2019/2020 учебном году"]
[]
[1,"1. Общие сведения"]
[2,"Муниципальное бюджетное общеобразовательное учреждение \" Аксаринская основная общеобразовательная школа\" Заинского муниципального района Республики Татарстан",{"$nulls":4},"Общая численность \nобучающихся в общеобразовательной организации "]
[null,1,{"$nulls":4},2]
[3,{"$f":"COUNTA(B4)","v":1},{"$nulls":4},46]
[4,"2. Спортивные объекты общеобразовательной организации"]
[5,"Всего:","Спортивный зал\n24х12 м и более","Спортивный зал\n18х9 м и менее","Спортивный зал отсутствует","Зал для адаптивной физической культуры","Тренажёрный зал","Плавательный\nбассейн","Универсальная спортивная площадка","Площадка для подвижных игр"]
[]
[null,1,2,3,4,5,6,7,8,9]
[6,{"$f":"C11+D11+E11+F11+G11+H11+I11+J11","v":2},0,1,0,0,0,0,1,0]
[7,"3.  Спортивное оборудование и инвентарь для организации общеобразовательной деятельности"]
[8,"Содержание раздела",{"$nulls":6},"ВСЕГО"]
[null,1,{"$nulls":6},2]
[9,"Общеобразовательная организация, имеющая спортивное оборудование и инвентарь для занятий футболом",{"$nulls":6},1]
[10,"Общеобразовательная организация, имеющая спортивное оборудование и инвентарь для занятий баскетболом",{"$nulls":6},1]
[11,"Общеобразовательная организация, имеющая спортивное оборудование и инвентарь для занятий волейболом",{"$nulls":6},1]
[12,"Общеобразовательная организация, имеющая спортивное оборудование и инвентарь для занятий гандболом",{"$nulls":6},0]
[13,"Общеобразовательная организация, имеющая спортивное оборудование и инвентарь для занятий\nфитнесом, общефизической подготовкой",{"$nulls":6},0]
[14,"Общеобразовательная организация, имеющая спортивное оборудование и инвентарь для занятий спортивной\nгимнастикой",{"$nulls":6},0]
[15,"Общеобразовательная организация, имеющая спортивное оборудование и инвентарь для занятий лёгкой атлетикой",{"$nulls":6},1]
[16,"Общеобразовательная организация, имеющая спортивное оборудование и инвентарь для занятий лыжной подготовкой",{"$nulls":6},1]
[17,"Общеобразовательная организация, имеющая спортивное оборудование и инвентарь для занятий плаванием",{"$nulls":6},0]
[18,"Общеобразовательная организация, имеющая спортивное оборудование и инвентарь для занятий подвижными играми\nи организации спортивных мероприятий",{"$nulls":6},1]
[19,"Общеобразовательная организация, имеющая спортивное оборудование и инвентарь для занятий спортивными\nединоборствами (самбо, дзюдо, иное)",{"$nulls":6},1]
[20,"Имеется дополнительное вариативное оборудование и инвентарь",{"$nulls":6},0]
[21,"Кабинет учителя физической культуры",{"$nulls":6},1]
[22,"4. Организация урочной деятельности по учебному предмету «Физическая культура»"]
[23,"Общеобразовательная организация, в которой отведено на изучение учебного предмета «Физическая культура» в недельных учебных планах \n3 часа",{"$nulls":4},"Общеобразовательная организация, в которой отведено на изучение учебного предмета «Физическая культура»\nв недельных учебных планах  \n2 часа"]
[null,1,{"$nulls":4},2]
[24,1,{"$nulls":4},0]
[25,"5. Организация внеурочной деятельности спортивно-оздоровительного /физкультурно-спортивного направления"]
[26,"Общеобразовательная организация, в которой\nобъём часов, отводимых на внеурочную деятельность, отсутствует",null,null,"Общеобразовательная организация, в которой объём часов, отводимых\nна внеурочную деятельность,\nпредусматривает не более 2-х часов в неделю",null,null,"Общеобразовательная организация, в которой объём часов, отводимых на внеурочную деятельность, предусматривает\nболее 2-х часов в неделю"]
[null,1,null,null,2,null,null,3]
[27,0,null,null,1,null,null,0]
[28,"6. Общеобразовательная организация, использующая\nв рабочей программе часы на изучение раздела «Плавание»"]
[29,"Общеобразовательная организация, использующая в рабочей программе учебные \nчасы на изучение раздела «Плавание»"]
[30,1]
[31,"7. Сведения об обучающихся в общеобразовательной организации"]
[32,"Всего обучающихся:","Обучающиеся, отнесенные\nк основной группе здоровья","Обучающиеся, отнесённые к подготовительной группе здоровья","Обучающиеся, отнесённые к специальной группе здоровья «А»","Обучающиеся, отнесённые к специальной группе здоровья «Б»","Обучающиеся с ограниченными возможностями\nздоровья",null,"Обучающихся,\nимеющие группу\nинвалидности"]
[]
[]
[]
[]
[null,1,2,3,4,5,6,null,7]
[33,{"$f":"C46+D46+E46+F46+G46+I46","v":46},46,0,0,0,0,null,0,null,{"$f":"B46=G6","v":true}]
[34,"8. Обучающиеся, принявшие участие во Всероссийской олимпиаде школьников по учебному предмету\n«Физическая культура» "]
[35,"Этап Всероссийской олимпиады",{"$nulls":4},"Количество участников"]
[null,1,{"$nulls":4},2]
[36,"школьный",{"$nulls":4},21]
[37,"муниципальный",{"$nulls":4},1]
[38,"региональный",{"$nulls":4},0]
[39,"всероссийский",{"$nulls":4},0]
[40,"9. Кадровый состав"]
[41,"Общее количество \nучителей физической культуры","Имеют профессиональное образование в области физической культуры и спорта",null,"Имеют высшую квалификационную категорию",null,"Имеют первую квалификационную категорию",null,"Прошедшие обучение по дополнительным профессиональным образовательным программам повышения квалификации, программам профессиональной переподготовки в 2019\\2020 учебном году"]
[null,null,"Высшее образование","Среднее профессиональное образование"]
[null,1,2,3,4,null,5,null,6]
[42,{"$f":"C58+D58","v":1},1,0,0,null,1,null,1]

{"sheet":"Верхнешипкинская ООШ","index":12,"n_rows":58,"n_cols":11,"rows_kept":58,"merged":[[0,0,1,0],[0,1,1,9],[2,1,2,9],[3,0,4,0],[3,1,3,5],[3,6,3,9],[4,1,4,5],[4,6,4,9],[5,1,5,5],[5,6,5,9],[6,1,6,9],[7,0,9,0],[7,1,8,1],[7,2,8,2],[7,3,8,3],[7,4,8,4],[7,5,8,5],[7,6,8,6],[7,7,8,7],[7,8,8,8],[7,9,8,9],[11,1,11,9],[12,0,13,0],[12,1,12,7],[12,8,12,9],[13,1,13,7],[13,8,13,9],[14,1,14,7],[14,8,14,9],[15,1,15,7],[15,8,15,9],[16,1,16,7],[16,8,16,9],[17,1,17,7],[17,8,17,9],[18,1,18,7],[18,8,18,9],[19,1,19,7],[19,8,19,9],[20,1,20,7],[20,8,20,9],[21,1,21,7],[21,8,21,9],[22,1,22,7],[22,8,22,9],[23,1,23,7],[23,8,23,9],[24,1,24,7],[24,8,24,9],[25,1,25,7],[25,8,25,9],[26,1,26,7],[26,8,26,9],[27,1,27,9],[28,0,29,0],[28,1,28,5],[28,6,28,9],[29,1,29,5],[29,6,29,9],[30,1,30,5],[30,6,30,9],[31,1,31,9],[32,0,33,0],[32,1,32,3],[32,4,32,6],[32,7,32,9],[33,1,33,3],[33,4,33,6],[33,7,33,9],[34,1,34,3],[34,4,34,6],[34,7,34,9],[35,1,35,9],[36,1,36,9],[37,1,37,9],[38,1,38,9],[39,0,44,0],[39,1,43,1],[39,2,43,2],[39,3,43,3],[39,4,43,4],[39,5,43,5],[39,6,43,7],[39,8,43,9],[44,6,44,7],[44,8,44,9],[45,6,45,7],[45,8,45,9],[46,1,46,9],[47,0,48,0],[47,1,47,5],[47,6,47,9],[48,1,48,5],[48,6,48,9],[49,1,49,5],[49,6,49,9],[50,1,50,5],[50,6,50,9],[51,1,51,5],[51,6,51,9],[52,1,52,5],[52,6,52,9],[53,1,53,9],[54,0,56,0],[54,1,55,1],[54,2,54,3],[54,4,55,5],[54,6,55,7],[54,8,55,9],[56,4,56,5],[56,6,56,7],[56,8,56,9],[57,4,57,5],[57,6,57,7],[57,8,57,9]]}
["№ строки"," Мониторинг общеобразовательных организаций, реализующих общеобразовательные программы начального общего, основного общего и (или) среднего общего образования учебного предмета «Физическая культура» в 2019/2020 учебном году"]
[]
[1,"1. Общие сведения"]
[2,"Муниципальное бюджетное общеобразовательное учреждение \"Верхнешипкинская основная  общеобразовательная школа\" Заинского муниципального района Республики Татарстан",{"$nulls":4},"Общая численность \nобучающихся в общеобразовательной организации "]
[null,1,{"$nulls":4},2]
[3,{"$f":"COUNTA(B4)","v":1},{"$nulls":4},47]
[4,"2. Спортивные объекты общеобразовательной организации"]
[5,"Всего:","Спортивный зал\n24х12 м и более","Спортивный зал\n18х9 м и менее","Спортивный зал отсутствует","Зал для адаптивной физической культуры","Тренажёрный зал","Плавательный\nбассейн","Универсальная спортивная площадка","Площадка для подвижных игр"]
[]
[null,1,2,3,4,5,6,7,8,9]
[6,{"$f":"C11+D11+E11+F11+G11+H11+I11+J11","v":2},0,1,null,0,0,0,1,0]
[7,"3.  Спортивное оборудование и инвентарь для организации общеобразовательной деятельности"]
[8,"Содержание раздела",{"$nulls":6},"ВСЕГО"]
[null,1,{"$nulls":6},2]
[9,"Общеобразовательная организация, имеющая спортивное оборудование и инвентарь для занятий футболом",{"$nulls":6},1]
[10,"Общеобразовательная организация, имеющая спортивное оборудование и инвентарь для занятий баскетболом",{"$nulls":6},1]
[11,"Общеобразовательная организация, имеющая спортивное оборудование и инвентарь для занятий волейболом",{"$nulls":6},1]
[12,"Общеобразовательная организация, имеющая спортивное оборудование и инвентарь для занятий гандболом",{"$nulls":6},0]
[13,"Общеобразовательная организация, имеющая спортивное оборудование и инвентарь для занятий\nфитнесом, общефизической подготовкой",{"$nulls":6},0]
[14,"Общеобразовательная организация, имеющая спортивное оборудование и инвентарь для занятий спортивной\nгимнастикой",{"$nulls":6},1]
[15,"Общеобразовательная организация, имеющая спортивное оборудование и инвентарь для занятий лёгкой атлетикой",{"$nulls":6},1]
[16,"Общеобразовательная организация, имеющая спортивное оборудование и инвентарь для занятий лыжной подготовкой",{"$nulls":6},1]
[17,"Общеобразовательная организация, имеющая спортивное оборудование и инвентарь для занятий плаванием",{"$nulls":6},0]
[18,"Общеобразовательная организация, имеющая спортивное оборудование и инвентарь для занятий подвижными играми\nи организации спортивных мероприятий"]
[19,"Общеобразовательная организация, имеющая спортивное оборудование и инвентарь для занятий спортивными\nединоборствами (самбо, дзюдо, иное)",{"$nulls":6},1]
[20,"Имеется дополнительное вариативное оборудование и инвентарь",{"$nulls":6},0]
[21,"Кабинет учителя физической культуры",{"$nulls":6},1]
[22,"4. Организация урочной деятельности по учебному предмету «Физическая культура»"]
[23,"Общеобразовательная организация, в которой отведено на изучение учебного предмета «Физическая культура» в недельных учебных планах \n3 часа",{"$nulls":4},"Общеобразовательная организация, в которой отведено на изучение учебного предмета «Физическая культура»\nв недельных учебных планах  \n2 часа"]
[null,1,{"$nulls":4},2]
[24,1]
[25,"5. Организация внеурочной деятельности спортивно-оздоровительного /физкультурно-спортивного направления"]
[26,"Общеобразовательная организация, в которой\nобъём часов, отводимых на внеурочную деятельность, отсутствует",null,null,"Общеобразовательная организация, в которой объём часов, отводимых\nна внеурочную деятельность,\nпредусматривает не более 2-х часов в неделю",null,null,"Общеобразовательная организация, в которой объём часов, отводимых на внеурочную деятельность, предусматривает\nболее 2-х часов в неделю"]
[null,1,null,null,2,null,null,3]
[27,1,null,null,0,null,null,0]
[28,"6. Общеобразовательная организация, использующая\nв рабочей программе часы на изучение раздела «Плавание»"]
[29,"Общеобразовательная организация, использующая в рабочей программе учебные \nчасы на изучение раздела «Плавание»"]
[30,3]
[31,"7. Сведения об обучающихся в общеобразовательной организации"]
[32,"Всего обучающихся:","Обучающиеся, отнесенные\nк основной группе здоровья","Обучающиеся, отнесённые к подготовительной группе здоровья","Обучающиеся, отнесённые к специальной группе здоровья «А»","Обучающиеся, отнесённые к специальной группе здоровья «Б»","Обучающиеся с ограниченными возможностями\nздоровья",null,"Обучающихся,\nимеющие группу\nинвалидности"]
[]
[]
[]
[]
[null,1,2,3,4,5,6,null,7]
[33,{"$f":"C46+D46+E46+F46+G46+I46","v":47},43,2,null,null,1,null,1,null,{"$f":"B46=G6","v":true}]
[34,"8. Обучающиеся, принявшие участие во Всероссийской олимпиаде школьников по учебному предмету\n«Физическая культура» "]
[35,"Этап Всероссийской олимпиады",{"$nulls":4},"Количество участников"]
[null,1,{"$nulls":4},2]
[36,"школьный",{"$nulls":4},43]
[37,"муниципальный",{"$nulls":4},3]
[38,"региональный",{"$nulls":4},0]
[39,"всероссийский",{"$nulls":4},0]
[40,"9. Кадровый состав"]
[41,"Общее количество \nучителей физической культуры","Имеют профессиональное образование в области физической культуры и спорта",null,"Имеют высшую квалификационную категорию",null,"Имеют первую квалификационную категорию",null,"Прошедшие обучение по дополнительным профессиональным образовательным программам повышения квалификации, программам профессиональной переподготовки в 2019\\2020 учебном году"]
[null,null,"Высшее образование","Среднее профессиональное образование"]
[null,1,2,3,4,null,5,null,6]
[42,{"$f":"C58+D58","v":1},1,{"$nulls":3},1]

{"sheet":"Светлоозерская ООШ","index":13,"n_rows":58,"n_cols":11,"rows_kept":58,"merged":[[0,0,1,0],[0,1,1,9],[2,1,2,9],[3,0,4,0],[3,1,3,5],[3,6,3,9],[4,1,4,5],[4,6,4,9],[5,1,5,5],[5,6,5,9],[6,1,6,9],[7,0,9,0],[7,1,8,1],[7,2,8,2],[7,3,8,3],[7,4,8,4],[7,5,8,5],[7,6,8,6],[7,7,8,7],[7,8,8,8],[7,9,8,9],[11,1,11,9],[12,0,13,0],[12,1,12,7],[12,8,12,9],[13,1,13,7],[13,8,13,9],[14,1,14,7],[14,8,14,9],[15,1,15,7],[15,8,15,9],[16,1,16,7],[16,8,16,9],[17,1,17,7],[17,8,17,9],[18,1,18,7],[18,8,18,9],[19,1,19,7],[19,8,19,9],[20,1,20,7],[20,8,20,9],[21,1,21,7],[21,8,21,9],[22,1,22,7],[22,8,22,9],[23,1,23,7],[23,8,23,9],[24,1,24,7],[24,8,24,9],[25,1,25,7],[25,8,25,9],[26,1,26,7],[26,8,26,9],[27,1,27,9],[28,0,29,0],[28,1,28,5],[28,6,28,9],[29,1,29,5],[29,6,29,9],[30,1,30,5],[30,6,30,9],[31,1,31,9],[32,0,33,0],[32,1,32,3],[32,4,32,6],[32,7,32,9],[33,1,33,3],[33,4,33,6],[33,7,33,9],[34,1,34,3],[34,4,34,6],[34,7,34,9],[35,1,35,9],[36,1,36,9],[37,1,37,9],[38,1,38,9],[39,0,44,0],[39,1,43,1],[39,2,43,2],[39,3,43,3],[39,4,43,4],[39,5,43,5],[39,6,43,7],[39,8,43,9],[44,6,44,7],[44,8,44,9],[45,6,45,7],[45,8,45,9],[46,1,46,9],[47,0,48,0],[47,1,47,5],[47,6,47,9],[48,1,48,5],[48,6,48,9],[49,1,49,5],[49,6,49,9],[50,1,50,5],[50,6,50,9],[51,1,51,5],[51,6,51,9],[52,1,52,5],[52,6,52,9],[53,1,53,9],[54,0,56,0],[54,1,55,1],[54,2,54,3],[54,4,55,5],[54,6,55,7],[54,8,55,9],[56,4,56,5],[56,6,56,7],[56,8,56,9],[57,4,57,5],[57,6,57,7],[57,8,57,9]]}
["№ строки"," Мониторинг общеобразовательных организаций, реализующих общеобразовательные программы начального общего, основного общего и (или) среднего общего образования учебного предмета «Физическая культура» в 2019/2020 учебном году"]
[]
[1,"1. Общие сведения"]
[2,"Муниципальное бюджетное общеобразовательное учреждение \"Светлоозерская основная общеобразовательная школа\" Заинского муниципального района Республики Татарстан",{"$nulls":4},"Общая численность \nобучающихся в общеобразовательной организации "]
[null,1,{"$nulls":4},2]
[3,{"$f":"COUNTA(B4)","v":1},{"$nulls":4},47]
[4,"2. Спортивные объекты общеобразовательной организации"]
[5,"Всего:","Спортивный зал\n24х12 м и более","Спортивный зал\n18х9 м и менее","Спортивный зал отсутствует","Зал для адаптивной физической культуры","Тренажёрный зал","Плавательный\nбассейн","Универсальная спортивная площадка","Площадка для подвижных игр"]
[]
[null,1,2,3,4,5,6,7,8,9]
[6,{"$f":"C11+D11+E11+F11+G11+H11+I11+J11","v":2},0,1,0,0,0,0,0,1]
[7,"3.  Спортивное оборудование и инвентарь для организации общеобразовательной деятельности"]
[8,"Содержание раздела",{"$nulls":6},"ВСЕГО"]
[null,1,{"$nulls":6},2]
[9,"Общеобразовательная организация, имеющая спортивное оборудование и инвентарь для занятий футболом",{"$nulls":6},0]
[10,"Общеобразовательная организация, имеющая спортивное оборудование и инвентарь для занятий баскетболом",{"$nulls":6},1]
[11,"Общеобразовательная организация, имеющая спортивное оборудование и инвентарь для занятий волейболом",{"$nulls":6},1]
[12,"Общеобразовательная организация, имеющая спортивное оборудование и инвентарь для занятий гандболом",{"$nulls":6},0]
[13,"Общеобразовательная организация, имеющая спортивное оборудование и инвентарь для занятий\nфитнесом, общефизической подготовкой",{"$nulls":6},0]
[14,"Общеобразовательная организация, имеющая спортивное оборудование и инвентарь для занятий спортивной\nгимнастикой",{"$nulls":6},0]
[15,"Общеобразовательная организация, имеющая спортивное оборудование и инвентарь для занятий лёгкой атлетикой",{"$nulls":6},0]
[16,"Общеобразовательная организация, имеющая спортивное оборудование и инвентарь для занятий лыжной подготовкой",{"$nulls":6},1]
[17,"Общеобразовательная организация, имеющая спортивное оборудование и инвентарь для занятий плаванием",{"$nulls":6},0]
[18,"Общеобразовательная организация, имеющая спортивное оборудование и инвентарь для занятий подвижными играми\nи организации спортивных мероприятий",{"$nulls":6},1]
[19,"Общеобразовательная организация, имеющая спортивное оборудование и инвентарь для занятий спортивными\nединоборствами (самбо, дзюдо, иное)",{"$nulls":6},0]
[20,"Имеется дополнительное вариативное оборудование и инвентарь",{"$nulls":6},0]
[21,"Кабинет учителя физической культуры",{"$nulls":6},1]
[22,"4. Организация урочной деятельности по учебному предмету «Физическая культура»"]
[23,"Общеобразовательная организация, в которой отведено на изучение учебного предмета «Физическая культура» в недельных учебных планах \n3 часа",{"$nulls":4},"Общеобразовательная организация, в которой отведено на изучение учебного предмета «Физическая культура»\nв недельных учебных планах  \n2 часа"]
[null,1,{"$nulls":4},2]
[24,1,{"$nulls":4},0]
[25,"5. Организация внеурочной деятельности спортивно-оздоровительного /физкультурно-спортивного направления"]
[26,"Общеобразовательная организация, в которой\nобъём часов, отводимых на внеурочную деятельность, отсутствует",null,null,"Общеобразовательная организация, в которой объём часов, отводимых\nна внеурочную деятельность,\nпредусматривает не более 2-х часов в неделю",null,null,"Общеобразовательная организация, в которой объём часов, отводимых на внеурочную деятельность, предусматривает\nболее 2-х часов в неделю"]
[null,1,null,null,2,null,null,3]
[27,0,null,null,0,null,null,1]
[28,"6. Общеобразовательная организация, использующая\nв рабочей программе часы на изучение раздела «Плавание»"]
[29,"Общеобразовательная организация, использующая в рабочей программе учебные \nчасы на изучение раздела «Плавание»"]
[30,3]
[31,"7. Сведения об обучающихся в общеобразовательной организации"]
[32,"Всего обучающихся:","Обучающиеся, отнесенные\nк основной группе здоровья","Обучающиеся, отнесённые к подготовительной группе здоровья","Обучающиеся, отнесённые к специальной группе здоровья «А»","Обучающиеся, отнесённые к специальной группе здоровья «Б»","Обучающиеся с ограниченными возможностями\nздоровья",null,"Обучающихся,\nимеющие группу\nинвалидности"]
[]
[]
[]
[]
[null,1,2,3,4,5,6,null,7]
[33,{"$f":"C46+D46+E46+F46+G46+I46","v":47},40,6,0,1,0,null,0,null,{"$f":"B46=G6","v":true}]
[34,"8. Обучающиеся, принявшие участие во Всероссийской олимпиаде школьников по учебному предмету\n«Физическая культура» "]
[35,"Этап Всероссийской олимпиады",{"$nulls":4},"Количество участников"]
[null,1,{"$nulls":4},2]
[36,"школьный",{"$nulls":4},12]
[37,"муниципальный",{"$nulls":4},3]
[38,"региональный",{"$nulls":4},0]
[39,"всероссийский",{"$nulls":4},0]
[40,"9. Кадровый состав"]
[41,"Общее количество \nучителей физической культуры","Имеют профессиональное образование в области физической культуры и спорта",null,"Имеют высшую квалификационную категорию",null,"Имеют первую квалификационную категорию",null,"Прошедшие обучение по дополнительным профессиональным образовательным программам повышения квалификации, программам профессиональной переподготовки в 2019\\2020 учебном году"]
[null,null,"Высшее образование","Среднее профессиональное образование"]
[null,1,2,3,4,null,5,null,6]
[42,{"$f":"C58+D58","v":1},1,0,0,null,1,null,0]

{"sheet":"Поручиковская ООШ","index":14,"n_rows":58,"n_cols":11,"rows_kept":58,"merged":[[0,0,1,0],[0,1,1,9],[2,1,2,9],[3,0,4,0],[3,1,3,5],[3,6,3,9],[4,1,4,5],[4,6,4,9],[5,1,5,5],[5,6,5,9],[6,1,6,9],[7,0,9,0],[7,1,8,1],[7,2,8,2],[7,3,8,3],[7,4,8,4],[7,5,8,5],[7,6,8,6],[7,7,8,7],[7,8,8,8],[7,9,8,9],[11,1,11,9],[12,0,13,0],[12,1,12,7],[12,8,12,9],[13,1,13,7],[13,8,13,9],[14,1,14,7],[14,8,14,9],[15,1,15,7],[15,8,15,9],[16,1,16,7],[16,8,16,9],[17,1,17,7],[17,8,17,9],[18,1,18,7],[18,8,18,9],[19,1,19,7],[19,8,19,9],[20,1,20,7],[20,8,20,9],[21,1,21,7],[21,8,21,9],[22,1,22,7],[22,8,22,9],[23,1,23,7],[23,8,23,9],[24,1,24,7],[24,8,24,9],[25,1,25,7],[25,8,25,9],[26,1,26,7],[26,8,26,9],[27,1,27,9],[28,0,29,0],[28,1,28,5],[28,6,28,9],[29,1,29,5],[29,6,29,9],[30,1,30,5],[30,6,30,9],[31,1,31,9],[32,0,33,0],[32,1,32,3],[32,4,32,6],[32,7,32,9],[33,1,33,3],[33,4,33,6],[33,7,33,9],[34,1,34,3],[34,4,34,6],[34,7,34,9],[35,1,35,9],[36,1,36,9],[37,1,37,9],[38,1,38,9],[39,0,44,0],[39,1,43,1],[39,2,43,2],[39,3,43,3],[39,4,43,4],[39,5,43,5],[39,6,43,7],[39,8,43,9],[44,6,44,7],[44,8,44,9],[45,6,45,7],[45,8,45,9],[46,1,46,9],[47,0,48,0],[47,1,47,5],[47,6,47,9],[48,1,48,5],[48,6,48,9],[49,1,49,5],[49,6,49,9],[50,1,50,5],[50,6,50,9],[51,1,51,5],[51,6,51,9],[52,1,52,5],[52,6,52,9],[53,1,53,9],[54,0,56,0],[54,1,55,1],[54,2,54,3],[54,4,55,5],[54,6,55,7],[54,8,55,9],[56,4,56,5],[56,6,56,7],[56,8,56,9],[57,4,57,5],[57,6,57,7],[57,8,57,9]]}
["№ строки"," Мониторинг общеобразовательных организаций, реализующих общеобразовательные программы начального общего, основного общего и (или) среднего общего образования учебного предмета «Физическая культура» в 2019/2020 учебном году"]
[]
[1,"1. Общие сведения"]
[2,"Муниципальное бюджетное общеобразовательное учреждение \"Поручиковская основная общеобразовательная школа\" Заинского муниципального района Республики Татарстан",{"$nulls":4},"Общая численность \nобучающихся в общеобразовательной организации "]
[null,1,{"$nulls":4},2]
[3,{"$f":"COUNTA(B4)","v":1},{"$nulls":4},52]
[4,"2. Спортивные объекты общеобразовательной организации"]
[5,"Всего:","Спортивный зал\n24х12 м и более","Спортивный зал\n18х9 м и менее","Спортивный зал отсутствует","Зал для адаптивной физической культуры","Тренажёрный зал","Плавательный\nбассейн","Универсальная спортивная площадка","Площадка для подвижных игр"]
[]
[null,1,2,3,4,5,6,7,8,9]
[6,{"$f":"C11+D11+E11+F11+G11+H11+I11+J11","v":2},null,1,{"$nulls":4},1]
[7,"3.  Спортивное оборудование и инвентарь для организации общеобразовательной деятельности"]
[8,"Содержание раздела",{"$nulls":6},"ВСЕГО"]
[null,1,{"$nulls":6},2]
[9,"Общеобразовательная организация, имеющая спортивное оборудование и инвентарь для занятий футболом",{"$nulls":6},0]
[10,"Общеобразовательная организация, имеющая спортивное оборудование и инвентарь для занятий баскетболом",{"$nulls":6},1]
[11,"Общеобразовательная организация, имеющая спортивное оборудование и инвентарь для занятий волейболом",{"$nulls":6},1]
[12,"Общеобразовательная организация, имеющая спортивное оборудование и инвентарь для занятий гандболом",{"$nulls":6},0]
[13,"Общеобразовательная организация, имеющая спортивное оборудование и инвентарь для занятий\nфитнесом, общефизической подготовкой",{"$nulls":6},0]
[14,"Общеобразовательная организация, имеющая спортивное оборудование и инвентарь для занятий спортивной\nгимнастикой",{"$nulls":6},1]
[15,"Общеобразовательная организация, имеющая спортивное оборудование и инвентарь для занятий лёгкой атлетикой",{"$nulls":6},0]
[16,"Общеобразовательная организация, имеющая спортивное оборудование и инвентарь для занятий лыжной подготовкой",{"$nulls":6},0]
[17,"Общеобразовательная организация, имеющая спортивное оборудование и инвентарь для занятий плаванием",{"$nulls":6},0]
[18,"Общеобразовательная организация, имеющая спортивное оборудование и инвентарь для занятий подвижными играми\nи организации спортивных мероприятий",{"$nulls":6},0]
[19,"Общеобразовательная организация, имеющая спортивное оборудование и инвентарь для занятий спортивными\nединоборствами (самбо, дзюдо, иное)",{"$nulls":6},0]
[20,"Имеется дополнительное вариативное оборудование и инвентарь",{"$nulls":6},0]
[21,"Кабинет учителя физической культуры",{"$nulls":6},1]
[22,"4. Организация урочной деятельности по учебному предмету «Физическая культура»"]
[23,"Общеобразовательная организация, в которой отведено на изучение учебного предмета «Физическая культура» в недельных учебных планах \n3 часа",{"$nulls":4},"Общеобразовательная организация, в которой отведено на изучение учебного предмета «Физическая культура»\nв недельных учебных планах  \n2 часа"]
[null,1,{"$nulls":4},2]
[24,1,{"$nulls":4},0]
[25,"5. Организация внеурочной деятельности спортивно-оздоровительного /физкультурно-спортивного направления"]
[26,"Общеобразовательная организация, в которой\nобъём часов, отводимых на внеурочную деятельность, отсутствует",null,null,"Общеобразовательная организация, в которой объём часов, отводимых\nна внеурочную деятельность,\nпредусматривает не более 2-х часов в неделю",null,null,"Общеобразовательная организация, в которой объём часов, отводимых на внеурочную деятельность, предусматривает\nболее 2-х часов в неделю"]
[null,1,null,null,2,null,null,3]
[27,0,null,null,1]
[28,"6. Общеобразовательная организация, использующая\nв рабочей программе часы на изучение раздела «Плавание»"]
[29,"Общеобразовательная организация, использующая в рабочей программе учебные \nчасы на изучение раздела «Плавание»"]
[30,3]
[31,"7. Сведения об обучающихся в общеобразовательной организации"]
[32,"Всего обучающихся:","Обучающиеся, отнесенные\nк основной группе здоровья","Обучающиеся, отнесённые к подготовительной группе здоровья","Обучающиеся, отнесённые к специальной группе здоровья «А»","Обучающиеся, отнесённые к специальной группе здоровья «Б»","Обучающиеся с ограниченными возможностями\nздоровья",null,"Обучающихся,\nимеющие группу\nинвалидности"]
[]
[]
[]
[]
[null,1,2,3,4,5,6,null,7]
[33,{"$f":"C46+D46+E46+F46+G46+I46","v":52},30,22,{"$nulls":6},{"$f":"B46=G6","v":true}]
[34,"8. Обучающиеся, принявшие участие во Всероссийской олимпиаде школьников по учебному предмету\n«Физическая культура» "]
[35,"Этап Всероссийской олимпиады",{"$nulls":4},"Количество участников"]
[null,1,{"$nulls":4},2]
[36,"школьный",{"$nulls":4},15]
[37,"муниципальный",{"$nulls":4},0]
[38,"региональный",{"$nulls":4},0]
[39,"всероссийский",{"$nulls":4},0]
[40,"9. Кадровый состав"]
[41,"Общее количество \nучителей физической культуры","Имеют профессиональное образование в области физической культуры и спорта",null,"Имеют высшую квалификационную категорию",null,"Имеют первую квалификационную категорию",null,"Прошедшие обучение по дополнительным профессиональным образовательным программам повышения квалификации, программам профессиональной переподготовки в 2019\\2020 учебном году"]
[null,null,"Высшее образование","Среднее профессиональное образование"]
[null,1,2,3,4,null,5,null,6]
[42,{"$f":"C58+D58","v":1},1]

{"sheet":"Тюгеевская ООШ","index":15,"n_rows":58,"n_cols":11,"rows_kept":58,"merged":[[0,0,1,0],[0,1,1,9],[2,1,2,9],[3,0,4,0],[3,1,3,5],[3,6,3,9],[4,1,4,5],[4,6,4,9],[5,1,5,5],[5,6,5,9],[6,1,6,9],[7,0,9,0],[7,1,8,1],[7,2,8,2],[7,3,8,3],[7,4,8,4],[7,5,8,5],[7,6,8,6],[7,7,8,7],[7,8,8,8],[7,9,8,9],[11,1,11,9],[12,0,13,0],[12,1,12,7],[12,8,12,9],[13,1,13,7],[13,8,13,9],[14,1,14,7],[14,8,14,9],[15,1,15,7],[15,8,15,9],[16,1,16,7],[16,8,16,9],[17,1,17,7],[17,8,17,9],[18,1,18,7],[18,8,18,9],[19,1,19,7],[19,8,19,9],[20,1,20,7],[20,8,20,9],[21,1,21,7],[21,8,21,9],[22,1,22,7],[22,8,22,9],[23,1,23,7],[23,8,23,9],[24,1,24,7],[24,8,24,9],[25,1,25,7],[25,8,25,9],[26,1,26,7],[26,8,26,9],[27,1,27,9],[28,0,29,0],[28,1,28,5],[28,6,28,9],[29,1,29,5],[29,6,29,9],[30,1,30,5],[30,6,30,9],[31,1,31,9],[32,0,33,0],[32,1,32,3],[32,4,32,6],[32,7,32,9],[33,1,33,3],[33,4,33,6],[33,7,33,9],[34,1,34,3],[34,4,34,6],[34,7,34,9],[35,1,35,9],[36,1,36,9],[37,1,37,9],[38,1,38,9],[39,0,44,0],[39,1,43,1],[39,2,43,2],[39,3,43,3],[39,4,43,4],[39,5,43,5],[39,6,43,7],[39,8,43,9],[44,6,44,7],[44,8,44,9],[45,6,45,7],[45,8,45,9],[46,1,46,9],[47,0,48,0],[47,1,47,5],[47,6,47,9],[48,1,48,5],[48,6,48,9],[49,1,49,5],[49,6,49,9],[50,1,50,5],[50,6,50,9],[51,1,51,5],[51,6,51,9],[52,1,52,5],[52,6,52,9],[53,1,53,9],[54,0,56,0],[54,1,55,1],[54,2,54,3],[54,4,55,5],[54,6,55,7],[54,8,55,9],[56,4,56,5],[56,6,56,7],[56,8,56,9],[57,4,57,5],[57,6,57,7],[57,8,57,9]]}
["№ строки"," Мониторинг общеобразовательных организаций, реализующих общеобразовательные программы начального общего, основного общего и (или) среднего общего образования учебного предмета «Физическая культура» в 2019/2020 учебном году"]
[]
[1,"1. Общие сведения"]
[2,"Муниципальное бюджетное общеобразовательное учреждение \"Тюгеевская основная общеобразовательная школа\" Заинского муниципального района Республики Татарстан",{"$nulls":4},"Общая численность \nобучающихся в общеобразовательной организации "]
[null,1,{"$nulls":4},2]
[3,{"$f":"COUNTA(B4)","v":1},{"$nulls":4},36]
[4,"2. Спортивные объекты общеобразовательной организации"]
[5,"Всего:","Спортивный зал\n24х12 м и более","Спортивный зал\n18х9 м и менее","Спортивный зал отсутствует","Зал для адаптивной физической культуры","Тренажёрный зал","Плавательный\nбассейн","Универсальная спортивная площадка","Площадка для подвижных игр"]
[]
[null,1,2,3,4,5,6,7,8,9]
[6,{"$f":"C11+D11+E11+F11+G11+H11+I11+J11","v":2},0,1,0,0,0,0,0,1]
[7,"3.  Спортивное оборудование и инвентарь для организации общеобразовательной деятельности"]
[8,"Содержание раздела",{"$nulls":6},"ВСЕГО"]
[null,1,{"$nulls":6},2]
[9,"Общеобразовательная организация, имеющая спортивное оборудование и инвентарь для занятий футболом",{"$nulls":6},0]
[10,"Общеобразовательная организация, имеющая спортивное оборудование и инвентарь для занятий баскетболом",{"$nulls":6},1]
[11,"Общеобразовательная организация, имеющая спортивное оборудование и инвентарь для занятий волейболом",{"$nulls":6},1]
[12,"Общеобразовательная организация, имеющая спортивное оборудование и инвентарь для занятий гандболом",{"$nulls":6},0]
[13,"Общеобразовательная организация, имеющая спортивное оборудование и инвентарь для занятий\nфитнесом, общефизической подготовкой",{"$nulls":6},0]
[14,"Общеобразовательная организация, имеющая спортивное оборудование и инвентарь для занятий спортивной\nгимнастикой",{"$nulls":6},0]
[15,"Общеобразовательная организация, имеющая спортивное оборудование и инвентарь для занятий лёгкой атлетикой",{"$nulls":6},1]
[16,"Общеобразовательная организация, имеющая спортивное оборудование и инвентарь для занятий лыжной подготовкой",{"$nulls":6},1]
[17,"Общеобразовательная организация, имеющая спортивное оборудование и инвентарь для занятий плаванием",{"$nulls":6},0]
[18,"Общеобразовательная организация, имеющая спортивное оборудование и инвентарь для занятий подвижными играми\nи организации спортивных мероприятий",{"$nulls":6},1]
[19,"Общеобразовательная организация, имеющая спортивное оборудование и инвентарь для занятий спортивными\nединоборствами (самбо, дзюдо, иное)",{"$nulls":6},0]
[20,"Имеется дополнительное вариативное оборудование и инвентарь",{"$nulls":6},0]
[21,"Кабинет учителя физической культуры",{"$nulls":6},1]
[22,"4. Организация урочной деятельности по учебному предмету «Физическая культура»"]
[23,"Общеобразовательная организация, в которой отведено на изучение учебного предмета «Физическая культура» в недельных учебных планах \n3 часа",{"$nulls":4},"Общеобразовательная организация, в которой отведено на изучение учебного предмета «Физическая культура»\nв недельных учебных планах  \n2 часа"]
[null,1,{"$nulls":4},2]
[24,1,{"$nulls":4},0]
[25,"5. Организация внеурочной деятельности спортивно-оздоровительного /физкультурно-спортивного направления"]
[26,"Общеобразовательная организация, в которой\nобъём часов, отводимых на внеурочную деятельность, отсутствует",null,null,"Общеобразовательная организация, в которой объём часов, отводимых\nна внеурочную деятельность,\nпредусматривает не более 2-х часов в неделю",null,null,"Общеобразовательная организация, в которой объём часов, отводимых на внеурочную деятельность, предусматривает\nболее 2-х часов в неделю"]
[null,1,null,null,2,null,null,3]
[27,0,null,null,1,null,null,0]
[28,"6. Общеобразовательная организация, использующая\nв рабочей программе часы на изучение раздела «Плавание»"]
[29,"Общеобразовательная организация, использующая в рабочей программе учебные \nчасы на изучение раздела «Плавание»"]
[30,3]
[31,"7. Сведения об обучающихся в общеобразовательной организации"]
[32,"Всего обучающихся:","Обучающиеся, отнесенные\nк основной группе здоровья","Обучающиеся, отнесённые к подготовительной группе здоровья","Обучающиеся, отнесённые к специальной группе здоровья «А»","Обучающиеся, отнесённые к специальной группе здоровья «Б»","Обучающиеся с ограниченными возможностями\nздоровья",null,"Обучающихся,\nимеющие группу\nинвалидности"]
[]
[]
[]
[]
[null,1,2,3,4,5,6,null,7]
[33,{"$f":"C46+D46+E46+F46+G46+I46","v":36},36,0,0,0,0,null,0,null,{"$f":"B46=G6","v":true}]
[34,"8. Обучающиеся, принявшие участие во Всероссийской олимпиаде школьников по учебному предмету\n«Физическая культура» "]
[35,"Этап Всероссийской олимпиады",{"$nulls":4},"Количество участников"]
[null,1,{"$nulls":4},2]
[36,"школьный",{"$nulls":4},15]
[37,"муниципальный",{"$nulls":4},2]
[38,"региональный",{"$nulls":4},0]
[39,"всероссийский",{"$nulls":4},0]
[40,"9. Кадровый состав"]
[41,"Общее количество \nучителей физической культуры","Имеют профессиональное образование в области физической культуры и спорта",null,"Имеют высшую квалификационную категорию",null,"Имеют первую квалификационную категорию",null,"Прошедшие обучение по дополнительным профессиональным образовательным программам повышения квалификации, программам профессиональной переподготовки в 2019\\2020 учебном году"]
[null,null,"Высшее образование","Среднее профессиональное образование"]
[null,1,2,3,4,null,5,null,6]
[42,{"$f":"C58+D58","v":2},2,0,0,null,2,null,2]

{"sheet":"Чубуклинская ООШ","index":16,"n_rows":58,"n_cols":11,"rows_kept":58,"merged":[[0,0,1,0],[0,1,1,9],[2,1,2,9],[3,0,4,0],[3,1,3,5],[3,6,3,9],[4,1,4,5],[4,6,4,9],[5,1,5,5],[5,6,5,9],[6,1,6,9],[7,0,9,0],[7,1,8,1],[7,2,8,2],[7,3,8,3],[7,4,8,4],[7,5,8,5],[7,6,8,6],[7,7,8,7],[7,8,8,8],[7,9,8,9],[11,1,11,9],[12,0,13,0],[12,1,12,7],[12,8,12,9],[13,1,13,7],[13,8,13,9],[14,1,14,7],[14,8,14,9],[15,1,15,7],[15,8,15,9],[16,1,16,7],[16,8,16,9],[17,1,17,7],[17,8,17,9],[18,1,18,7],[18,8,18,9],[19,1,19,7],[19,8,19,9],[20,1,20,7],[20,8,20,9],[21,1,21,7],[21,8,21,9],[22,1,22,7],[22,8,22,9],[23,1,23,7],[23,8,23,9],[24,1,24,7],[24,8,24,9],[25,1,25,7],[25,8,25,9],[26,1,26,7],[26,8,26,9],[27,1,27,9],[28,0,29,0],[28,1,28,5],[28,6,28,9],[29,1,29,5],[29,6,29,9],[30,1,30,5],[30,6,30,9],[31,1,31,9],[32,0,33,0],[32,1,32,3],[32,4,32,6],[32,7,32,9],[33,1,33,3],[33,4,33,6],[33,7,33,9],[34,1,34,3],[34,4,34,6],[34,7,34,9],[35,1,35,9],[36,1,36,9],[37,1,37,9],[38,1,38,9],[39,0,44,0],[39,1,43,1],[39,2,43,2],[39,3,43,3],[39,4,43,4],[39,5,43,5],[39,6,43,7],[39,8,43,9],[44,6,44,7],[44,8,44,9],[45,6,45,7],[45,8,45,9],[46,1,46,9],[47,0,48,0],[47,1,47,5],[47,6,47,9],[48,1,48,5],[48,6,48,9],[49,1,49,5],[49,6,49,9],[50,1,50,5],[50,6,50,9],[51,1,51,5],[51,6,51,9],[52,1,52,5],[52,6,52,9],[53,1,53,9],[54,0,56,0],[54,1,55,1],[54,2,54,3],[54,4,55,5],[54,6,55,7],[54,8,55,9],[56,4,56,5],[56,6,56,7],[56,8,56,9],[57,4,57,5],[57,6,57,7],[57,8,57,9]]}
["№ строки"," Мониторинг общеобразовательных организаций, реализующих общеобразовательные программы начального общего, основного общего и (или) среднего общего образования учебного предмета «Физическая культура» в 2019/2020 учебном году"]
[]
[1,"1. Общие сведения"]
[2,"Муниципальное бюджетное общеобразовательное учреждение \"Чубуклинская основная общеобразовательная школа\" Заинского муниципального района Республики Татарстан",{"$nulls":4},"Общая численность \nобучающихся в общеобразовательной организации "]
[null,1,{"$nulls":4},2]
[3,{"$f":"COUNTA(B4)","v":1},{"$nulls":4},34]
[4,"2. Спортивные объекты общеобразовательной организации"]
[5,"Всего:","Спортивный зал\n24х12 м и более","Спортивный зал\n18х9 м и менее","Спортивный зал отсутствует","Зал для адаптивной физической культуры","Тренажёрный зал","Плавательный\nбассейн","Универсальная спортивная площадка","Площадка для подвижных игр"]
[]
[null,1,2,3,4,5,6,7,8,9]
[6,{"$f":"C11+D11+E11+F11+G11+H11+I11+J11","v":2},null,1,{"$nulls":4},1]
[7,"3.  Спортивное оборудование и инвентарь для организации общеобразовательной деятельности"]
[8,"Содержание раздела",{"$nulls":6},"ВСЕГО"]
[null,1,{"$nulls":6},2]
[9,"Общеобразовательная организация, имеющая спортивное оборудование и инвентарь для занятий футболом",{"$nulls":6},1]
[10,"Общеобразовательная организация, имеющая спортивное оборудование и инвентарь для занятий баскетболом",{"$nulls":6},1]
[11,"Общеобразовательная организация, имеющая спортивное оборудование и инвентарь для занятий волейболом",{"$nulls":6},1]
[12,"Общеобразовательная организация, имеющая спортивное оборудование и инвентарь для занятий гандболом",{"$nulls":6},0]
[13,"Общеобразовательная организация, имеющая спортивное оборудование и инвентарь для занятий\nфитнесом, общефизической подготовкой",{"$nulls":6},0]
[14,"Общеобразовательная организация, имеющая спортивное оборудование и инвентарь для занятий спортивной\nгимнастикой",{"$nulls":6},0]
[15,"Общеобразовательная организация, имеющая спортивное оборудование и инвентарь для занятий лёгкой атлетикой",{"$nulls":6},0]
[16,"Общеобразовательная организация, имеющая спортивное оборудование и инвентарь для занятий лыжной подготовкой",{"$nulls":6},1]
[17,"Общеобразовательная организация, имеющая спортивное оборудование и инвентарь для занятий плаванием",{"$nulls":6},0]
[18,"Общеобразовательная организация, имеющая спортивное оборудование и инвентарь для занятий подвижными играми\nи организации спортивных мероприятий",{"$nulls":6},0]
[19,"Общеобразовательная организация, имеющая спортивное оборудование и инвентарь для занятий спортивными\nединоборствами (самбо, дзюдо, иное)",{"$nulls":6},0]
[20,"Имеется дополнительное вариативное оборудование и инвентарь",{"$nulls":6},0]
[21,"Кабинет учителя физической культуры",{"$nulls":6},1]
[22,"4. Организация урочной деятельности по учебному предмету «Физическая культура»"]
[23,"Общеобразовательная организация, в которой отведено на изучение учебного предмета «Физическая культура» в недельных учебных планах \n3 часа",{"$nulls":4},"Общеобразовательная организация, в которой отведено на изучение учебного предмета «Физическая культура»\nв недельных учебных планах  \n2 часа"]
[null,1,{"$nulls":4},2]
[24,1,{"$nulls":4},0]
[25,"5. Организация внеурочной деятельности спортивно-оздоровительного /физкультурно-спортивного направления"]
[26,"Общеобразовательная организация, в которой\nобъём часов, отводимых на внеурочную деятельность, отсутствует",null,null,"Общеобразовательная организация, в которой объём часов, отводимых\nна внеурочную деятельность,\nпредусматривает не более 2-х часов в неделю",null,null,"Общеобразовательная организация, в которой объём часов, отводимых на внеурочную деятельность, предусматривает\nболее 2-х часов в неделю"]
[null,1,null,null,2,null,null,3]
[27,0,null,null,1]
[28,"6. Общеобразовательная организация, использующая\nв рабочей программе часы на изучение раздела «Плавание»"]
[29,"Общеобразовательная организация, использующая в рабочей программе учебные \nчасы на изучение раздела «Плавание»"]
[30,3]
[31,"7. Сведения об обучающихся в общеобразовательной организации"]
[32,"Всего обучающихся:","Обучающиеся, отнесенные\nк основной группе здоровья","Обучающиеся, отнесённые к подготовительной группе здоровья","Обучающиеся, отнесённые к специальной группе здоровья «А»","Обучающиеся, отнесённые к специальной группе здоровья «Б»","Обучающиеся с ограниченными возможностями\nздоровья",null,"Обучающихся,\nимеющие группу\nинвалидности"]
[]
[]
[]
[]
[null,1,2,3,4,5,6,null,7]
[33,{"$f":"C46+D46+E46+F46+G46+I46","v":34},29,5,{"$nulls":6},{"$f":"B46=G6","v":true}]
[34,"8. Обучающиеся, принявшие участие во Всероссийской олимпиаде школьников по учебному предмету\n«Физическая культура» "]
[35,"Этап Всероссийской олимпиады",{"$nulls":4},"Количество участников"]
[null,1,{"$nulls":4},2]
[36,"школьный",{"$nulls":4},18]
[37,"муниципальный",{"$nulls":4},3]
[38,"региональный",{"$nulls":4},0]
[39,"всероссийский",{"$nulls":4},0]
[40,"9. Кадровый состав"]
[41,"Общее количество \nучителей физической культуры","Имеют профессиональное образование в области физической культуры и спорта",null,"Имеют высшую квалификационную категорию",null,"Имеют первую квалификационную категорию",null,"Прошедшие обучение по дополнительным профессиональным образовательным программам повышения квалификации, программам профессиональной переподготовки в 2019\\2020 учебном году"]
[null,null,"Высшее образование","Среднее профессиональное образование"]
[null,1,2,3,4,null,5,null,6]
[42,{"$f":"C58+D58","v":1},null,1,null,null,1]

{"sheet":"Савалеевская СОШ","index":17,"n_rows":58,"n_cols":11,"rows_kept":58,"merged":[[0,0,1,0],[0,1,1,9],[2,1,2,9],[3,0,4,0],[3,1,3,5],[3,6,3,9],[4,1,4,5],[4,6,4,9],[5,1,5,5],[5,6,5,9],[6,1,6,9],[7,0,9,0],[7,1,8,1],[7,2,8,2],[7,3,8,3],[7,4,8,4],[7,5,8,5],[7,6,8,6],[7,7,8,7],[7,8,8,8],[7,9,8,9],[11,1,11,9],[12,0,13,0],[12,1,12,7],[12,8,12,9],[13,1,13,7],[13,8,13,9],[14,1,14,7],[14,8,14,9],[15,1,15,7],[15,8,15,9],[16,1,16,7],[16,8,16,9],[17,1,17,7],[17,8,17,9],[18,1,18,7],[18,8,18,9],[19,1,19,7],[19,8,19,9],[20,1,20,7],[20,8,20,9],[21,1,21,7],[21,8,21,9],[22,1,22,7],[22,8,22,9],[23,1,23,7],[23,8,23,9],[24,1,24,7],[24,8,24,9],[25,1,25,7],[25,8,25,9],[26,1,26,7],[26,8,26,9],[27,1,27,9],[28,0,29,0],[28,1,28,5],[28,6,28,9],[29,1,29,5],[29,6,29,9],[30,1,30,5],[30,6,30,9],[31,1,31,9],[32,0,33,0],[32,1,32,3],[32,4,32,6],[32,7,32,9],[33,1,33,3],[33,4,33,6],[33,7,33,9],[34,1,34,3],[34,4,34,6],[34,7,34,9],[35,1,35,9],[36,1,36,9],[37,1,37,9],[38,1,38,9],[39,0,44,0],[39,1,43,1],[39,2,43,2],[39,3,43,3],[39,4,43,4],[39,5,43,5],[39,6,43,7],[39,8,43,9],[44,6,44,7],[44,8,44,9],[45,6,45,7],[45,8,45,9],[46,1,46,9],[47,0,48,0],[47,1,47,5],[47,6,47,9],[48,1,48,5],[48,6,48,9],[49,1,49,5],[49,6,49,9],[50,1,50,5],[50,6,50,9],[51,1,51,5],[51,6,51,9],[52,1,52,5],[52,6,52,9],[53,1,53,9],[54,0,56,0],[54,1,55,1],[54,2,54,3],[54,4,55,5],[54,6,55,7],[54,8,55,9],[56,4,56,5],[56,6,56,7],[56,8,56,9],[57,4,57,5],[57,6,57,7],[57,8,57,9]]}
["№ строки"," Мониторинг общеобразовательных организаций, реализующих общеобразовательные программы начального общего, основного общего и (или) среднего общего образования учебного предмета «Физическая культура» в 2019/2020 учебном году"]
[]
[1,"1. Общие сведения"]
[2," Муниципальное бюджетное общеобразовательное учреждение «Савалеевская средняя общеобразовательная школа» Заинского муниципального района Республика Татарстан ",{"$nulls":4},"Общая численность \nобучающихся в общеобразовательной организации "]
[null,1,{"$nulls":4},2]
[3,{"$f":"COUNTA(B4)","v":1},{"$nulls":4},113]
[4,"2. Спортивные объекты общеобразовательной организации"]
[5,"Всего:","Спортивный зал\n24х12 м и более","Спортивный зал\n18х9 м и менее","Спортивный зал отсутствует","Зал для адаптивной физической культуры","Тренажёрный зал","Плавательный\nбассейн","Универсальная спортивная площадка","Площадка для подвижных игр"]
[]
[null,1,2,3,4,5,6,7,8,9]
[6,{"$f":"C11+D11+E11+F11+G11+H11+I11+J11","v":2},1,{"$nulls":5},1]
[7,"3.  Спортивное оборудование и инвентарь для организации общеобразовательной деятельности"]
[8,"Содержание раздела",{"$nulls":6},"ВСЕГО"]
[null,1,{"$nulls":6},2]
[9,"Общеобразовательная организация, имеющая спортивное оборудование и инвентарь для занятий футболом",{"$nulls":6},1]
[10,"Общеобразовательная организация, имеющая спортивное оборудование и инвентарь для занятий баскетболом",{"$nulls":6},1]
[11,"Общеобразовательная организация, имеющая спортивное оборудование и инвентарь для занятий волейболом",{"$nulls":6},1]
[12,"Общеобразовательная организация, имеющая спортивное оборудование и инвентарь для занятий гандболом",{"$nulls":6},0]
[13,"Общеобразовательная организация, имеющая спортивное оборудование и инвентарь для занятий\nфитнесом, общефизической подготовкой",{"$nulls":6},1]
[14,"Общеобразовательная организация, имеющая спортивное оборудование и инвентарь для занятий спортивной\nгимнастикой",{"$nulls":6},1]
[15,"Общеобразовательная организация, имеющая спортивное оборудование и инвентарь для занятий лёгкой атлетикой",{"$nulls":6},1]
[16,"Общеобразовательная организация, имеющая спортивное оборудование и инвентарь для занятий лыжной подготовкой",{"$nulls":6},1]
[17,"Общеобразовательная организация, имеющая спортивное оборудование и инвентарь для занятий плаванием",{"$nulls":6},0]
[18,"Общеобразовательная организация, имеющая спортивное оборудование и инвентарь для занятий подвижными играми\nи организации спортивных мероприятий",{"$nulls":6},1]
[19,"Общеобразовательная организация, имеющая спортивное оборудование и инвентарь для занятий спортивными\nединоборствами (самбо, дзюдо, иное)",{"$nulls":6},1]
[20,"Имеется дополнительное вариативное оборудование и инвентарь",{"$nulls":6},1]
[21,"Кабинет учителя физической культуры",{"$nulls":6},1]
[22,"4. Организация урочной деятельности по учебному предмету «Физическая культура»"]
[23,"Общеобразовательная организация, в которой отведено на изучение учебного предмета «Физическая культура» в недельных учебных планах \n3 часа",{"$nulls":4},"Общеобразовательная организация, в которой отведено на изучение учебного предмета «Физическая культура»\nв недельных учебных планах  \n2 часа"]
[null,1,{"$nulls":4},2]
[24,1]
[25,"5. Организация внеурочной деятельности спортивно-оздоровительного /физкультурно-спортивного направления"]
[26,"Общеобразовательная организация, в которой\nобъём часов, отводимых на внеурочную деятельность, отсутствует",null,null,"Общеобразовательная организация, в которой объём часов, отводимых\nна внеурочную деятельность,\nпредусматривает не более 2-х часов в неделю",null,null,"Общеобразовательная организация, в которой объём часов, отводимых на внеурочную деятельность, предусматривает\nболее 2-х часов в неделю"]
[null,1,null,null,2,null,null,3]
[27,{"$nulls":3},1]
[28,"6. Общеобразовательная организация, использующая\nв рабочей программе часы на изучение раздела «Плавание»"]
[29,"Общеобразовательная организация, использующая в рабочей программе учебные \nчасы на изучение раздела «Плавание»"]
[30,1]
[31,"7. Сведения об обучающихся в общеобразовательной организации"]
[32,"Всего обучающихся:","Обучающиеся, отнесенные\nк основной группе здоровья","Обучающиеся, отнесённые к подготовительной группе здоровья","Обучающиеся, отнесённые к специальной группе здоровья «А»","Обучающиеся, отнесённые к специальной группе здоровья «Б»","Обучающиеся с ограниченными возможностями\nздоровья",null,"Обучающихся,\nимеющие группу\nинвалидности"]
[]
[]
[]
[]
[null,1,2,3,4,5,6,null,7]
[33,{"$f":"C46+D46+E46+F46+G46+I46","v":113},108,4,1,{"$nulls":5},{"$f":"B46=G6","v":true}]
[34,"8. Обучающиеся, принявшие участие во Всероссийской олимпиаде школьников по учебному предмету\n«Физическая культура» "]
[35,"Этап Всероссийской олимпиады",{"$nulls":4},"Количество участников"]
[null,1,{"$nulls":4},2]
[36,"школьный",{"$nulls":4},12]
[37,"муниципальный",{"$nulls":4},4]
[38,"региональный"]
[39,"всероссийский"]
[40,"9. Кадровый состав"]
[41,"Общее количество \nучителей физической культуры","Имеют профессиональное образование в области физической культуры и спорта",null,"Имеют высшую квалификационную категорию",null,"Имеют первую квалификационную категорию",null,"Прошедшие обучение по дополнительным профессиональным образовательным программам повышения квалификации, программам профессиональной переподготовки в 2019\\2020 учебном году"]
[null,null,"Высшее образование","Среднее профессиональное образование"]
[null,1,2,3,4,null,5,null,6]
[42,{"$f":"C58+D58","v":2},1,1,1,null,1]

{"sheet":"Сарсаз-Багряжская ООШ","index":18,"n_rows":58,"n_cols":11,"rows_kept":58,"merged":[[0,0,1,0],[0,1,1,9],[2,1,2,9],[3,0,4,0],[3,1,3,5],[3,6,3,9],[4,1,4,5],[4,6,4,9],[5,1,5,5],[5,6,5,9],[6,1,6,9],[7,0,9,0],[7,1,8,1],[7,2,8,2],[7,3,8,3],[7,4,8,4],[7,5,8,5],[7,6,8,6],[7,7,8,7],[7,8,8,8],[7,9,8,9],[11,1,11,9],[12,0,13,0],[12,1,12,7],[12,8,12,9],[13,1,13,7],[13,8,13,9],[14,1,14,7],[14,8,14,9],[15,1,15,7],[15,8,15,9],[16,1,16,7],[16,8,16,9],[17,1,17,7],[17,8,17,9],[18,1,18,7],[18,8,18,9],[19,1,19,7],[19,8,19,9],[20,1,20,7],[20,8,20,9],[21,1,21,7],[21,8,21,9],[22,1,22,7],[22,8,22,9],[23,1,23,7],[23,8,23,9],[24,1,24,7],[24,8,24,9],[25,1,25,7],[25,8,25,9],[26,1,26,7],[26,8,26,9],[27,1,27,9],[28,0,29,0],[28,1,28,5],[28,6,28,9],[29,1,29,5],[29,6,29,9],[30,1,30,5],[30,6,30,9],[31,1,31,9],[32,0,33,0],[32,1,32,3],[32,4,32,6],[32,7,32,9],[33,1,33,3],[33,4,33,6],[33,7,33,9],[34,1,34,3],[34,4,34,6],[34,7,34,9],[35,1,35,9],[36,1,36,9],[37,1,37,9],[38,1,38,9],[39,0,44,0],[39,1,43,1],[39,2,43,2],[39,3,43,3],[39,4,43,4],[39,5,43,5],[39,6,43,7],[39,8,43,9],[44,6,44,7],[44,8,44,9],[45,6,45,7],[45,8,45,9],[46,1,46,9],[47,0,48,0],[47,1,47,5],[47,6,47,9],[48,1,48,5],[48,6,48,9],[49,1,49,5],[49,6,49,9],[50,1,50,5],[50,6,50,9],[51,1,51,5],[51,6,51,9],[52,1,52,5],[52,6,52,9],[53,1,53,9],[54,0,56,0],[54,1,55,1],[54,2,54,3],[54,4,55,5],[54,6,55,7],[54,8,55,9],[56,4,56,5],[56,6,56,7],[56,8,56,9],[57,4,57,5],[57,6,57,7],[57,8,57,9]]}
["№ строки"," Мониторинг общеобразовательных организаций, реализующих общеобразовательные программы начального общего, основного общего и (или) среднего общего образования учебного предмета «Физическая культура» в 2019/2020 учебном году"]
[]
[1,"1. Общие сведения"]
[2,"Муниципальное бюджетное общеобразовательное учреждение \"Сарсаз - Багряжская основная общеобразовательная школа\" Заинского муниципального района Республики Татарстан",{"$nulls":4},"Общая численность \nобучающихся в общеобразовательной организации "]
[null,1,{"$nulls":4},2]
[3,{"$f":"COUNTA(B4)","v":1},{"$nulls":4},31]
[4,"2. Спортивные объекты общеобразовательной организации"]
[5,"Всего:","Спортивный зал\n24х12 м и более","Спортивный зал\n18х9 м и менее","Спортивный зал отсутствует","Зал для адаптивной физической культуры","Тренажёрный зал","Плавательный\nбассейн","Универсальная спортивная площадка","Площадка для подвижных игр"]
[]
[null,1,2,3,4,5,6,7,8,9]
[6,{"$f":"C11+D11+E11+F11+G11+H11+I11+J11","v":1},null,1]
[7,"3.  Спортивное оборудование и инвентарь для организации общеобразовательной деятельности"]
[8,"Содержание раздела",{"$nulls":6},"ВСЕГО"]
[null,1,{"$nulls":6},2]
[9,"Общеобразовательная организация, имеющая спортивное оборудование и инвентарь для занятий футболом",{"$nulls":6},0]
[10,"Общеобразовательная организация, имеющая спортивное оборудование и инвентарь для занятий баскетболом",{"$nulls":6},1]
[11,"Общеобразовательная организация, имеющая спортивное оборудование и инвентарь для занятий волейболом",{"$nulls":6},1]
[12,"Общеобразовательная организация, имеющая спортивное оборудование и инвентарь для занятий гандболом",{"$nulls":6},0]
[13,"Общеобразовательная организация, имеющая спортивное оборудование и инвентарь для занятий\nфитнесом, общефизической подготовкой",{"$nulls":6},0]
[14,"Общеобразовательная организация, имеющая спортивное оборудование и инвентарь для занятий спортивной\nгимнастикой",{"$nulls":6},1]
[15,"Общеобразовательная организация, имеющая спортивное оборудование и инвентарь для занятий лёгкой атлетикой",{"$nulls":6},1]
[16,"Общеобразовательная организация, имеющая спортивное оборудование и инвентарь для занятий лыжной подготовкой",{"$nulls":6},1]
[17,"Общеобразовательная организация, имеющая спортивное оборудование и инвентарь для занятий плаванием",{"$nulls":6},0]
[18,"Общеобразовательная организация, имеющая спортивное оборудование и инвентарь для занятий подвижными играми\nи организации спортивных мероприятий",{"$nulls":6},1]
[19,"Общеобразовательная организация, имеющая спортивное оборудование и инвентарь для занятий спортивными\nединоборствами (самбо, дзюдо, иное)",{"$nulls":6},0]
[20,"Имеется дополнительное вариативное оборудование и инвентарь",{"$nulls":6},0]
[21,"Кабинет учителя физической культуры",{"$nulls":6},1]
[22,"4. Организация урочной деятельности по учебному предмету «Физическая культура»"]
[23,"Общеобразовательная организация, в которой отведено на изучение учебного предмета «Физическая культура» в недельных учебных планах \n3 часа",{"$nulls":4},"Общеобразовательная организация, в которой отведено на изучение учебного предмета «Физическая культура»\nв недельных учебных планах  \n2 часа"]
[null,1,{"$nulls":4},2]
[24,1,{"$nulls":4},0]
[25,"5. Организация внеурочной деятельности спортивно-оздоровительного /физкультурно-спортивного направления"]
[26,"Общеобразовательная организация, в которой\nобъём часов, отводимых на внеурочную деятельность, отсутствует",null,null,"Общеобразовательная организация, в которой объём часов, отводимых\nна внеурочную деятельность,\nпредусматривает не более 2-х часов в неделю",null,null,"Общеобразовательная организация, в которой объём часов, отводимых на внеурочную деятельность, предусматривает\nболее 2-х часов в неделю"]
[null,1,null,null,2,null,null,3]
[27,1,null,null,0,null,null,0]
[28,"6. Общеобразовательная организация, использующая\nв рабочей программе часы на изучение раздела «Плавание»"]
[29,"Общеобразовательная организация, использующая в рабочей программе учебные \nчасы на изучение раздела «Плавание»"]
[30,3]
[31,"7. Сведения об обучающихся в общеобразовательной организации"]
[32,"Всего обучающихся:","Обучающиеся, отнесенные\nк основной группе здоровья","Обучающиеся, отнесённые к подготовительной группе здоровья","Обучающиеся, отнесённые к специальной группе здоровья «А»","Обучающиеся, отнесённые к специальной группе здоровья «Б»","Обучающиеся с ограниченными возможностями\nздоровья",null,"Обучающихся,\nимеющие группу\nинвалидности"]
[]
[]
[]
[]
[null,1,2,3,4,5,6,null,7]
[33,{"$f":"C46+D46+E46+F46+G46+I46","v":31},26,5,{"$nulls":6},{"$f":"B46=G6","v":true}]
[34,"8. Обучающиеся, принявшие участие во Всероссийской олимпиаде школьников по учебному предмету\n«Физическая культура» "]
[35,"Этап Всероссийской олимпиады",{"$nulls":4},"Количество участников"]
[null,1,{"$nulls":4},2]
[36,"школьный",{"$nulls":4},18]
[37,"муниципальный",{"$nulls":4},4]
[38,"региональный"]
[39,"всероссийский"]
[40,"9. Кадровый состав"]
[41,"Общее количество \nучителей физической культуры","Имеют профессиональное образование в области физической культуры и спорта",null,"Имеют высшую квалификационную категорию",null,"Имеют первую квалификационную категорию",null,"Прошедшие обучение по дополнительным профессиональным образовательным программам повышения квалификации, программам профессиональной переподготовки в 2019\\2020 учебном году"]
[null,null,"Высшее образование","Среднее профессиональное образование"]
[null,1,2,3,4,null,5,null,6]
[42,{"$f":"C58+D58","v":1},1,{"$nulls":3},1]

{"sheet":"Верхненалимская ООШ","index":19,"n_rows":58,"n_cols":11,"rows_kept":58,"merged":[[0,0,1,0],[0,1,1,9],[2,1,2,9],[3,0,4,0],[3,1,3,5],[3,6,3,9],[4,1,4,5],[4,6,4,9],[5,1,5,5],[5,6,5,9],[6,1,6,9],[7,0,9,0],[7,1,8,1],[7,2,8,2],[7,3,8,3],[7,4,8,4],[7,5,8,5],[7,6,8,6],[7,7,8,7],[7,8,8,8],[7,9,8,9],[11,1,11,9],[12,0,13,0],[12,1,12,7],[12,8,12,9],[13,1,13,7],[13,8,13,9],[14,1,14,7],[14,8,14,9],[15,1,15,7],[15,8,15,9],[16,1,16,7],[16,8,16,9],[17,1,17,7],[17,8,17,9],[18,1,18,7],[18,8,18,9],[19,1,19,7],[19,8,19,9],[20,1,20,7],[20,8,20,9],[21,1,21,7],[21,8,21,9],[22,1,22,7],[22,8,22,9],[23,1,23,7],[23,8,23,9],[24,1,24,7],[24,8,24,9],[25,1,25,7],[25,8,25,9],[26,1,26,7],[26,8,26,9],[27,1,27,9],[28,0,29,0],[28,1,28,5],[28,6,28,9],[29,1,29,5],[29,6,29,9],[30,1,30,5],[30,6,30,9],[31,1,31,9],[32,0,33,0],[32,1,32,3],[32,4,32,6],[32,7,32,9],[33,1,33,3],[33,4,33,6],[33,7,33,9],[34,1,34,3],[34,4,34,6],[34,7,34,9],[35,1,35,9],[36,1,36,9],[37,1,37,9],[38,1,38,9],[39,0,44,0],[39,1,43,1],[39,2,43,2],[39,3,43,3],[39,4,43,4],[39,5,43,5],[39,6,43,7],[39,8,43,9],[44,6,44,7],[44,8,44,9],[45,6,45,7],[45,8,45,9],[46,1,46,9],[47,0,48,0],[47,1,47,5],[47,6,47,9],[48,1,48,5],[48,6,48,9],[49,1,49,5],[49,6,49,9],[50,1,50,5],[50,6,50,9],[51,1,51,5],[51,6,51,9],[52,1,52,5],[52,6,52,9],[53,1,53,9],[54,0,56,0],[54,1,55,1],[54,2,54,3],[54,4,55,5],[54,6,55,7],[54,8,55,9],[56,4,56,5],[56,6,56,7],[56,8,56,9],[57,4,57,5],[57,6,57,7],[57,8,57,9]]}
["№ строки"," Мониторинг общеобразовательных организаций, реализующих общеобразовательные программы начального общего, основного общего и (или) среднего общего образования учебного предмета «Физическая культура» в 2019/2020 учебном году"]
[]
[1,"1. Общие сведения"]
[2,"Муниципальное бюджетное общеобразовательное учреждение \"Верхненалимская оснавная общеобразовательная школа\" Заинского муниципального района Республики Татарстан",{"$nulls":4},"Общая численность \nобучающихся в общеобразовательной организации "]
[null,1,{"$nulls":4},2]
[3,{"$f":"COUNTA(B4)","v":1},{"$nulls":4},35]
[4,"2. Спортивные объекты общеобразовательной организации"]
[5,"Всего:","Спортивный зал\n24х12 м и более","Спортивный зал\n18х9 м и менее","Спортивный зал отсутствует","Зал для адаптивной физической культуры","Тренажёрный зал","Плавательный\nбассейн","Универсальная спортивная площадка","Площадка для подвижных игр"]
[]
[null,1,2,3,4,5,6,7,8,9]
[6,{"$f":"C11+D11+E11+F11+G11+H11+I11+J11","v":2},null,1,{"$nulls":3},0,null,1]
[7,"3.  Спортивное оборудование и инвентарь для организации общеобразовательной деятельности"]
[8,"Содержание раздела",{"$nulls":6},"ВСЕГО"]
[null,1,{"$nulls":6},2]
[9,"Общеобразовательная организация, имеющая спортивное оборудование и инвентарь для занятий футболом",{"$nulls":6},1]
[10,"Общеобразовательная организация, имеющая спортивное оборудование и инвентарь для занятий баскетболом",{"$nulls":6},1]
[11,"Общеобразовательная организация, имеющая спортивное оборудование и инвентарь для занятий волейболом",{"$nulls":6},1]
[12,"Общеобразовательная организация, имеющая спортивное оборудование и инвентарь для занятий гандболом",{"$nulls":6},0]
[13,"Общеобразовательная организация, имеющая спортивное оборудование и инвентарь для занятий\nфитнесом, общефизической подготовкой",{"$nulls":6},1]
[14,"Общеобразовательная организация, имеющая спортивное оборудование и инвентарь для занятий спортивной\nгимнастикой",{"$nulls":6},0]
[15,"Общеобразовательная организация, имеющая спортивное оборудование и инвентарь для занятий лёгкой атлетикой",{"$nulls":6},1]
[16,"Общеобразовательная организация, имеющая спортивное оборудование и инвентарь для занятий лыжной подготовкой",{"$nulls":6},1]
[17,"Общеобразовательная организация, имеющая спортивное оборудование и инвентарь для занятий плаванием",{"$nulls":6},0]
[18,"Общеобразовательная организация, имеющая спортивное оборудование и инвентарь для занятий подвижными играми\nи организации спортивных мероприятий",{"$nulls":6},1]
[19,"Общеобразовательная организация, имеющая спортивное оборудование и инвентарь для занятий спортивными\nединоборствами (самбо, дзюдо, иное)",{"$nulls":6},0]
[20,"Имеется дополнительное вариативное оборудование и инвентарь",{"$nulls":6},1]
[21,"Кабинет учителя физической культуры",{"$nulls":6},1]
[22,"4. Организация урочной деятельности по учебному предмету «Физическая культура»"]
[23,"Общеобразовательная организация, в которой отведено на изучение учебного предмета «Физическая культура» в недельных учебных планах \n3 часа",{"$nulls":4},"Общеобразовательная организация, в которой отведено на изучение учебного предмета «Физическая культура»\nв недельных учебных планах  \n2 часа"]
[null,1,{"$nulls":4},2]
[24,1]
[25,"5. Организация внеурочной деятельности спортивно-оздоровительного /физкультурно-спортивного направления"]
[26,"Общеобразовательная организация, в которой\nобъём часов, отводимых на внеурочную деятельность, отсутствует",null,null,"Общеобразовательная организация, в которой объём часов, отводимых\nна внеурочную деятельность,\nпредусматривает не более 2-х часов в неделю",null,null,"Общеобразовательная организация, в которой объём часов, отводимых на внеурочную деятельность, предусматривает\nболее 2-х часов в неделю"]
[null,1,null,null,2,null,null,3]
[27,0,{"$nulls":5},1]
[28,"6. Общеобразовательная организация, использующая\nв рабочей программе часы на изучение раздела «Плавание»"]
[29,"Общеобразовательная организация, использующая в рабочей программе учебные \nчасы на изучение раздела «Плавание»"]
[30,3]
[31,"7. Сведения об обучающихся в общеобразовательной организации"]
[32,"Всего обучающихся:","Обучающиеся, отнесенные\nк основной группе здоровья","Обучающиеся, отнесённые к подготовительной группе здоровья","Обучающиеся, отнесённые к специальной группе здоровья «А»","Обучающиеся, отнесённые к специальной группе здоровья «Б»","Обучающиеся с ограниченными возможностями\nздоровья",null,"Обучающихся,\nимеющие группу\nинвалидности"]
[]
[]
[]
[]
[null,1,2,3,4,5,6,null,7]
[33,{"$f":"C46+D46+E46+F46+G46+I46","v":35},33,2,{"$nulls":6},{"$f":"B46=G6","v":true}]
[34,"8. Обучающиеся, принявшие участие во Всероссийской олимпиаде школьников по учебному предмету\n«Физическая культура» "]
[35,"Этап Всероссийской олимпиады",{"$nulls":4},"Количество участников"]
[null,1,{"$nulls":4},2]
[36,"школьный",{"$nulls":4},35]
[37,"муниципальный",{"$nulls":4},1]
[38,"региональный",{"$nulls":4},0]
[39,"всероссийский",{"$nulls":4},0]
[40,"9. Кадровый состав"]
[41,"Общее количество \nучителей физической культуры","Имеют профессиональное образование в области физической культуры и спорта",null,"Имеют высшую квалификационную категорию",null,"Имеют первую квалификационную категорию",null,"Прошедшие обучение по дополнительным профессиональным образовательным программам повышения квалификации, программам профессиональной переподготовки в 2019\\2020 учебном году"]
[null,null,"Высшее образование","Среднее профессиональное образование"]
[null,1,2,3,4,null,5,null,6]
[42,{"$f":"C58+D58","v":1},1,0,0,null,1,null,0]

{"sheet":"Бухарайская ООШ","index":20,"n_rows":58,"n_cols":11,"rows_kept":58,"merged":[[0,0,1,0],[0,1,1,9],[2,1,2,9],[3,0,4,0],[3,1,3,5],[3,6,3,9],[4,1,4,5],[4,6,4,9],[5,1,5,5],[5,6,5,9],[6,1,6,9],[7,0,9,0],[7,1,8,1],[7,2,8,2],[7,3,8,3],[7,4,8,4],[7,5,8,5],[7,6,8,6],[7,7,8,7],[7,8,8,8],[7,9,8,9],[11,1,11,9],[12,0,13,0],[12,1,12,7],[12,8,12,9],[13,1,13,7],[13,8,13,9],[14,1,14,7],[14,8,14,9],[15,1,15,7],[15,8,15,9],[16,1,16,7],[16,8,16,9],[17,1,17,7],[17,8,17,9],[18,1,18,7],[18,8,18,9],[19,1,19,7],[19,8,19,9],[20,1,20,7],[20,8,20,9],[21,1,21,7],[21,8,21,9],[22,1,22,7],[22,8,22,9],[23,1,23,7],[23,8,23,9],[24,1,24,7],[24,8,24,9],[25,1,25,7],[25,8,25,9],[26,1,26,7],[26,8,26,9],[27,1,27,9],[28,0,29,0],[28,1,28,5],[28,6,28,9],[29,1,29,5],[29,6,29,9],[30,1,30,5],[30,6,30,9],[31,1,31,9],[32,0,33,0],[32,1,32,3],[32,4,32,6],[32,7,32,9],[33,1,33,3],[33,4,33,6],[33,7,33,9],[34,1,34,3],[34,4,34,6],[34,7,34,9],[35,1,35,9],[36,1,36,9],[37,1,37,9],[38,1,38,9],[39,0,44,0],[39,1,43,1],[39,2,43,2],[39,3,43,3],[39,4,43,4],[39,5,43,5],[39,6,43,7],[39,8,43,9],[44,6,44,7],[44,8,44,9],[45,6,45,7],[45,8,45,9],[46,1,46,9],[47,0,48,0],[47,1,47,5],[47,6,47,9],[48,1,48,5],[48,6,48,9],[49,1,49,5],[49,6,49,9],[50,1,50,5],[50,6,50,9],[51,1,51,5],[51,6,51,9],[52,1,52,5],[52,6,52,9],[53,1,53,9],[54,0,56,0],[54,1,55,1],[54,2,54,3],[54,4,55,5],[54,6,55,7],[54,8,55,9],[56,4,56,5],[56,6,56,7],[56,8,56,9],[57,4,57,5],[57,6,57,7],[57,8,57,9]]}
["№ строки"," Мониторинг общеобразовательных организаций, реализующих общеобразовательные программы начального общего, основного общего и (или) среднего общего образования учебного предмета «Физическая культура» в 2019/2020 учебном году"]
[]
[1,"1. Общие сведения"]
[2,"Муниципальное бюджетное общеобразовательное учреждение \"Бухарайская основная общеобразовательная школа\" Заинского муниципального района Республики Татарстан",{"$nulls":4},"Общая численность \nобучающихся в общеобразовательной организации "]
[null,1,{"$nulls":4},2]
[3,{"$f":"COUNTA(B4)","v":1},{"$nulls":4},56]
[4,"2. Спортивные объекты общеобразовательной организации"]
[5,"Всего:","Спортивный зал\n24х12 м и более","Спортивный зал\n18х9 м и менее","Спортивный зал отсутствует","Зал для адаптивной физической культуры","Тренажёрный зал","Плавательный\nбассейн","Универсальная спортивная площадка","Площадка для подвижных игр"]
[]
[null,1,2,3,4,5,6,7,8,9]
[6,{"$f":"C11+D11+E11+F11+G11+H11+I11+J11","v":2},0,1,0,0,0,0,0,1]
[7,"3.  Спортивное оборудование и инвентарь для организации общеобразовательной деятельности"]
[8,"Содержание раздела",{"$nulls":6},"ВСЕГО"]
[null,1,{"$nulls":6},2]
[9,"Общеобразовательная организация, имеющая спортивное оборудование и инвентарь для занятий футболом",{"$nulls":6},0]
[10,"Общеобразовательная организация, имеющая спортивное оборудование и инвентарь для занятий баскетболом",{"$nulls":6},1]
[11,"Общеобразовательная организация, имеющая спортивное оборудование и инвентарь для занятий волейболом",{"$nulls":6},1]
[12,"Общеобразовательная организация, имеющая спортивное оборудование и инвентарь для занятий гандболом",{"$nulls":6},0]
[13,"Общеобразовательная организация, имеющая спортивное оборудование и инвентарь для занятий\nфитнесом, общефизической подготовкой",{"$nulls":6},1]
[14,"Общеобразовательная организация, имеющая спортивное оборудование и инвентарь для занятий спортивной\nгимнастикой",{"$nulls":6},0]
[15,"Общеобразовательная организация, имеющая спортивное оборудование и инвентарь для занятий лёгкой атлетикой",{"$nulls":6},1]
[16,"Общеобразовательная организация, имеющая спортивное оборудование и инвентарь для занятий лыжной подготовкой",{"$nulls":6},1]
[17,"Общеобразовательная организация, имеющая спортивное оборудование и инвентарь для занятий плаванием",{"$nulls":6},0]
[18,"Общеобразовательная организация, имеющая спортивное оборудование и инвентарь для занятий подвижными играми\nи организации спортивных мероприятий",{"$nulls":6},1]
[19,"Общеобразовательная организация, имеющая спортивное оборудование и инвентарь для занятий спортивными\nединоборствами (самбо, дзюдо, иное)",{"$nulls":6},0]
[20,"Имеется дополнительное вариативное оборудование и инвентарь",{"$nulls":6},0]
[21,"Кабинет учителя физической культуры",{"$nulls":6},0]
[22,"4. Организация урочной деятельности по учебному предмету «Физическая культура»"]
[23,"Общеобразовательная организация, в которой отведено на изучение учебного предмета «Физическая культура» в недельных учебных планах \n3 часа",{"$nulls":4},"Общеобразовательная организация, в которой отведено на изучение учебного предмета «Физическая культура»\nв недельных учебных планах  \n2 часа"]
[null,1,{"$nulls":4},2]
[24,1,{"$nulls":4},0]
[25,"5. Организация внеурочной деятельности спортивно-оздоровительного /физкультурно-спортивного направления"]
[26,"Общеобразовательная организация, в которой\nобъём часов, отводимых на внеурочную деятельность, отсутствует",null,null,"Общеобразовательная организация, в которой объём часов, отводимых\nна внеурочную деятельность,\nпредусматривает не более 2-х часов в неделю",null,null,"Общеобразовательная организация, в которой объём часов, отводимых на внеурочную деятельность, предусматривает\nболее 2-х часов в неделю"]
[null,1,null,null,2,null,null,3]
[27,0,null,null,0,null,null,1]
[28,"6. Общеобразовательная организация, использующая\nв рабочей программе часы на изучение раздела «Плавание»"]
[29,"Общеобразовательная организация, использующая в рабочей программе учебные \nчасы на изучение раздела «Плавание»"]
[30,3]
[31,"7. Сведения об обучающихся в общеобразовательной организации"]
[32,"Всего обучающихся:","Обучающиеся, отнесенные\nк основной группе здоровья","Обучающиеся, отнесённые к подготовительной группе здоровья","Обучающиеся, отнесённые к специальной группе здоровья «А»","Обучающиеся, отнесённые к специальной группе здоровья «Б»","Обучающиеся с ограниченными возможностями\nздоровья",null,"Обучающихся,\nимеющие группу\nинвалидности"]
[]
[]
[]
[]
[null,1,2,3,4,5,6,null,7]
[33,{"$f":"C46+D46+E46+F46+G46+I46","v":56},50,6,{"$nulls":6},{"$f":"B46=G6","v":true}]
[34,"8. Обучающиеся, принявшие участие во Всероссийской олимпиаде школьников по учебному предмету\n«Физическая культура» "]
[35,"Этап Всероссийской олимпиады",{"$nulls":4},"Количество участников"]
[null,1,{"$nulls":4},2]
[36,"школьный",{"$nulls":4},13]
[37,"муниципальный",{"$nulls":4},2]
[38,"региональный",{"$nulls":4},0]
[39,"всероссийский",{"$nulls":4},0]
[40,"9. Кадровый состав"]
[41,"Общее количество \nучителей физической культуры","Имеют профессиональное образование в области физической культуры и спорта",null,"Имеют высшую квалификационную категорию",null,"Имеют первую квалификационную категорию",null,"Прошедшие обучение по дополнительным профессиональным образовательным программам повышения квалификации, программам профессиональной переподготовки в 2019\\2020 учебном году"]
[null,null,"Высшее образование","Среднее профессиональное образование"]
[null,1,2,3,4,null,5,null,6]
[42,{"$f":"C58+D58","v":1},1,0,0,null,1,null,1]

{"sheet":"Александрослободская ООШ","index":21,"n_rows":58,"n_cols":11,"rows_kept":58,"merged":[[0,0,1,0],[0,1,1,9],[2,1,2,9],[3,0,4,0],[3,1,3,5],[3,6,3,9],[4,1,4,5],[4,6,4,9],[5,1,5,5],[5,6,5,9],[6,1,6,9],[7,0,9,0],[7,1,8,1],[7,2,8,2],[7,3,8,3],[7,4,8,4],[7,5,8,5],[7,6,8,6],[7,7,8,7],[7,8,8,8],[7,9,8,9],[11,1,11,9],[12,0,13,0],[12,1,12,7],[12,8,12,9],[13,1,13,7],[13,8,13,9],[14,1,14,7],[14,8,14,9],[15,1,15,7],[15,8,15,9],[16,1,16,7],[16,8,16,9],[17,1,17,7],[17,8,17,9],[18,1,18,7],[18,8,18,9],[19,1,19,7],[19,8,19,9],[20,1,20,7],[20,8,20,9],[21,1,21,7],[21,8,21,9],[22,1,22,7],[22,8,22,9],[23,1,23,7],[23,8,23,9],[24,1,24,7],[24,8,24,9],[25,1,25,7],[25,8,25,9],[26,1,26,7],[26,8,26,9],[27,1,27,9],[28,0,29,0],[28,1,28,5],[28,6,28,9],[29,1,29,5],[29,6,29,9],[30,1,30,5],[30,6,30,9],[31,1,31,9],[32,0,33,0],[32,1,32,3],[32,4,32,6],[32,7,32,9],[33,1,33,3],[33,4,33,6],[33,7,33,9],[34,1,34,3],[34,4,34,6],[34,7,34,9],[35,1,35,9],[36,1,36,9],[37,1,37,9],[38,1,38,9],[39,0,44,0],[39,1,43,1],[39,2,43,2],[39,3,43,3],[39,4,43,4],[39,5,43,5],[39,6,43,7],[39,8,43,9],[44,6,44,7],[44,8,44,9],[45,6,45,7],[45,8,45,9],[46,1,46,9],[47,0,48,0],[47,1,47,5],[47,6,47,9],[48,1,48,5],[48,6,48,9],[49,1,49,5],[49,6,49,9],[50,1,50,5],[50,6,50,9],[51,1,51,5],[51,6,51,9],[52,1,52,5],[52,6,52,9],[53,1,53,9],[54,0,56,0],[54,1,55,1],[54,2,54,3],[54,4,55,5],[54,6,55,7],[54,8,55,9],[56,4,56,5],[56,6,56,7],[56,8,56,9],[57,4,57,5],[57,6,57,7],[57,8,57,9]]}
["№ строки"," Мониторинг общеобразовательных организаций, реализующих общеобразовательные программы начального общего, основного общего и (или) среднего общего образования учебного предмета «Физическая культура» в 2019/2020 учебном году"]
[]
[1,"1. Общие сведения"]
[2,"Муниципальное бюджетное общеобразовательное учреждение \"Александро-Слободская основная общеобразовательная школа\" Заинского муниципального района Республики Татарстан",{"$nulls":4},"Общая численность \nобучающихся в общеобразовательной организации "]
[null,1,{"$nulls":4},2]
[3,{"$f":"COUNTA(B4)","v":1},{"$nulls":4},67]
[4,"2. Спортивные объекты общеобразовательной организации"]
[5,"Всего:","Спортивный зал\n24х12 м и более","Спортивный зал\n18х9 м и менее","Спортивный зал отсутствует","Зал для адаптивной физической культуры","Тренажёрный зал","Плавательный\nбассейн","Универсальная спортивная площадка","Площадка для подвижных игр"]
[]
[null,1,2,3,4,5,6,7,8,9]
[6,{"$f":"C11+D11+E11+F11+G11+H11+I11+J11","v":2},0,1,null,0,0,0,0,1]
[7,"3.  Спортивное оборудование и инвентарь для организации общеобразовательной деятельности"]
[8,"Содержание раздела",{"$nulls":6},"ВСЕГО"]
[null,1,{"$nulls":6},2]
[9,"Общеобразовательная организация, имеющая спортивное оборудование и инвентарь для занятий футболом",{"$nulls":6},1]
[10,"Общеобразовательная организация, имеющая спортивное оборудование и инвентарь для занятий баскетболом",{"$nulls":6},1]
[11,"Общеобразовательная организация, имеющая спортивное оборудование и инвентарь для занятий волейболом",{"$nulls":6},1]
[12,"Общеобразовательная организация, имеющая спортивное оборудование и инвентарь для занятий гандболом",{"$nulls":6},0]
[13,"Общеобразовательная организация, имеющая спортивное оборудование и инвентарь для занятий\nфитнесом, общефизической подготовкой",{"$nulls":6},0]
[14,"Общеобразовательная организация, имеющая спортивное оборудование и инвентарь для занятий спортивной\nгимнастикой",{"$nulls":6},1]
[15,"Общеобразовательная организация, имеющая спортивное оборудование и инвентарь для занятий лёгкой атлетикой",{"$nulls":6},1]
[16,"Общеобразовательная организация, имеющая спортивное оборудование и инвентарь для занятий лыжной подготовкой",{"$nulls":6},1]
[17,"Общеобразовательная организация, имеющая спортивное оборудование и инвентарь для занятий плаванием",{"$nulls":6},0]
[18,"Общеобразовательная организация, имеющая спортивное оборудование и инвентарь для занятий подвижными играми\nи организации спортивных мероприятий",{"$nulls":6},1]
[19,"Общеобразовательная организация, имеющая спортивное оборудование и инвентарь для занятий спортивными\nединоборствами (самбо, дзюдо, иное)",{"$nulls":6},0]
[20,"Имеется дополнительное вариативное оборудование и инвентарь",{"$nulls":6},0]
[21,"Кабинет учителя физической культуры",{"$nulls":6},0]
[22,"4. Организация урочной деятельности по учебному предмету «Физическая культура»"]
[23,"Общеобразовательная организация, в которой отведено на изучение учебного предмета «Физическая культура» в недельных учебных планах \n3 часа",{"$nulls":4},"Общеобразовательная организация, в которой отведено на изучение учебного предмета «Физическая культура»\nв недельных учебных планах  \n2 часа"]
[null,1,{"$nulls":4},2]
[24,1,{"$nulls":4},0]
[25,"5. Организация внеурочной деятельности спортивно-оздоровительного /физкультурно-спортивного направления"]
[26,"Общеобразовательная организация, в которой\nобъём часов, отводимых на внеурочную деятельность, отсутствует",null,null,"Общеобразовательная организация, в которой объём часов, отводимых\nна внеурочную деятельность,\nпредусматривает не более 2-х часов в неделю",null,null,"Общеобразовательная организация, в которой объём часов, отводимых на внеурочную деятельность, предусматривает\nболее 2-х часов в неделю"]
[null,1,null,null,2,null,null,3]
[27,0,null,null,1,null,null,0]
[28,"6. Общеобразовательная организация, использующая\nв рабочей программе часы на изучение раздела «Плавание»"]
[29,"Общеобразовательная организация, использующая в рабочей программе учебные \nчасы на изучение раздела «Плавание»"]
[30,3]
[31,"7. Сведения об обучающихся в общеобразовательной организации"]
[32,"Всего обучающихся:","Обучающиеся, отнесенные\nк основной группе здоровья","Обучающиеся, отнесённые к подготовительной группе здоровья","Обучающиеся, отнесённые к специальной группе здоровья «А»","Обучающиеся, отнесённые к специальной группе здоровья «Б»","Обучающиеся с ограниченными возможностями\nздоровья",null,"Обучающихся,\nимеющие группу\nинвалидности"]
[]
[]
[]
[]
[null,1,2,3,4,5,6,null,7]
[33,{"$f":"C46+D46+E46+F46+G46+I46","v":67},58,8,{"$nulls":4},1,null,{"$f":"B46=G6","v":true}]
[34,"8. Обучающиеся, принявшие участие во Всероссийской олимпиаде школьников по учебному предмету\n«Физическая культура» "]
[35,"Этап Всероссийской олимпиады",{"$nulls":4},"Количество участников"]
[null,1,{"$nulls":4},2]
[36,"школьный",{"$nulls":4},5]
[37,"муниципальный",{"$nulls":4},3]
[38,"региональный",{"$nulls":4},0]
[39,"всероссийский",{"$nulls":4},0]
[40,"9. Кадровый состав"]
[41,"Общее количество \nучителей физической культуры","Имеют профессиональное образование в области физической культуры и спорта",null,"Имеют высшую квалификационную категорию",null,"Имеют первую квалификационную категорию",null,"Прошедшие обучение по дополнительным профессиональным образовательным программам повышения квалификации, программам профессиональной переподготовки в 2019\\2020 учебном году"]
[null,null,"Высшее образование","Среднее профессиональное образование"]
[null,1,2,3,4,null,5,null,6]
[42,{"$f":"C58+D58","v":1},1,0,0,null,1,null,0]

{"sheet":"Бегишевская СОШ","index":22,"n_rows":58,"n_cols":11,"rows_kept":58,"merged":[[0,0,1,0],[0,1,1,9],[2,1,2,9],[3,0,4,0],[3,1,3,5],[3,6,3,9],[4,1,4,5],[4,6,4,9],[5,1,5,5],[5,6,5,9],[6,1,6,9],[7,0,9,0],[7,1,8,1],[7,2,8,2],[7,3,8,3],[7,4,8,4],[7,5,8,5],[7,6,8,6],[7,7,8,7],[7,8,8,8],[7,9,8,9],[11,1,11,9],[12,0,13,0],[12,1,12,7],[12,8,12,9],[13,1,13,7],[13,8,13,9],[14,1,14,7],[14,8,14,9],[15,1,15,7],[15,8,15,9],[16,1,16,7],[16,8,16,9],[17,1,17,7],[17,8,17,9],[18,1,18,7],[18,8,18,9],[19,1,19,7],[19,8,19,9],[20,1,20,7],[20,8,20,9],[21,1,21,7],[21,8,21,9],[22,1,22,7],[22,8,22,9],[23,1,23,7],[23,8,23,9],[24,1,24,7],[24,8,24,9],[25,1,25,7],[25,8,25,9],[26,1,26,7],[26,8,26,9],[27,1,27,9],[28,0,29,0],[28,1,28,5],[28,6,28,9],[29,1,29,5],[29,6,29,9],[30,1,30,5],[30,6,30,9],[31,1,31,9],[32,0,33,0],[32,1,32,3],[32,4,32,6],[32,7,32,9],[33,1,33,3],[33,4,33,6],[33,7,33,9],[34,1,34,3],[34,4,34,6],[34,7,34,9],[35,1,35,9],[36,1,36,9],[37,1,37,9],[38,1,38,9],[39,0,44,0],[39,1,43,1],[39,2,43,2],[39,3,43,3],[39,4,43,4],[39,5,43,5],[39,6,43,7],[39,8,43,9],[44,6,44,7],[44,8,44,9],[45,6,45,7],[45,8,45,9],[46,1,46,9],[47,0,48,0],[47,1,47,5],[47,6,47,9],[48,1,48,5],[48,6,48,9],[49,1,49,5],[49,6,49,9],[50,1,50,5],[50,6,50,9],[51,1,51,5],[51,6,51,9],[52,1,52,5],[52,6,52,9],[53,1,53,9],[54,0,56,0],[54,1,55,1],[54,2,54,3],[54,4,55,5],[54,6,55,7],[54,8,55,9],[56,4,56,5],[56,6,56,7],[56,8,56,9],[57,4,57,5],[57,6,57,7],[57,8,57,9]]}
["№ строки"," Мониторинг общеобразовательных организаций, реализующих общеобразовательные программы начального общего, основного общего и (или) среднего общего образования учебного предмета «Физическая культура» в 2019/2020 учебном году"]
[]
[1,"1. Общие сведения"]
[2,"Муниципальное бюджетное общеобразовательное учреждение «Бегишевская средняя общеобразовательная школа имени Мансура Хасановича Хасанова» Заинского муниципального района Республики Татарстан",{"$nulls":4},"Общая численность \nобучающихся в общеобразовательной организации "]
[null,1,{"$nulls":4},2]
[3,{"$f":"COUNTA(B4)","v":1},{"$nulls":4},55]
[4,"2. Спортивные объекты общеобразовательной организации"]
[5,"Всего:","Спортивный зал\n24х12 м и более","Спортивный зал\n18х9 м и менее","Спортивный зал отсутствует","Зал для адаптивной физической культуры","Тренажёрный зал","Плавательный\nбассейн","Универсальная спортивная площадка","Площадка для подвижных игр"]
[]
[null,1,2,3,4,5,6,7,8,9]
[6,{"$f":"C11+D11+E11+F11+G11+H11+I11+J11","v":2},null,1,{"$nulls":4},1]
[7,"3.  Спортивное оборудование и инвентарь для организации общеобразовательной деятельности"]
[8,"Содержание раздела",{"$nulls":6},"ВСЕГО"]
[null,1,{"$nulls":6},2]
[9,"Общеобразовательная организация, имеющая спортивное оборудование и инвентарь для занятий футболом",{"$nulls":6},1]
[10,"Общеобразовательная организация, имеющая спортивное оборудование и инвентарь для занятий баскетболом",{"$nulls":6},1]
[11,"Общеобразовательная организация, имеющая спортивное оборудование и инвентарь для занятий волейболом",{"$nulls":6},1]
[12,"Общеобразовательная организация, имеющая спортивное оборудование и инвентарь для занятий гандболом",{"$nulls":6},0]
[13,"Общеобразовательная организация, имеющая спортивное оборудование и инвентарь для занятий\nфитнесом, общефизической подготовкой",{"$nulls":6},0]
[14,"Общеобразовательная организация, имеющая спортивное оборудование и инвентарь для занятий спортивной\nгимнастикой",{"$nulls":6},0]
[15,"Общеобразовательная организация, имеющая спортивное оборудование и инвентарь для занятий лёгкой атлетикой",{"$nulls":6},0]
[16,"Общеобразовательная организация, имеющая спортивное оборудование и инвентарь для занятий лыжной подготовкой",{"$nulls":6},1]
[17,"Общеобразовательная организация, имеющая спортивное оборудование и инвентарь для занятий плаванием",{"$nulls":6},0]
[18,"Общеобразовательная организация, имеющая спортивное оборудование и инвентарь для занятий подвижными играми\nи организации спортивных мероприятий",{"$nulls":6},0]
[19,"Общеобразовательная организация, имеющая спортивное оборудование и инвентарь для занятий спортивными\nединоборствами (самбо, дзюдо, иное)",{"$nulls":6},0]
[20,"Имеется дополнительное вариативное оборудование и инвентарь",{"$nulls":6},0]
[21,"Кабинет учителя физической культуры",{"$nulls":6},0]
[22,"4. Организация урочной деятельности по учебному предмету «Физическая культура»"]
[23,"Общеобразовательная организация, в которой отведено на изучение учебного предмета «Физическая культура» в недельных учебных планах \n3 часа",{"$nulls":4},"Общеобразовательная организация, в которой отведено на изучение учебного предмета «Физическая культура»\nв недельных учебных планах  \n2 часа"]
[null,1,{"$nulls":4},2]
[24,1,{"$nulls":4},0]
[25,"5. Организация внеурочной деятельности спортивно-оздоровительного /физкультурно-спортивного направления"]
[26,"Общеобразовательная организация, в которой\nобъём часов, отводимых на внеурочную деятельность, отсутствует",null,null,"Общеобразовательная организация, в которой объём часов, отводимых\nна внеурочную деятельность,\nпредусматривает не более 2-х часов в неделю",null,null,"Общеобразовательная организация, в которой объём часов, отводимых на внеурочную деятельность, предусматривает\nболее 2-х часов в неделю"]
[null,1,null,null,2,null,null,3]
[27,0,null,null,1,null,null,0]
[28,"6. Общеобразовательная организация, использующая\nв рабочей программе часы на изучение раздела «Плавание»"]
[29,"Общеобразовательная организация, использующая в рабочей программе учебные \nчасы на изучение раздела «Плавание»"]
[30,3]
[31,"7. Сведения об обучающихся в общеобразовательной организации"]
[32,"Всего обучающихся:","Обучающиеся, отнесенные\nк основной группе здоровья","Обучающиеся, отнесённые к подготовительной группе здоровья","Обучающиеся, отнесённые к специальной группе здоровья «А»","Обучающиеся, отнесённые к специальной группе здоровья «Б»","Обучающиеся с ограниченными возможностями\nздоровья",null,"Обучающихся,\nимеющие группу\nинвалидности"]
[]
[]
[]
[]
[null,1,2,3,4,5,6,null,7]
[33,{"$f":"C46+D46+E46+F46+G46+I46","v":55},48,7,{"$nulls":6},{"$f":"B46=G6","v":true}]
[34,"8. Обучающиеся, принявшие участие во Всероссийской олимпиаде школьников по учебному предмету\n«Физическая культура» "]
[35,"Этап Всероссийской олимпиады",{"$nulls":4},"Количество участников"]
[null,1,{"$nulls":4},2]
[36,"школьный",{"$nulls":4},10]
[37,"муниципальный",{"$nulls":4},4]
[38,"региональный",{"$nulls":4},0]
[39,"всероссийский",{"$nulls":4},0]
[40,"9. Кадровый состав"]
[41,"Общее количество \nучителей физической культуры","Имеют профессиональное образование в области физической культуры и спорта",null,"Имеют высшую квалификационную категорию",null,"Имеют первую квалификационную категорию",null,"Прошедшие обучение по дополнительным профессиональным образовательным программам повышения квалификации, программам профессиональной переподготовки в 2019\\2020 учебном году"]
[null,null,"Высшее образование","Среднее профессиональное образование"]
[null,1,2,3,4,null,5,null,6]
[42,{"$f":"C58+D58","v":1},null,1,null,null,1]

{"sheet":"Кадыровская СОШ","index":23,"n_rows":58,"n_cols":11,"rows_kept":58,"merged":[[0,0,1,0],[0,1,1,9],[2,1,2,9],[3,0,4,0],[3,1,3,5],[3,6,3,9],[4,1,4,5],[4,6,4,9],[5,1,5,5],[5,6,5,9],[6,1,6,9],[7,0,9,0],[7,1,8,1],[7,2,8,2],[7,3,8,3],[7,4,8,4],[7,5,8,5],[7,6,8,6],[7,7,8,7],[7,8,8,8],[7,9,8,9],[11,1,11,9],[12,0,13,0],[12,1,12,7],[12,8,12,9],[13,1,13,7],[13,8,13,9],[14,1,14,7],[14,8,14,9],[15,1,15,7],[15,8,15,9],[16,1,16,7],[16,8,16,9],[17,1,17,7],[17,8,17,9],[18,1,18,7],[18,8,18,9],[19,1,19,7],[19,8,19,9],[20,1,20,7],[20,8,20,9],[21,1,21,7],[21,8,21,9],[22,1,22,7],[22,8,22,9],[23,1,23,7],[23,8,23,9],[24,1,24,7],[24,8,24,9],[25,1,25,7],[25,8,25,9],[26,1,26,7],[26,8,26,9],[27,1,27,9],[28,0,29,0],[28,1,28,5],[28,6,28,9],[29,1,29,5],[29,6,29,9],[30,1,30,5],[30,6,30,9],[31,1,31,9],[32,0,33,0],[32,1,32,3],[32,4,32,6],[32,7,32,9],[33,1,33,3],[33,4,33,6],[33,7,33,9],[34,1,34,3],[34,4,34,6],[34,7,34,9],[35,1,35,9],[36,1,36,9],[37,1,37,9],[38,1,38,9],[39,0,44,0],[39,1,43,1],[39,2,43,2],[39,3,43,3],[39,4,43,4],[39,5,43,5],[39,6,43,7],[39,8,43,9],[44,6,44,7],[44,8,44,9],[45,6,45,7],[45,8,45,9],[46,1,46,9],[47,0,48,0],[47,1,47,5],[47,6,47,9],[48,1,48,5],[48,6,48,9],[49,1,49,5],[49,6,49,9],[50,1,50,5],[50,6,50,9],[51,1,51,5],[51,6,51,9],[52,1,52,5],[52,6,52,9],[53,1,53,9],[54,0,56,0],[54,1,55,1],[54,2,54,3],[54,4,55,5],[54,6,55,7],[54,8,55,9],[56,4,56,5],[56,6,56,7],[56,8,56,9],[57,4,57,5],[57,6,57,7],[57,8,57,9]]}
["№ строки"," Мониторинг общеобразовательных организаций, реализующих общеобразовательные программы начального общего, основного общего и (или) среднего общего образования учебного предмета «Физическая культура» в 2019/2020 учебном году"]
[]
[1,"1. Общие сведения"]
[2," Муниципальное бюджетное общеобразовательное учреждение «Кадыровская средняя общеобразовательная школа» Заинского муниципального района Республика Татарстан ",{"$nulls":4},"Общая численность \nобучающихся в общеобразовательной организации "]
[null,1,{"$nulls":4},2]
[3,{"$f":"COUNTA(B4)","v":1},{"$nulls":4},92]
[4,"2. Спортивные объекты общеобразовательной организации"]
[5,"Всего:","Спортивный зал\n24х12 м и более","Спортивный зал\n18х9 м и менее","Спортивный зал отсутствует","Зал для адаптивной физической культуры","Тренажёрный зал","Плавательный\nбассейн","Универсальная спортивная площадка","Площадка для подвижных игр"]
[]
[null,1,2,3,4,5,6,7,8,9]
[6,{"$f":"C11+D11+E11+F11+G11+H11+I11+J11","v":2},null,1,{"$nulls":5},1]
[7,"3.  Спортивное оборудование и инвентарь для организации общеобразовательной деятельности"]
[8,"Содержание раздела",{"$nulls":6},"ВСЕГО"]
[null,1,{"$nulls":6},2]
[9,"Общеобразовательная организация, имеющая спортивное оборудование и инвентарь для занятий футболом"]
[10,"Общеобразовательная организация, имеющая спортивное оборудование и инвентарь для занятий баскетболом"]
[11,"Общеобразовательная организация, имеющая спортивное оборудование и инвентарь для занятий волейболом"]
[12,"Общеобразовательная организация, имеющая спортивное оборудование и инвентарь для занятий гандболом"]
[13,"Общеобразовательная организация, имеющая спортивное оборудование и инвентарь для занятий\nфитнесом, общефизической подготовкой"]
[14,"Общеобразовательная организация, имеющая спортивное оборудование и инвентарь для занятий спортивной\nгимнастикой"]
[15,"Общеобразовательная организация, имеющая спортивное оборудование и инвентарь для занятий лёгкой атлетикой"]
[16,"Общеобразовательная организация, имеющая спортивное оборудование и инвентарь для занятий лыжной подготовкой"]
[17,"Общеобразовательная организация, имеющая спортивное оборудование и инвентарь для занятий плаванием"]
[18,"Общеобразовательная организация, имеющая спортивное оборудование и инвентарь для занятий подвижными играми\nи организации спортивных мероприятий"]
[19,"Общеобразовательная организация, имеющая спортивное оборудование и инвентарь для занятий спортивными\nединоборствами (самбо, дзюдо, иное)"]
[20,"Имеется дополнительное вариативное оборудование и инвентарь"]
[21,"Кабинет учителя физической культуры"]
[22,"4. Организация урочной деятельности по учебному предмету «Физическая культура»"]
[23,"Общеобразовательная организация, в которой отведено на изучение учебного предмета «Физическая культура» в недельных учебных планах \n3 часа",{"$nulls":4},"Общеобразовательная организация, в которой отведено на изучение учебного предмета «Физическая культура»\nв недельных учебных планах  \n2 часа"]
[null,1,{"$nulls":4},2]
[24,1]
[25,"5. Организация внеурочной деятельности спортивно-оздоровительного /физкультурно-спортивного направления"]
[26,"Общеобразовательная организация, в которой\nобъём часов, отводимых на внеурочную деятельность, отсутствует",null,null,"Общеобразовательная организация, в которой объём часов, отводимых\nна внеурочную деятельность,\nпредусматривает не более 2-х часов в неделю",null,null,"Общеобразовательная организация, в которой объём часов, отводимых на внеурочную деятельность, предусматривает\nболее 2-х часов в неделю"]
[null,1,null,null,2,null,null,3]
[27]
[28,"6. Общеобразовательная организация, использующая\nв рабочей программе часы на изучение раздела «Плавание»"]
[29,"Общеобразовательная организация, использующая в рабочей программе учебные \nчасы на изучение раздела «Плавание»"]
[30,3]
[31,"7. Сведения об обучающихся в общеобразовательной организации"]
[32,"Всего обучающихся:","Обучающиеся, отнесенные\nк основной группе здоровья","Обучающиеся, отнесённые к подготовительной группе здоровья","Обучающиеся, отнесённые к специальной группе здоровья «А»","Обучающиеся, отнесённые к специальной группе здоровья «Б»","Обучающиеся с ограниченными возможностями\nздоровья",null,"Обучающихся,\nимеющие группу\nинвалидности"]
[]
[]
[]
[]
[null,1,2,3,4,5,6,null,7]
[33,{"$f":"C46+D46+E46+F46+G46+I46","v":92},89,{"$nulls":3},1,null,2,null,{"$f":"B46=G6","v":true}]
[34,"8. Обучающиеся, принявшие участие во Всероссийской олимпиаде школьников по учебному предмету\n«Физическая культура» "]
[35,"Этап Всероссийской олимпиады",{"$nulls":4},"Количество участников"]
[null,1,{"$nulls":4},2]
[36,"школьный",{"$nulls":4},20]
[37,"муниципальный",{"$nulls":4},5]
[38,"региональный",{"$nulls":4},1]
[39,"всероссийский"]
[40,"9. Кадровый состав"]
[41,"Общее количество \nучителей физической культуры","Имеют профессиональное образование в области физической культуры и спорта",null,"Имеют высшую квалификационную категорию",null,"Имеют первую квалификационную категорию",null,"Прошедшие обучение по дополнительным профессиональным образовательным программам повышения квалификации, программам профессиональной переподготовки в 2019\\2020 учебном году"]
[null,null,"Высшее образование","Среднее профессиональное образование"]
[null,1,2,3,4,null,5,null,6]
[42,{"$f":"C58+D58","v":2},2,null,2,{"$nulls":3},0]

{"sheet":"Нижнебишевская СОШ","index":24,"n_rows":58,"n_cols":11,"rows_kept":58,"merged":[[0,0,1,0],[0,1,1,9],[2,1,2,9],[3,0,4,0],[3,1,3,5],[3,6,3,9],[4,1,4,5],[4,6,4,9],[5,1,5,5],[5,6,5,9],[6,1,6,9],[7,0,9,0],[7,1,8,1],[7,2,8,2],[7,3,8,3],[7,4,8,4],[7,5,8,5],[7,6,8,6],[7,7,8,7],[7,8,8,8],[7,9,8,9],[11,1,11,9],[12,0,13,0],[12,1,12,7],[12,8,12,9],[13,1,13,7],[13,8,13,9],[14,1,14,7],[14,8,14,9],[15,1,15,7],[15,8,15,9],[16,1,16,7],[16,8,16,9],[17,1,17,7],[17,8,17,9],[18,1,18,7],[18,8,18,9],[19,1,19,7],[19,8,19,9],[20,1,20,7],[20,8,20,9],[21,1,21,7],[21,8,21,9],[22,1,22,7],[22,8,22,9],[23,1,23,7],[23,8,23,9],[24,1,24,7],[24,8,24,9],[25,1,25,7],[25,8,25,9],[26,1,26,7],[26,8,26,9],[27,1,27,9],[28,0,29,0],[28,1,28,5],[28,6,28,9],[29,1,29,5],[29,6,29,9],[30,1,30,5],[30,6,30,9],[31,1,31,9],[32,0,33,0],[32,1,32,3],[32,4,32,6],[32,7,32,9],[33,1,33,3],[33,4,33,6],[33,7,33,9],[34,1,34,3],[34,4,34,6],[34,7,34,9],[35,1,35,9],[36,1,36,9],[37,1,37,9],[38,1,38,9],[39,0,44,0],[39,1,43,1],[39,2,43,2],[39,3,43,3],[39,4,43,4],[39,5,43,5],[39,6,43,7],[39,8,43,9],[44,6,44,7],[44,8,44,9],[45,6,45,7],[45,8,45,9],[46,1,46,9],[47,0,48,0],[47,1,47,5],[47,6,47,9],[48,1,48,5],[48,6,48,9],[49,1,49,5],[49,6,49,9],[50,1,50,5],[50,6,50,9],[51,1,51,5],[51,6,51,9],[52,1,52,5],[52,6,52,9],[53,1,53,9],[54,0,56,0],[54,1,55,1],[54,2,54,3],[54,4,55,5],[54,6,55,7],[54,8,55,9],[56,4,56,5],[56,6,56,7],[56,8,56,9],[57,4,57,5],[57,6,57,7],[57,8,57,9]]}
["№ строки"," Мониторинг общеобразовательных организаций, реализующих общеобразовательные программы начального общего, основного общего и (или) среднего общего образования учебного предмета «Физическая культура» в 2019/2020 учебном году"]
[]
[1,"1. Общие сведения"]
[2," Муниципальное бюджетное общеобразовательное учреждение «Нижнебишевская  средняя общеобразовательная школа» Заинского муниципального района Республика Татарстан ",{"$nulls":4},"Общая численность \nобучающихся в общеобразовательной организации "]
[null,1,{"$nulls":4},2]
[3,{"$f":"COUNTA(B4)","v":1},{"$nulls":4},68]
[4,"2. Спортивные объекты общеобразовательной организации"]
[5,"Всего:","Спортивный зал\n24х12 м и более","Спортивный зал\n18х9 м и менее","Спортивный зал отсутствует","Зал для адаптивной физической культуры","Тренажёрный зал","Плавательный\nбассейн","Универсальная спортивная площадка","Площадка для подвижных игр"]
[]
[null,1,2,3,4,5,6,7,8,9]
[6,{"$f":"C11+D11+E11+F11+G11+H11+I11+J11","v":2},0,1,0,0,0,0,0,1]
[7,"3.  Спортивное оборудование и инвентарь для организации общеобразовательной деятельности"]
[8,"Содержание раздела",{"$nulls":6},"ВСЕГО"]
[null,1,{"$nulls":6},2]
[9,"Общеобразовательная организация, имеющая спортивное оборудование и инвентарь для занятий футболом",{"$nulls":6},0]
[10,"Общеобразовательная организация, имеющая спортивное оборудование и инвентарь для занятий баскетболом",{"$nulls":6},1]
[11,"Общеобразовательная организация, имеющая спортивное оборудование и инвентарь для занятий волейболом",{"$nulls":6},1]
[12,"Общеобразовательная организация, имеющая спортивное оборудование и инвентарь для занятий гандболом",{"$nulls":6},0]
[13,"Общеобразовательная организация, имеющая спортивное оборудование и инвентарь для занятий\nфитнесом, общефизической подготовкой",{"$nulls":6},0]
[14,"Общеобразовательная организация, имеющая спортивное оборудование и инвентарь для занятий спортивной\nгимнастикой",{"$nulls":6},0]
[15,"Общеобразовательная организация, имеющая спортивное оборудование и инвентарь для занятий лёгкой атлетикой",{"$nulls":6},0]
[16,"Общеобразовательная организация, имеющая спортивное оборудование и инвентарь для занятий лыжной подготовкой",{"$nulls":6},0]
[17,"Общеобразовательная организация, имеющая спортивное оборудование и инвентарь для занятий плаванием",{"$nulls":6},0]
[18,"Общеобразовательная организация, имеющая спортивное оборудование и инвентарь для занятий подвижными играми\nи организации спортивных мероприятий",{"$nulls":6},0]
[19,"Общеобразовательная организация, имеющая спортивное оборудование и инвентарь для занятий спортивными\nединоборствами (самбо, дзюдо, иное)",{"$nulls":6},0]
[20,"Имеется дополнительное вариативное оборудование и инвентарь",{"$nulls":6},0]
[21,"Кабинет учителя физической культуры",{"$nulls":6},1]
[22,"4. Организация урочной деятельности по учебному предмету «Физическая культура»"]
[23,"Общеобразовательная организация, в которой отведено на изучение учебного предмета «Физическая культура» в недельных учебных планах \n3 часа",{"$nulls":4},"Общеобразовательная организация, в которой отведено на изучение учебного предмета «Физическая культура»\nв недельных учебных планах  \n2 часа"]
[null,1,{"$nulls":4},2]
[24,1]
[25,"5. Организация внеурочной деятельности спортивно-оздоровительного /физкультурно-спортивного направления"]
[26,"Общеобразовательная организация, в которой\nобъём часов, отводимых на внеурочную деятельность, отсутствует",null,null,"Общеобразовательная организация, в которой объём часов, отводимых\nна внеурочную деятельность,\nпредусматривает не более 2-х часов в неделю",null,null,"Общеобразовательная организация, в которой объём часов, отводимых на внеурочную деятельность, предусматривает\nболее 2-х часов в неделю"]
[null,1,null,null,2,null,null,3]
[27,0,null,null,1,null,null,0]
[28,"6. Общеобразовательная организация, использующая\nв рабочей программе часы на изучение раздела «Плавание»"]
[29,"Общеобразовательная организация, использующая в рабочей программе учебные \nчасы на изучение раздела «Плавание»"]
[30,3]
[31,"7. Сведения об обучающихся в общеобразовательной организации"]
[32,"Всего обучающихся:","Обучающиеся, отнесенные\nк основной группе здоровья","Обучающиеся, отнесённые к подготовительной группе здоровья","Обучающиеся, отнесённые к специальной группе здоровья «А»","Обучающиеся, отнесённые к специальной группе здоровья «Б»","Обучающиеся с ограниченными возможностями\nздоровья",null,"Обучающихся,\nимеющие группу\nинвалидности"]
[]
[]
[]
[]
[null,1,2,3,4,5,6,null,7]
[33,{"$f":"C46+D46+E46+F46+G46+I46","v":68},68,{"$nulls":7},{"$f":"B46=G6","v":true}]
[34,"8. Обучающиеся, принявшие участие во Всероссийской олимпиаде школьников по учебному предмету\n«Физическая культура» "]
[35,"Этап Всероссийской олимпиады",{"$nulls":4},"Количество участников"]
[null,1,{"$nulls":4},2]
[36,"школьный",{"$nulls":4},15]
[37,"муниципальный",{"$nulls":4},3]
[38,"региональный"]
[39,"всероссийский"]
[40,"9. Кадровый состав"]
[41,"Общее количество \nучителей физической культуры","Имеют профессиональное образование в области физической культуры и спорта",null,"Имеют высшую квалификационную категорию",null,"Имеют первую квалификационную категорию",null,"Прошедшие обучение по дополнительным профессиональным образовательным программам повышения квалификации, программам профессиональной переподготовки в 2019\\2020 учебном году"]
[null,null,"Высшее образование","Среднее профессиональное образование"]
[null,1,2,3,4,null,5,null,6]
[42,{"$f":"C58+D58","v":1},1,0,0,null,1,null,0]

{"sheet":"КОНЕЦ","index":25,"n_rows":8,"n_cols":5,"rows_kept":8,"merged":[[0,0,1,4],[2,0,3,0],[2,1,3,1],[2,2,3,2],[2,3,3,3],[2,4,3,4]]}
["Раздел 1. Сведения об общеобразовательных организациях"]
[]
[null,"№ строки","Общее количество общеобразовательных организаций (юр. лиц)","Количество общеобразовательных организаций, имеющих лицензию на право ведения образовательной деятельности по подвиду дополнительного образования \"дополнительное образование детей и взрослых\"","Количество общеобразовательных организаций (юр. лиц), реализующих программы дополнительного образования физкультурно-спортивной направленности"]
[]
[1,2,3,4,5]
["Всего","01",{"$f":"SUM(C7:C8)","v":0},{"$f":"SUM(D7:D8)","v":0},{"$f":"SUM(E7:E8)","v":0}]
["Из них в городских поселениях","02"]
["Из них в сельской местности","03"]

{"sheet":"Лист1","index":26,"n_rows":86,"n_cols":1,"rows_kept":86,"hidden":true}
["Наименование субъекта Российской Федерации"]
["Республика Адыгея"]
["Республика Башкортостан"]
["Республика Бурятия "]
["Республика Алтай "]
["Республика Дагестан"]
["Республика Ингушетия"]
["Кабардино-Балкарская Республика"]
["Республика Калмыкия"]
["Карачаево-Черкесская Республика"]
["Республика Карелия"]
["Республика Коми"]
["Республика Марий Эл"]
["Республика Мордовия"]
["Республика Саха (Якутия)"]
["Республика Северная Осетия - Алания"]
["Республика Татарстан"]
["Республика Тыва"]
["Удмуртская Республика"]
["Республика Хакасия"]
["Чеченская Республика"]
["Чувашская Республика"]
["Алтайский край"]
["Краснодарский край"]
["Красноярский край"]
["Приморский край"]
["Ставропольский край"]
["Хабаровский край"]
["Амурская область"]
["Архангельская область"]
["Астраханская область"]
["Белгородская область"]
["Брянская область"]
["Владимирская область"]
["Волгоградская область"]
["Вологодская область"]
["Воронежская область"]
["Ивановская область"]
["Иркутская область"]
["Калининградская область"]
["Калужская область"]
["Камчатский край"]
["Кемеровская область"]
["Кировская область"]
["Костромская область"]
["Курганская область"]
["Курская область"]
["Ленинградская область"]
["Липецкая область"]
["Магаданская область"]
["Московская область"]
["Мурманская область"]
["Нижегородская область"]
["Новгородская область"]
["Новосибирская область"]
["Омская область"]
["Оренбургская область"]
["Орловская область"]
["Пензенская область"]
["Пермский край"]
["Псковская область"]
["Ростовская область"]
["Рязанская область"]
["Самарская область"]
["Саратовская область"]
["Сахалинская область"]
["Свердловская область"]
["Смоленская область"]
["Тамбовская область"]
["Тверская область"]
["Томская область"]
["Тульская область"]
["Тюменская область"]
["Ульяновская область"]
["Челябинская область"]
["Забайкальский край"]
["Ярославская область"]
["Еврейская автономная область"]
["Ненецкий автономный округ"]
["Ханты-Мансийский автономный округ"]
["Чукотский автономный округ"]
["Ямало-Ненецкий автономный округ"]
["Республика Крым"]
["г. Севастополь"]
["г. Москва"]
["г. Санкт-Петербург"]